Workbook

Sheet Correlation Matrix
H2: A Probabilistic Model of The Estimated Correlation Matrix Under General Conditions:
H3: Robust Inference, and Targeted, Direct, Analytically-based Stress Testing
F4: (Matrix functions purposefully are avoided below to clearly demonstrate the deterministic relationships between 1. correlations, 2. their polar angles, and 3. the CDFs of the angles on the n-dimensional hemisphere)
G5: This workbook allows for robust* inference for the corrleation matrix under general conditions** (i.e. *near-zero eigenvalues, and **no assumptions/restrictions on the input data).
A6: r | B6: GREEN indicates USER INPUT required | G6: It also allows for targeted, probability-based scenarios by answering questions like: | P6: ...all while automatically enforcing positive definiteness. | X6: INSIGHT: | Y6: The rows and columns of any correlation matrix can be reordered so that ONLY the correlation(s) of interest depend ONLY on their
B7: Excel Settings: | G7: What probability is associated with a 0.2 increase in the correlation between X and Y? | P7: These scenarios can be defined by multiple pairs of correlations | Y7: corresponding angle values; this allows for targeted, probability-based scenarios using selected correlations
B8: Files/Options/Formulas/ | G8: What increase in the correlation between X and Y occurs with at least 50% probability? | P8: (the Directionally Conditional Probability below includes the entire matrix). | Y8: WITHOUT AFFECTING THE REST OF THE MATRIX! And positive definiteness automatically is enforced.
B9: /Maximum Change = 1E-16 | Y9: For example, changing ONLY CDF cells J39, J40, and K40 will change ONLY the correlation cells V18, V19, and W19, while automatically guaranteeing positive definiteness.
B10: /Maximum Iterations = 100 | O10: © J.D. Opdyke (see Disclaimer below) | Y10: This is the first model for both correlation matrix inference and stress testing that is 1. valid under general conditions; 2. fully flexible; and 3. analytically and probabilistically based.
B11: View/Zoom = 75% | O11: Sr Managing Director, Risk Analytics | Y11: It also is uniquely robust to near-zero eigenvalues, which is common in large portfolios and/or when enforcing positive definiteness.
B12: Ribbon Display Options/Auto-hide Ribbon | H12: START | O12: JDOpdyke@DataMineit.com | T12: FINISH
M13: 10 STEPS | T13: New (Valid) Correlation Matrix (Positive Definiteness is Automatically Enforced)
B14: 10 STEP DESCRIPTIONS (GREEN requires User Input): | H14: USER INPUT: Original Correlation Matrix | O14: Difference in Correlation Matrices | T14: Enter formula bar of Each New Correlation Cell to highlight relevant Angles in Step 8.
B15: 1 | C15: USER INPUT: Insert valid (i.e. positive definite) | H15: 1 | I15: =H16 -> 0.5 | J15: =H17 -> -0.25 | K15: =H18 -> 0.25 | L15: =H19 -> -0.1 | M15: 1 | N15: =T15-H15 -> 0 | O15: =U15-I15 -> 0 | P15: =V15-J15 -> 0 | Q15: =W15-K15 -> 0 | R15: =X15-L15 -> 1.249000903e-16 | S15: 10 | T15: 1 | U15: =COS(T30) -> 0.5 | V15: =COS(T31) -> -0.25 | W15: =COS(T32) -> 0.25 | X15: =COS(T33) -> -0.1 | Z15: =SUMPRODUCT($T22:$X22,$T$22:$X$22) -> 1 | AA15: =SUMPRODUCT($T22:$X22,$T$23:$X$23) -> 0.5 | AB15: =SUMPRODUCT($T22:$X22,$T$24:$X$24) -> -0.25 | AC15: =SUMPRODUCT($T22:$X22,$T$25:$X$25) -> 0.25 | AD15: =SUMPRODUCT($T22:$X22,$T$26:$X$26) -> -0.1
C16: correlation matrix - see Step 1 examples below. | H16: 0.5 | I16: 1 | J16: =I17 -> 0.1 | K16: =I18 -> 0.3 | L16: =I19 -> 0.3 | N16: 0 | O16: 0 | P16: 0 | Q16: 0 | R16: 0 | T16: =COS(T30) -> 0.5 | U16: =COS(T37)^2+SIN(T37)^2 -> 1 | V16: =COS(T30)*COS(T31)+SIN(T30)*COS(U31)*SIN(T31) -> 0.1 | W16: =COS(T30)*COS(T32)+SIN(T30)*COS(U32)*SIN(T32) -> 0.3 | X16: =COS(T30)*COS(T33)+SIN(T30)*COS(U33)*SIN(T33) -> 0.3 | Y16: = | Z16: =SUMPRODUCT($T23:$X23,$T$22:$X$22) -> 0.5 | AA16: =SUMPRODUCT($T23:$X23,$T$23:$X$23) -> 1 | AB16: =SUMPRODUCT($T23:$X23,$T$24:$X$24) -> 0.1 | AC16: =SUMPRODUCT($T23:$X23,$T$25:$X$25) -> 0.3 | AD16: =SUMPRODUCT($T23:$X23,$T$26:$X$26) -> 0.3
B17: 2 | C17: Obtain Cholesky Factor of 1. | H17: -0.25 | I17: 0.1 | J17: 1 | K17: =J18 -> -0.15 | L17: =J19 -> 0.15 | N17: 0 | O17: 0 | P17: 0 | Q17: -0.160755072 | R17: -0.1686433302 | T17: =COS(T31) -> -0.25 | U17: =COS(T30)*COS(T31)+SIN(T30)*COS(U31)*SIN(T31) -> 0.1 | V17: =COS(T38)^2+COS(U38)^2*SIN(T38)^2+SIN(T38)^2*SIN(U38)^2 -> 1 | W17: =COS(T31)*COS(T32)+COS(U31)*SIN(T31)*COS(U32)*SIN(T32)+SIN(T31)*SIN(U31)*COS(V32)*SIN(U32)*SIN(T32) -> -0.310755072 | X17: =COS(T31)*COS(T33)+COS(U31)*SIN(T31)*COS(U33)*SIN(T33)+SIN(T31)*SIN(U31)*COS(V33)*SIN(U33)*SIN(T33) -> -0.01864333021 | Z17: =SUMPRODUCT($T24:$X24,$T$22:$X$22) -> -0.25 | AA17: =SUMPRODUCT($T24:$X24,$T$23:$X$23) -> 0.1 | AB17: =SUMPRODUCT($T24:$X24,$T$24:$X$24) -> 1 | AC17: =SUMPRODUCT($T24:$X24,$T$25:$X$25) -> -0.310755072 | AD17: -0.01864333021
B18: 3 | C18: Obtain Polar Angles based on 2. | H18: 0.25 | I18: 0.3 | J18: -0.15 | K18: 1 | L18: =K19 -> 0.1 | N18: 0 | O18: 0 | P18: -0.160755072 | Q18: 0 | R18: 0.6179315716 | T18: =COS(T32) -> 0.25 | U18: =COS(T30)*COS(T32)+SIN(T30)*COS(U32)*SIN(T32) -> 0.3 | V18: =COS(T31)*COS(T32)+COS(U31)*SIN(T31)*COS(U32)*SIN(T32)+SIN(T31)*SIN(U31)*COS(V32)*SIN(U32)*SIN(T32) -> -0.310755072 | W18: =COS(T39)^2+COS(U39)^2*SIN(T39)^2+COS(V39)^2*SIN(U39)^2*SIN(T39)^2+SIN(T39)^2*SIN(U39)^2*SIN(V39)^2 -> 1 | X18: =COS(T32)*COS(T33)+COS(U32)*SIN(T32)*COS(U33)*SIN(T33)+COS(V32)*SIN(U32)*SIN(T32)*COS(V33)*SIN(U33)*SIN(T33)+SIN(T32)*SIN(U32)*SIN(V32)*COS(W33)*SIN(V33)*SIN(U33)*SIN(T33) -> 0.7179315716 | Z18: =SUMPRODUCT($T25:$X25,$T$22:$X$22) -> 0.25 | AA18: =SUMPRODUCT($T25:$X25,$T$23:$X$23) -> 0.3 | AB18: =SUMPRODUCT($T25:$X25,$T$24:$X$24) -> -0.310755072 | AC18: =SUMPRODUCT($T25:$X25,$T$25:$X$25) -> 1 | AD18: 0.7179315716
B19: 4 | C19: USER INPUT: Enter % increase/decrease in | H19: -0.1 | I19: 0.3 | J19: 0.15 | K19: 0.1 | L19: 1 | N19: 1.249000903e-16 | O19: 0 | P19: -0.1686433302 | Q19: 0.6179315716 | R19: 0 | T19: =COS(T33) -> -0.1 | U19: =COS(T30)*COS(T33)+SIN(T30)*COS(U33)*SIN(T33) -> 0.3 | V19: =COS(T31)*COS(T33)+COS(U31)*SIN(T31)*COS(U33)*SIN(T33)+SIN(T31)*SIN(U31)*COS(V33)*SIN(U33)*SIN(T33) -> -0.01864333021 | W19: =COS(T32)*COS(T33)+COS(U32)*SIN(T32)*COS(U33)*SIN(T33)+COS(V32)*SIN(U32)*SIN(T32)*COS(V33)*SIN(U33)*SIN(T33)+SIN(T32)*SIN(U32)*SIN(V32)*COS(W33)*SIN(V33)*SIN(U33)*SIN(T33) -> 0.7179315716 | X19: =COS(T33)^2+COS(U33)^2*SIN(T33)^2+COS(V33)^2*SIN(U33)^2*SIN(T33)^2+COS(W33)^2*SIN(V33)^2*SIN(U33)^2*SIN(T33)^2+SIN(T33)^2*SIN(U33)^2*SIN(V33)^2*SIN(W33)^2 -> 1 | Z19: =SUMPRODUCT($T26:$X26,$T$22:$X$22) -> -0.1 | AA19: =SUMPRODUCT($T26:$X26,$T$23:$X$23) -> 0.3 | AB19: =SUMPRODUCT($T26:$X26,$T$24:$X$24) -> -0.01864333021 | AC19: =SUMPRODUCT($T26:$X26,$T$25:$X$25) -> 0.7179315716 | AD19: 1
C20: probability (i.e. above/below CDF = 0.5) | H20: (only input green cells to ensure symmetry) | V20: (based on Pourahmadi & Wang, 2015) | Z20: New matrix = Reparm Chol Fact * T(Reparm Chol Fact)
C21: associated with respective decrease/increase | H21: Cholesky Factor | O21: Difference in Cholesky Factors | T21: Reparameterization of Cholesky Factor | AC21: (based on Rebonato and Jackel, 1999)
C22: in stress. Try Step 4 examples below. | H22: =SQRT(H15) -> 1 | I22: 0 | J22: 0 | K22: 0 | L22: 0 | M22: 2 | N22: =T22-H22 -> 0 | S22: 9 | T22: 1 | U22: 0 | V22: 0 | W22: 0 | X22: 0
B23: 5 | C23: Calculate new CDFs based on 4. | H23: =H16/H22 -> 0.5 | I23: =SQRT(I16-H23^2) -> 0.8660254038 | J23: 0 | K23: 0 | L23: 0 | N23: =T23-H23 -> 0 | O23: =U23-I23 -> 0 | T23: =COS(T30) -> 0.5 | U23: =SIN(T30) -> 0.8660254038 | V23: 0 | W23: 0 | X23: 0 | Z23: =IF(OR(AND(ISNUMBER(H37),H37<=1,H37>=-1),ISBLANK(H37)),1-ABS(H37),"ERROR")*IF(OR(AND(ISNUMBER(H38),H38<=1,H38>=-1),ISBLANK(H38)),1-ABS(H38),"ERROR")*IF(OR(AND(ISNUMBER(H39),H39<=1,H39>=-1),ISBLANK(H39)),1-ABS(H39),"ERROR")*IF(OR(AND(ISNUMBER(H40),H40<=1,H40>=-1),ISBLANK(H40)),1-ABS(H40),"ERROR")*IF(OR(AND(ISNUMBER(I38),I38<=1,I38>=-1),ISBLANK(I38)),1-ABS(I38),"ERROR")*IF(OR(AND(ISNUMBER(I39),I39<=1,I39>=-1),ISBLANK(I39)),1-ABS(I39),"ERROR")*IF(OR(AND(ISNUMBER(I40),I40<=1,I40>=-1),ISBLANK(I40)),1-ABS(I40),"ERROR")*IF(OR(AND(ISNUMBER(J39),J39<=1,J39>=-1),ISBLANK(J39)),1-ABS(J39),"ERROR")*IF(OR(AND(ISNUMBER(J40),J40<=1,J40>=-1),ISBLANK(J40)),1-ABS(J40),"ERROR")*IF(OR(AND(ISNUMBER(K40),K40<=1,K40>=-1),ISBLANK(K40)),1-ABS(K40),"ERROR") -> 0.140625 | AA23: Directionally Conditional Probability of Observing a Matrix with at
B24: 6, 7 & 8 | C24: Use Bi-section to obtain new angles so that 6. | H24: =H17/H22 -> -0.25 | I24: =(I17-H24*H23)/I23 -> 0.2598076211 | J24: =SQRT(J17-(H24^2+I24^2)) -> 0.9327379053 | K24: 0 | L24: 0 | N24: 0 | O24: 0 | P24: =V24-J24 -> 0 | T24: =COS(T31) -> -0.25 | U24: =COS(U31)*SIN(T31) -> 0.2598076211 | V24: =SIN(T31)*SIN(U31) -> 0.9327379053 | W24: 0 | X24: 0 | AA24: Least as Large a Change as the New Matrix Based on the Distribution
C25: matches #s from 5. (execute with Ctrl+Shift+Z) | H25: =H18/H22 -> 0.25 | I25: =(I18-(H25*H23))/I23 -> 0.2020725942 | J25: =(J18-(H25*H24+I25*I24))/J24 -> -0.1500957549 | K25: =SQRT(K18-(H25^2+I25^2+J25^2)) -> 0.9349534379 | L25: 0 | N25: 0 | O25: 0 | P25: -0.1723475277 | Q25: =W25-K25 -> -0.04461810997 | T25: =COS(T32) -> 0.25 | U25: =COS(U32)*SIN(T32) -> 0.2020725942 | V25: =COS(V32)*SIN(U32)*SIN(T32) -> -0.3224432826 | W25: =SIN(T32)*SIN(U32)*SIN(V32) -> 0.8903353279 | X25: 0 | AA25: of the Original Matrix
B26: 9 | C26: Reparameterize Cholesky Factor based on 8. | H26: =H19/H22 -> -0.1 | I26: =(I19-(H26*H23))/I23 -> 0.4041451884 | J26: =(J19-(H26*H24+I26*I24))/J24 -> 0.0214422507 | K26: =(K19-(H26*H25+I26*I25+J26*J25))/K25 -> 0.04979041977 | L26: =SQRT(L19-(H26^2+I26^2+J26^2+K26^2)) -> 0.9075945189 | N26: 1.249000903e-16 | O26: 0 | P26: -0.1808046282 | Q26: 0.6352094423 | R26: =X26-L26 -> -0.3313606356 | T26: =COS(T33) -> -0.1 | U26: =COS(U33)*SIN(T33) -> 0.4041451884 | V26: =COS(V33)*SIN(U33)*SIN(T33) -> -0.1593623775 | W26: =COS(W33)*SIN(V33)*SIN(U33)*SIN(T33) -> 0.6849998621 | X26: =SIN(T33)*SIN(U33)*SIN(V33)*SIN(W33) -> 0.5762338833
B27: 10 | C27: New Correlation Matrix = 9. x T(9.) | H27: (numeric errors in Step 2. indicate invalid (non-positive definite) Step 1.) | V27: (based on Rebonato and Jackel, 1999)
H28: Angles (0 to 𝛑 = valid range of each) | O28: Difference in Polar Angles | T28: New Angles Adjusted for Centered Perturbation
B29: Positive Definite Examples for insertion in Step 1. | M29: 3 | S29: 8
B30: EX 1 | H30: =ACOS(H23) -> 1.047197551 | N30: =T30-H30 -> 0 | T30: =ATAN(TAN(H30-PI()/2)+TAN(T37-PI()/2))+PI()/2 -> 1.047197551
B31: 1 | C31: 0 | D31: 0 | E31: 0 | F31: 0 | H31: =ACOS(H24) -> 1.823476582 | I31: =ACOS(I24/(SIN(H31))) -> 1.299139203 | N31: 0 | O31: =U31-I31 -> 0 | T31: =ATAN(TAN(H31-PI()/2)+TAN(T38-PI()/2))+PI()/2 -> 1.823476582 | U31: =ATAN(TAN(I31-PI()/2)+TAN(U38-PI()/2))+PI()/2 -> 1.299139203
B32: 0 | C32: 1 | D32: 0 | E32: 0 | F32: 0 | H32: =ACOS(H25) -> 1.318116072 | I32: =ACOS(I25/SIN(H32)) -> 1.360551156 | J32: =ACOS(J25/(SIN(H32)*SIN(I32))) -> 1.729976324 | N32: 0 | O32: 0 | P32: =V32-J32 -> 0.1882858909 | T32: =ATAN(TAN(H32-PI()/2)+TAN(T39-PI()/2))+PI()/2 -> 1.318116072 | U32: =ATAN(TAN(I32-PI()/2)+TAN(U39-PI()/2))+PI()/2 -> 1.360551156 | V32: =ATAN(TAN(J32-PI()/2)+TAN(V39-PI()/2))+PI()/2 -> 1.918262215
B33: 0 | C33: 0 | D33: 1 | E33: 0 | F33: 0 | H33: =ACOS(H26) -> 1.670963748 | I33: =ACOS(I26/SIN(H33)) -> 1.152525235 | J33: =ACOS(J26/(SIN(H33)*SIN(I33))) -> 1.547210809 | K33: =ACOS(K26/(SIN(H33)*SIN(I33)*SIN(J33))) -> 1.5159915 | N33: 0 | O33: 0 | P33: 0.1997708541 | Q33: =W33-K33 -> -0.8166182683 | T33: =ATAN(TAN(H33-PI()/2)+TAN(T40-PI()/2))+PI()/2 -> 1.670963748 | U33: =ATAN(TAN(I33-PI()/2)+TAN(U40-PI()/2))+PI()/2 -> 1.152525235 | V33: =ATAN(TAN(J33-PI()/2)+TAN(V40-PI()/2))+PI()/2 -> 1.746981663 | W33: =ATAN(TAN(K33-PI()/2)+TAN(W40-PI()/2))+PI()/2 -> 0.699373232
B34: 0 | C34: 0 | D34: 0 | E34: 1 | F34: 0 | I34: (based on Rapisarda, Brigo, & Mercurio, 2007) | S34: (based on Opdyke, J.D., 2020)
B35: 0 | C35: 0 | D35: 0 | E35: 0 | F35: 1 | H35: *USER INPUT: Conditional Probability Change (enter -100%<=Value<=100%) | T35: New Angles (0 to 𝛑 = valid range of each) based on Bi-section on NEW CDFs
B36: EX 2 | M36: 4 | S36: 7
B37: 1 | C37: 0.5 | D37: -0.25 | E37: 0.25 | F37: -0.1 | M37: (enter values, then execute through | T37: 1.570796327
B38: 0.5 | C38: 1 | D38: 0.1 | E38: 0.2 | F38: 0.3 | M38: Step 10. with Ctrl+Shift+Z) | T38: 1.570796327 | U38: 1.570796327
B39: -0.25 | C39: 0.1 | D39: 1 | E39: -0.15 | F39: 0.15 | J39: 0.25 | T39: 1.570796327 | U39: 1.570796327 | V39: 1.769750205
B40: 0.25 | C40: 0.2 | D40: -0.15 | E40: 1 | F40: 0 | J40: 0.25 | K40: -0.75 | T40: 1.570796327 | U40: 1.570796327 | V40: 1.769750205 | W40: 0.7227342478
B41: -0.1 | C41: 0.3 | D41: 0.15 | E41: 0 | F41: 1 | T41: (execute Steps 6. - 10. with Ctrl+Shift+Z)
B42: EX 3 | H42: NEW CDFs | T42: CDFs Based on Bi-sectioned New Angles
B43: 1 | C43: 0.7 | D43: -0.25 | E43: 0.25 | F43: -0.3 | M43: 5 | S43: 6
B44: 0.7 | C44: 1 | D44: -0.4 | E44: 0.3 | F44: 0.15 | H44: =IF(AND(ISNUMBER(H37), AND(-1<=H37, H37<=1)), IF(H37<0,(1+H37)*0.5,IF(H37>=0,0.5+(H37)*0.5)), IF(ISBLANK(H37),0.5,"ERROR")) -> 0.5 | S44: (based on Opdyke, J.D., 2020 -- | T44: =(0.5 - (_xlfn.GAMMA(T$48/2+1)/(SQRT(PI())*_xlfn.GAMMA(T$48/2+0.5))) * COS(T37) * (_xlfn.BETA.DIST(COS(T37)^2,0.5,(1+T$48)/2,TRUE)*EXP(GAMMALN(0.5)+GAMMALN((1+T$48)/2)-GAMMALN(0.5+(1+T$48)/2))*0.5/((COS(T37)^2)^0.5)) ) -> 0.5
B45: -0.25 | C45: -0.4 | D45: 1 | E45: -0.15 | F45: 0.25 | H45: =IF(AND(ISNUMBER(H38), AND(-1<=H38, H38<=1)), IF(H38<0,(1+H38)*0.5,IF(H38>=0,0.5+(H38)*0.5)), IF(ISBLANK(H38),0.5,"ERROR")) -> 0.5 | I45: =IF(AND(ISNUMBER(I38), AND(-1<=I38, I38<=1)), IF(I38<0,(1+I38)*0.5,IF(I38>=0,0.5+(I38)*0.5)), IF(ISBLANK(I38),0.5,"ERROR")) -> 0.5 | S45: eliminates the need for numeric integration) | T45: =(0.5 - (_xlfn.GAMMA(T$48/2+1)/(SQRT(PI())*_xlfn.GAMMA(T$48/2+0.5))) * COS(T38) * (_xlfn.BETA.DIST(COS(T38)^2,0.5,(1+T$48)/2,TRUE)*EXP(GAMMALN(0.5)+GAMMALN((1+T$48)/2)-GAMMALN(0.5+(1+T$48)/2))*0.5/((COS(T38)^2)^0.5)) ) -> 0.5 | U45: =(0.5 - (_xlfn.GAMMA(U$48/2+1)/(SQRT(PI())*_xlfn.GAMMA(U$48/2+0.5))) * COS(U38) * (_xlfn.BETA.DIST(COS(U38)^2,0.5,(1+U$48)/2,TRUE)*EXP(GAMMALN(0.5)+GAMMALN((1+U$48)/2)-GAMMALN(0.5+(1+U$48)/2))*0.5/((COS(U38)^2)^0.5)) ) -> 0.5
B46: 0.25 | C46: 0.3 | D46: -0.15 | E46: 1 | F46: -0.05 | H46: =IF(AND(ISNUMBER(H39), AND(-1<=H39, H39<=1)), IF(H39<0,(1+H39)*0.5,IF(H39>=0,0.5+(H39)*0.5)), IF(ISBLANK(H39),0.5,"ERROR")) -> 0.5 | I46: =IF(AND(ISNUMBER(I39), AND(-1<=I39, I39<=1)), IF(I39<0,(1+I39)*0.5,IF(I39>=0,0.5+(I39)*0.5)), IF(ISBLANK(I39),0.5,"ERROR")) -> 0.5 | J46: =IF(AND(ISNUMBER(J39), AND(-1<=J39, J39<=1)), IF(J39<0,(1+J39)*0.5,IF(J39>=0,0.5+(J39)*0.5)), IF(ISBLANK(J39),0.5,"ERROR")) -> 0.625 | T46: =(0.5 - (_xlfn.GAMMA(T$48/2+1)/(SQRT(PI())*_xlfn.GAMMA(T$48/2+0.5))) * COS(T39) * (_xlfn.BETA.DIST(COS(T39)^2,0.5,(1+T$48)/2,TRUE)*EXP(GAMMALN(0.5)+GAMMALN((1+T$48)/2)-GAMMALN(0.5+(1+T$48)/2))*0.5/((COS(T39)^2)^0.5)) ) -> 0.5 | U46: =(0.5 - (_xlfn.GAMMA(U$48/2+1)/(SQRT(PI())*_xlfn.GAMMA(U$48/2+0.5))) * COS(U39) * (_xlfn.BETA.DIST(COS(U39)^2,0.5,(1+U$48)/2,TRUE)*EXP(GAMMALN(0.5)+GAMMALN((1+U$48)/2)-GAMMALN(0.5+(1+U$48)/2))*0.5/((COS(U39)^2)^0.5)) ) -> 0.5 | V46: =(0.5 - (_xlfn.GAMMA(V$48/2+1)/(SQRT(PI())*_xlfn.GAMMA(V$48/2+0.5))) * COS(V39) * (_xlfn.BETA.DIST(COS(V39)^2,0.5,(1+V$48)/2,TRUE)*EXP(GAMMALN(0.5)+GAMMALN((1+V$48)/2)-GAMMALN(0.5+(1+V$48)/2))*0.5/((COS(V39)^2)^0.5)) ) -> 0.625
B47: -0.3 | C47: 0.15 | D47: 0.25 | E47: -0.05 | F47: 1 | H47: =IF(AND(ISNUMBER(H40), AND(-1<=H40, H40<=1)), IF(H40<0,(1+H40)*0.5,IF(H40>=0,0.5+(H40)*0.5)), IF(ISBLANK(H40),0.5,"ERROR")) -> 0.5 | I47: =IF(AND(ISNUMBER(I40), AND(-1<=I40, I40<=1)), IF(I40<0,(1+I40)*0.5,IF(I40>=0,0.5+(I40)*0.5)), IF(ISBLANK(I40),0.5,"ERROR")) -> 0.5 | J47: =IF(AND(ISNUMBER(J40), AND(-1<=J40, J40<=1)), IF(J40<0,(1+J40)*0.5,IF(J40>=0,0.5+(J40)*0.5)), IF(ISBLANK(J40),0.5,"ERROR")) -> 0.625 | K47: =IF(AND(ISNUMBER(K40), AND(-1<=K40, K40<=1)), IF(K40<0,(1+K40)*0.5,IF(K40>=0,0.5+(K40)*0.5)), IF(ISBLANK(K40),0.5,"ERROR")) -> 0.125 | T47: =(0.5 - (_xlfn.GAMMA(T$48/2+1)/(SQRT(PI())*_xlfn.GAMMA(T$48/2+0.5))) * COS(T40) * (_xlfn.BETA.DIST(COS(T40)^2,0.5,(1+T$48)/2,TRUE)*EXP(GAMMALN(0.5)+GAMMALN((1+T$48)/2)-GAMMALN(0.5+(1+T$48)/2))*0.5/((COS(T40)^2)^0.5)) ) -> 0.5 | U47: =(0.5 - (_xlfn.GAMMA(U$48/2+1)/(SQRT(PI())*_xlfn.GAMMA(U$48/2+0.5))) * COS(U40) * (_xlfn.BETA.DIST(COS(U40)^2,0.5,(1+U$48)/2,TRUE)*EXP(GAMMALN(0.5)+GAMMALN((1+U$48)/2)-GAMMALN(0.5+(1+U$48)/2))*0.5/((COS(U40)^2)^0.5)) ) -> 0.5 | V47: =(0.5 - (_xlfn.GAMMA(V$48/2+1)/(SQRT(PI())*_xlfn.GAMMA(V$48/2+0.5))) * COS(V40) * (_xlfn.BETA.DIST(COS(V40)^2,0.5,(1+V$48)/2,TRUE)*EXP(GAMMALN(0.5)+GAMMALN((1+V$48)/2)-GAMMALN(0.5+(1+V$48)/2))*0.5/((COS(V40)^2)^0.5)) ) -> 0.625 | W47: =(0.5 - (_xlfn.GAMMA(W$48/2+1)/(SQRT(PI())*_xlfn.GAMMA(W$48/2+0.5))) * COS(W40) * (_xlfn.BETA.DIST(COS(W40)^2,0.5,(1+W$48)/2,TRUE)*EXP(GAMMALN(0.5)+GAMMALN((1+W$48)/2)-GAMMALN(0.5+(1+W$48)/2))*0.5/((COS(W40)^2)^0.5)) ) -> 0.125
T48: 4 | U48: 3 | V48: 2 | W48: 1 | X48: = k = #cols-col#
H49: *Step 4 Examples Below:
H50: -25% = decrease CDF 25% towards zero = decrease angle = increase correlation = less diversification = MORE STRESS
H51: +25% = increase CDF 25% towards one = increase angle = decrease correlation = more diversification = LESS STRESS
H52: Try Inserting Examples Below (note that Zhang, Leng, & Tang (2013) and Lu et al. (2020) show the correlations are monotone decreasing in the angles)
N55: Disclaimer:
N56: All information contained in this workbook is intended for informational purposes only and does not in any way constitute advice - financial, legal or otherwise.
K57: 0.5 | N57: The entire contents of this excel workbook, including but not limited to any data, calculations, functions, and formulae, are provided "as is."
N58: J.D. Opdyke and DataMineit, LLC expressly and explicitly disclaim any and all representations and warranties, expressed or implied, including but not limited to
N59: those relating to the currency, accuracy, completeness, and/or appropriateness of the workbook's usage in any context.
H60: 0.5 | N60: By using this workbook, the user assumes any risk or responsibility that its contents may be inaccurate, incomplete, incorrect, or unsuitable
H61: -0.25 | N61: for a particular setting. In no event will J.D. Opdyke or DataMineit, LLC be legally or otherwise responsible or liable in any way for any conclusions
I62: 0.33 | N62: or events based on its usage.
K63: -0.75
H66: -0.25
H67: -0.25 | I67: -0.25
H68: -0.25 | I68: -0.25 | J68: -0.25
H69: -0.25 | I69: -0.25 | J69: -0.25 | K69: -0.25
H72: 0.33
H73: 0.33 | I73: 0.33
H74: 0.33 | I74: 0.33 | J74: 0.33
H75: 0.33 | I75: 0.33 | J75: 0.33 | K75: 0.33

Sheet Angle Dist. C3 - pdf and cdf
A1: angle, θ = | B1: θ=𝛑/2 | C1: θ=(𝛑/2 - 0.5) | D1: θ=(𝛑/2 + 0.5) | E1: θ=𝛑/2 | F1: θ=(𝛑/2 - 1) | G1: θ=(𝛑/2 + 1) | H1: θ=𝛑/2 | I1: θ=(𝛑/2 - 0.5) | J1: θ=(𝛑/2 + 0.5) | K1: θ=𝛑/2 | L1: θ=(𝛑/2 - 1) | M1: θ=(𝛑/2 + 1) | AE1: =A1 -> angle, θ = | AF1: =B1 -> θ=𝛑/2 | AG1: =C1 -> θ=(𝛑/2 - 0.5) | AH1: =D1 -> θ=(𝛑/2 + 0.5) | AI1: =E1 -> θ=𝛑/2 | AJ1: =F1 -> θ=(𝛑/2 - 1) | AK1: =G1 -> θ=(𝛑/2 + 1) | AL1: =H1 -> θ=𝛑/2 | AM1: =I1 -> θ=(𝛑/2 - 0.5) | AN1: =J1 -> θ=(𝛑/2 + 0.5) | AO1: =K1 -> θ=𝛑/2 | AP1: =L1 -> θ=(𝛑/2 - 1)
A2: k = #cols-col# = | B2: 5 | C2: 5 | D2: 5 | E2: 5 | F2: 5 | G2: 5 | H2: 10 | I2: 10 | J2: 10 | K2: 10 | L2: 10 | M2: 10 | AE2: k = #cols-col# = | AF2: 5 | AG2: 5 | AH2: 5 | AI2: 5 | AJ2: 5 | AK2: 5 | AL2: 10 | AM2: 10 | AN2: 10 | AO2: 10 | AP2: 10
A3: θ, numeric = | B3: =PI()/2 -> 1.570796327 | C3: =PI()/2-0.5 -> 1.070796327 | D3: =PI()/2+0.5 -> 2.070796327 | E3: =PI()/2 -> 1.570796327 | F3: =PI()/2-1 -> 0.5707963268 | G3: =PI()/2+1 -> 2.570796327 | H3: =PI()/2 -> 1.570796327 | I3: =PI()/2-0.5 -> 1.070796327 | J3: =PI()/2+0.5 -> 2.070796327 | K3: =PI()/2 -> 1.570796327 | L3: =PI()/2-1 -> 0.5707963268 | M3: =PI()/2+1 -> 2.570796327 | AE3: θ, numeric = | AF3: 1.570796327 | AG3: 1.070796327 | AH3: 2.070796327 | AI3: 1.570796327 | AJ3: 0.5707963268 | AK3: 2.570796327 | AL3: 1.570796327 | AM3: 1.070796327 | AN3: 2.070796327 | AO3: 1.570796327 | AP3: 0.5707963268
A4: increment | B4: 500 | AE4: increment | AF4: 500
B5: =PI()/B4 -> 0.006283185307 | D5: Newly Derived Distribution of the Polar Angle associated with each Correlation: C3 ("Cosecant, Cotangent, Cotangent") | AF5: 0.006283185307 | AH5: Newly Derived Distribution of the Polar Angle associated with each Correlation: C3 ("Cosecant, Cotangent, Cotangent")
B20: PDF | C20: PDF | D20: PDF | E20: PDF | F20: PDF | G20: PDF | H20: PDF | I20: PDF | J20: PDF | K20: PDF | L20: PDF | M20: PDF | AE20: CDF | AF20: CDF | AG20: CDF | AH20: CDF | AI20: CDF | AJ20: CDF | AK20: CDF | AL20: CDF | AM20: CDF | AN20: CDF | AO20: CDF | AP20: CDF
A21: x | B21: C3 | C21: C3 | D21: C3 | E21: C3 | F21: C3 | G21: C3 | H21: C3 | I21: C3 | J21: C3 | K21: C3 | L21: C3 | M21: C3 | AE21: C3 | AF21: C3 | AG21: C3 | AH21: C3 | AI21: C3 | AJ21: C3 | AK21: C3 | AL21: C3 | AM21: C3 | AN21: C3 | AO21: C3 | AP21: C3
A22: 0 | B22: 0 | C22: 0 | D22: 0 | E22: 0 | F22: 0 | G22: 0 | H22: 0 | I22: 0 | J22: 0 | K22: 0 | L22: 0 | M22: 0 | AE22: 0 | AF22: 0 | AG22: 0 | AH22: 0 | AI22: 0 | AJ22: 0 | AK22: 0 | AL22: 0 | AM22: 0 | AN22: 0 | AO22: 0 | AP22: 0
A23: =A22+$B$5 -> 0.006283185307 | B23: =(1+(_xlfn.COT($A23)-_xlfn.COT(B$3))^2)^(-1-B$2/2)*_xlfn.CSC($A23)^2*_xlfn.GAMMA(1+B$2/2)/(SQRT(PI())*_xlfn.GAMMA((1+B$2)/2)) -> 9.180288519e-12 | C23: 9.403923236e-12 | D23: 8.962711168e-12 | E23: 9.180288519e-12 | F23: 9.834459718e-12 | G23: 8.575377458e-12 | H23: 1.240279745e-22 | I23: 1.292524079e-22 | J23: 1.190315415e-22 | K23: 1.240279745e-22 | L23: 1.395618793e-22 | M23: 1.103497885e-22 | AE23: =(0.5 - (_xlfn.GAMMA(B$2/2+1)/(SQRT(PI())*_xlfn.GAMMA(B$2/2+0.5))) * COS(ATAN(TAN($A23-PI()/2)+TAN(B$3-PI()/2))+PI()/2) * (_xlfn.BETA.DIST(COS(ATAN(TAN($A23-PI()/2)+TAN(B$3-PI()/2))+PI()/2)^2,0.5,(1+B$2)/2,TRUE)*EXP(GAMMALN(0.5)+GAMMALN((1+B$2)/2)-GAMMALN(0.5+(1+B$2)/2))*0.5/((COS(ATAN(TAN($A23-PI()/2)+TAN(B$3-PI()/2))+PI()/2)^2)^0.5)) ) -> 9.492406861e-15 | AF23: =(0.5 - (_xlfn.GAMMA(C$2/2+1)/(SQRT(PI())*_xlfn.GAMMA(C$2/2+0.5))) * COS(ATAN(TAN($A23-PI()/2)+TAN(C$3-PI()/2))+PI()/2) * (_xlfn.BETA.DIST(COS(ATAN(TAN($A23-PI()/2)+TAN(C$3-PI()/2))+PI()/2)^2,0.5,(1+C$2)/2,TRUE)*EXP(GAMMALN(0.5)+GAMMALN((1+C$2)/2)-GAMMALN(0.5+(1+C$2)/2))*0.5/((COS(ATAN(TAN($A23-PI()/2)+TAN(C$3-PI()/2))+PI()/2)^2)^0.5)) ) -> 9.436895709e-15 | AG23: =(0.5 - (_xlfn.GAMMA(D$2/2+1)/(SQRT(PI())*_xlfn.GAMMA(D$2/2+0.5))) * COS(ATAN(TAN($A23-PI()/2)+TAN(D$3-PI()/2))+PI()/2) * (_xlfn.BETA.DIST(COS(ATAN(TAN($A23-PI()/2)+TAN(D$3-PI()/2))+PI()/2)^2,0.5,(1+D$2)/2,TRUE)*EXP(GAMMALN(0.5)+GAMMALN((1+D$2)/2)-GAMMALN(0.5+(1+D$2)/2))*0.5/((COS(ATAN(TAN($A23-PI()/2)+TAN(D$3-PI()/2))+PI()/2)^2)^0.5)) ) -> 9.714451465e-15 | AH23: =(0.5 - (_xlfn.GAMMA(E$2/2+1)/(SQRT(PI())*_xlfn.GAMMA(E$2/2+0.5))) * COS(ATAN(TAN($A23-PI()/2)+TAN(E$3-PI()/2))+PI()/2) * (_xlfn.BETA.DIST(COS(ATAN(TAN($A23-PI()/2)+TAN(E$3-PI()/2))+PI()/2)^2,0.5,(1+E$2)/2,TRUE)*EXP(GAMMALN(0.5)+GAMMALN((1+E$2)/2)-GAMMALN(0.5+(1+E$2)/2))*0.5/((COS(ATAN(TAN($A23-PI()/2)+TAN(E$3-PI()/2))+PI()/2)^2)^0.5)) ) -> 9.492406861e-15 | AI23: =(0.5 - (_xlfn.GAMMA(F$2/2+1)/(SQRT(PI())*_xlfn.GAMMA(F$2/2+0.5))) * COS(ATAN(TAN($A23-PI()/2)+TAN(F$3-PI()/2))+PI()/2) * (_xlfn.BETA.DIST(COS(ATAN(TAN($A23-PI()/2)+TAN(F$3-PI()/2))+PI()/2)^2,0.5,(1+F$2)/2,TRUE)*EXP(GAMMALN(0.5)+GAMMALN((1+F$2)/2)-GAMMALN(0.5+(1+F$2)/2))*0.5/((COS(ATAN(TAN($A23-PI()/2)+TAN(F$3-PI()/2))+PI()/2)^2)^0.5)) ) -> 9.048317651e-15 | AJ23: =(0.5 - (_xlfn.GAMMA(G$2/2+1)/(SQRT(PI())*_xlfn.GAMMA(G$2/2+0.5))) * COS(ATAN(TAN($A23-PI()/2)+TAN(G$3-PI()/2))+PI()/2) * (_xlfn.BETA.DIST(COS(ATAN(TAN($A23-PI()/2)+TAN(G$3-PI()/2))+PI()/2)^2,0.5,(1+G$2)/2,TRUE)*EXP(GAMMALN(0.5)+GAMMALN((1+G$2)/2)-GAMMALN(0.5+(1+G$2)/2))*0.5/((COS(ATAN(TAN($A23-PI()/2)+TAN(G$3-PI()/2))+PI()/2)^2)^0.5)) ) -> 1.015854068e-14 | AK23: =(0.5 - (_xlfn.GAMMA(H$2/2+1)/(SQRT(PI())*_xlfn.GAMMA(H$2/2+0.5))) * COS(ATAN(TAN($A23-PI()/2)+TAN(H$3-PI()/2))+PI()/2) * (_xlfn.BETA.DIST(COS(ATAN(TAN($A23-PI()/2)+TAN(H$3-PI()/2))+PI()/2)^2,0.5,(1+H$2)/2,TRUE)*EXP(GAMMALN(0.5)+GAMMALN((1+H$2)/2)-GAMMALN(0.5+(1+H$2)/2))*0.5/((COS(ATAN(TAN($A23-PI()/2)+TAN(H$3-PI()/2))+PI()/2)^2)^0.5)) ) -> -4.440892099e-16 | AL23: =(0.5 - (_xlfn.GAMMA(I$2/2+1)/(SQRT(PI())*_xlfn.GAMMA(I$2/2+0.5))) * COS(ATAN(TAN($A23-PI()/2)+TAN(I$3-PI()/2))+PI()/2) * (_xlfn.BETA.DIST(COS(ATAN(TAN($A23-PI()/2)+TAN(I$3-PI()/2))+PI()/2)^2,0.5,(1+I$2)/2,TRUE)*EXP(GAMMALN(0.5)+GAMMALN((1+I$2)/2)-GAMMALN(0.5+(1+I$2)/2))*0.5/((COS(ATAN(TAN($A23-PI()/2)+TAN(I$3-PI()/2))+PI()/2)^2)^0.5)) ) -> -4.440892099e-16 | AM23: =(0.5 - (_xlfn.GAMMA(J$2/2+1)/(SQRT(PI())*_xlfn.GAMMA(J$2/2+0.5))) * COS(ATAN(TAN($A23-PI()/2)+TAN(J$3-PI()/2))+PI()/2) * (_xlfn.BETA.DIST(COS(ATAN(TAN($A23-PI()/2)+TAN(J$3-PI()/2))+PI()/2)^2,0.5,(1+J$2)/2,TRUE)*EXP(GAMMALN(0.5)+GAMMALN((1+J$2)/2)-GAMMALN(0.5+(1+J$2)/2))*0.5/((COS(ATAN(TAN($A23-PI()/2)+TAN(J$3-PI()/2))+PI()/2)^2)^0.5)) ) -> -3.330669074e-16 | AN23: =(0.5 - (_xlfn.GAMMA(K$2/2+1)/(SQRT(PI())*_xlfn.GAMMA(K$2/2+0.5))) * COS(ATAN(TAN($A23-PI()/2)+TAN(K$3-PI()/2))+PI()/2) * (_xlfn.BETA.DIST(COS(ATAN(TAN($A23-PI()/2)+TAN(K$3-PI()/2))+PI()/2)^2,0.5,(1+K$2)/2,TRUE)*EXP(GAMMALN(0.5)+GAMMALN((1+K$2)/2)-GAMMALN(0.5+(1+K$2)/2))*0.5/((COS(ATAN(TAN($A23-PI()/2)+TAN(K$3-PI()/2))+PI()/2)^2)^0.5)) ) -> -4.440892099e-16 | AO23: =(0.5 - (_xlfn.GAMMA(L$2/2+1)/(SQRT(PI())*_xlfn.GAMMA(L$2/2+0.5))) * COS(ATAN(TAN($A23-PI()/2)+TAN(L$3-PI()/2))+PI()/2) * (_xlfn.BETA.DIST(COS(ATAN(TAN($A23-PI()/2)+TAN(L$3-PI()/2))+PI()/2)^2,0.5,(1+L$2)/2,TRUE)*EXP(GAMMALN(0.5)+GAMMALN((1+L$2)/2)-GAMMALN(0.5+(1+L$2)/2))*0.5/((COS(ATAN(TAN($A23-PI()/2)+TAN(L$3-PI()/2))+PI()/2)^2)^0.5)) ) -> -4.440892099e-16 | AP23: =(0.5 - (_xlfn.GAMMA(M$2/2+1)/(SQRT(PI())*_xlfn.GAMMA(M$2/2+0.5))) * COS(ATAN(TAN($A23-PI()/2)+TAN(M$3-PI()/2))+PI()/2) * (_xlfn.BETA.DIST(COS(ATAN(TAN($A23-PI()/2)+TAN(M$3-PI()/2))+PI()/2)^2,0.5,(1+M$2)/2,TRUE)*EXP(GAMMALN(0.5)+GAMMALN((1+M$2)/2)-GAMMALN(0.5+(1+M$2)/2))*0.5/((COS(ATAN(TAN($A23-PI()/2)+TAN(M$3-PI()/2))+PI()/2)^2)^0.5)) ) -> -3.330669074e-16
A24: =A23+$B$5 -> 0.01256637061 | B24: 2.9374024e-10 | C24: 3.082501737e-10 | D24: 2.800056442e-10 | E24: 2.9374024e-10 | F24: 3.373213304e-10 | G24: 2.564763309e-10 | H24: 1.269795785e-19 | I24: 1.379211362e-19 | J24: 1.169721478e-19 | K24: 1.269795785e-19 | L24: 1.609640099e-19 | M24: 1.006316888e-19 | AE24: 6.151745779e-13 | AF24: 5.904721156e-13 | AG24: 6.410982856e-13 | AH24: 6.151745779e-13 | AI24: 5.47673018e-13 | AJ24: 6.925571228e-13 | AK24: -3.330669074e-16 | AL24: -4.440892099e-16 | AM24: -3.330669074e-16 | AN24: -3.330669074e-16 | AO24: -4.440892099e-16 | AP24: -4.440892099e-16
A25: 0.01884955592 | B25: 2.230223054e-09 | C25: 2.397774083e-09 | D25: 2.075919255e-09 | E25: 2.230223054e-09 | F25: 2.747309577e-09 | G25: 1.8214107e-09 | H25: 7.319873774e-18 | I25: 8.287717774e-18 | J25: 6.473280577e-18 | K25: 7.319873774e-18 | L25: 1.046521379e-17 | M25: 5.173072807e-18 | AE25: 7.006950575e-12 | AF25: 6.589284673e-12 | AG25: 7.455813744e-12 | AH25: 7.006950575e-12 | AI25: 5.890454791e-12 | AJ25: 8.378187033e-12 | AK25: -4.440892099e-16 | AL25: -4.440892099e-16 | AM25: -4.440892099e-16 | AN25: -4.440892099e-16 | AO25: -3.330669074e-16 | AP25: -3.330669074e-16
A26: 0.02513274123 | B26: 9.395977466e-09 | C26: 1.035031205e-08 | D26: 8.540883473e-09 | E26: 9.395977466e-09 | F26: 1.242434557e-08 | G26: 7.182319979e-09 | H26: 1.299244609e-16 | I26: 1.533594696e-16 | J26: 1.103195157e-16 | K26: 1.299244609e-16 | L26: 2.097431934e-16 | M26: 8.197337893e-17 | AE26: 3.936295734e-11 | AF26: 3.627137479e-11 | AG26: 4.276612398e-11 | AH26: 3.936295734e-11 | AI26: 3.126587877e-11 | AJ26: 5.00142705e-11 | AK26: -3.330669074e-16 | AL26: -4.440892099e-16 | AM26: -4.440892099e-16 | AN26: -3.330669074e-16 | AO26: -4.440892099e-16 | AP26: -3.330669074e-16
A27: 0.03141592654 | B27: 2.866575833e-08 | C27: 3.235611212e-08 | D27: 2.544861041e-08 | E27: 2.866575833e-08 | F27: 4.071560737e-08 | G27: 2.052274406e-08 | H27: 1.209299465e-15 | I27: 1.488309013e-15 | J27: 9.860669055e-16 | K27: 1.209299465e-15 | L27: 2.206920495e-15 | M27: 6.819350189e-16 | AE27: 1.501243574e-10 | AF27: 1.355601742e-10 | AG27: 1.665469429e-10 | AH27: 1.501243574e-10 | AI27: 1.127303806e-10 | AJ27: 2.028124335e-10 | AK27: -3.330669074e-16 | AL27: -4.440892099e-16 | AM27: -3.330669074e-16 | AN27: -3.330669074e-16 | AO27: -4.440892099e-16 | AP27: -3.330669074e-16
A28: 0.03769911184 | B28: 7.130376923e-08 | C28: 8.247363424e-08 | D28: 6.182943962e-08 | E28: 7.130376923e-08 | F28: 1.088603424e-07 | G28: 4.784297169e-08 | H28: 7.482245717e-15 | I28: 9.602390351e-15 | J28: 5.859873398e-15 | K28: 7.482245717e-15 | L28: 1.545412152e-14 | M28: 3.775338994e-15 | AE28: 4.481475191e-10 | AF28: 3.965882067e-10 | AG28: 5.07696829e-10 | AH28: 4.481475191e-10 | AI28: 3.183156516e-10 | AJ28: 6.441052136e-10 | AK28: -3.330669074e-16 | AL28: -4.440892099e-16 | AM28: -3.330669074e-16 | AN28: -3.330669074e-16 | AO28: -3.330669074e-16 | AP28: -3.330669074e-16
A29: 0.04398229715 | B29: 1.540496355e-07 | C29: 1.825995823e-07 | D29: 1.304876069e-07 | E29: 1.540496355e-07 | F29: 2.529713206e-07 | G29: 9.693548928e-08 | H29: 3.492435069e-14 | I29: 4.674225525e-14 | J29: 2.627502081e-14 | K29: 3.492435069e-14 | L29: 8.173417376e-14 | M29: 1.578526928e-14 | AE29: 1.129698002e-09 | AF29: 9.798398759e-10 | AG29: 1.306979303e-09 | AH29: 1.129698002e-09 | AI29: 7.594254114e-10 | AJ29: 1.728415189e-09 | AK29: -2.220446049e-16 | AL29: -2.220446049e-16 | AM29: -2.220446049e-16 | AN29: -2.220446049e-16 | AO29: -3.330669074e-16 | AP29: 0
A30: 0.05026548246 | B30: 3.001968026e-07 | C30: 3.646755801e-07 | D30: 2.484192139e-07 | E30: 3.001968026e-07 | F30: 5.305952648e-07 | G30: 1.772661219e-07 | H30: 1.326230816e-13 | I30: 1.851302216e-13 | J30: 9.586697779e-14 | K30: 1.326230816e-13 | L30: 3.520952885e-13 | M30: 5.375567049e-14 | AE30: 2.516247322e-09 | AF30: 2.139225574e-09 | AG30: 2.973075786e-09 | AH30: 2.516247322e-09 | AI30: 1.601763389e-09 | AJ30: 4.100593365e-09 | AK30: 3.330669074e-16 | AL30: 5.551115123e-17 | AM30: 4.996003611e-16 | AN30: 3.330669074e-16 | AO30: -1.110223025e-16 | AP30: 1.054711873e-15
A31: 0.05654866776 | B31: 5.406618636e-07 | C31: 6.731490375e-07 | D31: 4.371407475e-07 | E31: 5.406618636e-07 | F31: 1.02925348e-06 | G31: 2.997935213e-07 | H31: 4.301881711e-13 | I31: 6.263738145e-13 | J31: 2.988286758e-13 | K31: 4.301881711e-13 | L31: 1.297080511e-12 | M31: 1.565394861e-13 | AE31: 5.099015044e-09 | AF31: 4.249496421e-09 | AG31: 6.153292653e-09 | AH31: 5.099015044e-09 | AI31: 3.075304678e-09 | AJ31: 8.856168965e-09 | AK31: 1.887379142e-15 | AL31: 1.221245327e-15 | AM31: 2.72004641e-15 | AN31: 1.887379142e-15 | AO31: 4.996003611e-16 | AP31: 5.662137426e-15
A32: 0.06283185307 | B32: 9.150433276e-07 | C32: 1.16770634e-06 | D32: 7.229373444e-07 | E32: 9.150433276e-07 | F32: 1.877453388e-06 | G32: 4.767518623e-07 | H32: 1.232225828e-12 | I32: 1.871627491e-12 | J32: 8.227134451e-13 | K32: 1.232225828e-12 | L32: 4.22440969e-12 | M32: 4.029875002e-13 | AE32: 9.59019919e-09 | AF32: 7.835466054e-09 | AG32: 1.18205768e-08 | AH32: 9.59019919e-09 | AI32: 5.483007159e-09 | AJ32: 1.776283937e-08 | AK32: 6.605826997e-15 | AL32: 4.440892099e-15 | AM32: 9.880984919e-15 | AN32: 6.605826997e-15 | AO32: 2.164934898e-15 | AP32: 2.142730438e-14
A33: 0.06911503838 | B33: =(1+(_xlfn.COT($A33)-_xlfn.COT(B$3))^2)^(-1-B$2/2)*_xlfn.CSC($A33)^2*_xlfn.GAMMA(1+B$2/2)/(SQRT(PI())*_xlfn.GAMMA((1+B$2)/2)) -> 1.472668356e-06 | C33: 1.926297026e-06 | D33: 1.13703936e-06 | E33: 1.472668356e-06 | F33: 3.258769162e-06 | G33: 7.214154082e-07 | H33: 3.191662055e-12 | I33: 5.057477796e-12 | J33: 2.048576177e-12 | K33: 3.191662055e-12 | L33: 1.245539288e-11 | M33: 9.391311772e-13 | AE33: 1.698082158e-08 | AF33: 1.360256363e-08 | AG33: 2.137860849e-08 | AH33: 1.698082158e-08 | AI33: 9.208090901e-09 | AJ33: 3.356044548e-08 | AK33: 1.970645869e-14 | AL33: 1.298960939e-14 | AM33: 3.025357742e-14 | AN33: 1.970645869e-14 | AO33: 6.106226635e-15 | AP33: 6.96664948e-14
A34: 0.07539822369 | B34: 2.273626002e-06 | C34: 3.048468068e-06 | D34: 1.71573519e-06 | E34: 2.273626002e-06 | F34: 5.429718434e-06 | G34: 1.047858689e-06 | H34: 7.607554023e-12 | I34: 1.257711321e-11 | J34: 4.695063193e-12 | K34: 7.607554023e-12 | L34: 3.383334652e-11 | M34: 2.016189616e-12 | AE34: 2.860510773e-08 | AF34: 2.246829101e-08 | AG34: 3.678685945e-08 | AH34: 2.860510773e-08 | AI34: 1.471982014e-08 | AJ34: 6.036092554e-08 | AK34: 5.17919041e-14 | AL34: 3.308464613e-14 | AM34: 8.243405958e-14 | AN34: 5.17919041e-14 | AO34: 1.498801083e-14 | AP34: 2.047806369e-13
A35: 0.08168140899 | B35: 3.389785507e-06 | C35: 4.65902776e-06 | D35: 2.500427714e-06 | E35: 3.389785507e-06 | F35: 8.742315707e-06 | G35: 1.470722179e-06 | H35: 1.691030448e-11 | I35: 2.916982675e-11 | J35: 1.003679381e-11 | K35: 1.691030448e-11 | L35: 8.58028276e-11 | M35: 4.040919075e-12 | AE35: 4.621131328e-08 | AF35: 3.559420864e-08 | AG35: 6.070762609e-08 | AH35: 4.621131328e-08 | AI35: 2.257778969e-08 | AJ35: 1.041747775e-07 | AK35: 1.253996906e-13 | AL35: 7.749356712e-14 | AM35: 2.069455718e-13 | AN35: 1.253996906e-13 | AO35: 3.352873534e-14 | AP35: 5.574984918e-13
A36: 0.0879645943 | B36: 4.905798224e-06 | C36: 6.912058972e-06 | D36: 3.537641157e-06 | E36: 4.905798224e-06 | F36: 1.367236602e-05 | G36: 2.004990337e-06 | H36: 3.541818921e-11 | I36: 6.374992009e-11 | J36: 2.022110127e-11 | K36: 3.541818921e-11 | L36: 2.052641956e-10 | M36: 7.63940239e-12 | AE36: 7.203889796e-08 | AF36: 5.441811562e-08 | AG36: 9.667717171e-08 | AH36: 7.203889796e-08 | AI36: 3.3434776e-08 | AJ36: 1.735966536e-07 | AK36: 2.834399382e-13 | AL36: 1.693645224e-13 | AM36: 4.861666625e-13 | AN36: 2.834399382e-13 | AO36: 6.911138328e-14 | AP36: 1.421862628e-12
A37: 0.09424777961 | B37: 6.920081751e-06 | C37: 9.995301694e-06 | D37: 4.878984655e-06 | E37: 6.920081751e-06 | F37: 2.085477916e-05 | G37: 2.665786543e-06 | H37: 7.047408411e-11 | I37: 1.323654407e-10 | J37: 3.871079723e-11 | K37: 7.047408411e-11 | L37: 4.670184898e-10 | M37: 1.373488792e-11 | AE37: 1.089019393e-07 | AF37: 8.068613677e-08 | AG37: 1.493032324e-07 | AH37: 1.089019393e-07 | AI37: 4.803824444e-08 | AJ37: 2.806900494e-07 | AK37: 6.048495038e-13 | AL37: 3.488875855e-13 | AM37: 1.078581668e-12 | AN37: 6.048495038e-13 | AO37: 1.346700529e-13 | AP37: 3.430145057e-12
A38: 0.1005309649 | B38: 9.545784884e-06 | C38: 1.413492483e-05 | D38: 6.581078281e-06 | E38: 9.545784884e-06 | F38: 3.112744067e-05 | G38: 3.468187672e-06 | H38: 1.341004629e-10 | I38: 2.628360269e-10 | J38: 7.088398557e-11 | K38: 1.341004629e-10 | L38: 1.017249765e-09 | M38: 2.363977446e-11 | AE38: 1.602786697e-07 | AF38: 1.164844556e-07 | AG38: 2.244912742e-07 | AH38: 1.602786697e-07 | AI38: 6.723062923e-08 | AJ38: 4.421198839e-07 | AK38: 1.228295243e-12 | AL38: 6.843414724e-13 | AM38: 2.277733557e-12 | AN38: 1.228295243e-12 | AO38: 2.495781359e-13 | AP38: 7.885969655e-12
A39: 0.1068141502 | B39: 1.291173202e-05 | C39: 1.9600707e-05 | D39: 8.705446822e-06 | E39: 1.291173202e-05 | F39: 4.558547698e-05 | G39: 4.427059703e-06 | H39: 2.453443142e-10 | I39: 5.018271009e-10 | J39: 1.248249885e-10 | K39: 2.453443142e-10 | L39: 2.132719361e-09 | M39: 3.916133587e-11 | AE39: 2.304070144e-07 | AF39: 1.642704827e-07 | AG39: 3.297020049e-07 | AH39: 2.304070144e-07 | AI39: 9.194851275e-08 | AJ39: 6.805923334e-07 | AK39: 2.388977904e-12 | AL39: 1.285083151e-12 | AM39: 4.606759418e-12 | AN39: 2.388977904e-12 | AO39: 4.434785872e-13 | AP39: 1.738148514e-11
A40: 0.1130973355 | B40: 1.716334564e-05 | C40: 2.671164597e-05 | D40: 1.131838614e-05 | E40: 1.716334564e-05 | F40: 6.564810411e-05 | G40: 5.556914735e-06 | H40: 4.335217461e-10 | I40: 9.253860475e-10 | J40: 2.123430883e-10 | K40: 4.335217461e-10 | L40: 4.323031912e-09 | M40: 6.272031522e-11 | AE40: 3.243859933e-07 | AF40: 2.269032648e-07 | AG40: 4.742427758e-07 | AH40: 3.243859933e-07 | AI40: 1.232208415e-07 | AJ40: 1.026673908e-06 | AK40: 4.471534254e-12 | AL40: 2.322808612e-12 | AM40: 8.967493415e-12 | AN40: 4.471534254e-12 | AO40: 7.585598816e-13 | AP40: 3.691025263e-11
A41: 0.1193805208 | B41: 2.246354558e-05 | C41: 3.584201556e-05 | D41: 1.449080654e-05 | E41: 2.246354558e-05 | F41: 9.314065969e-05 | G41: 6.871789093e-06 | H41: 7.426148004e-10 | I41: 1.654308022e-09 | J41: 3.502579769e-10 | K41: 7.426148004e-10 | L41: 8.503760826e-09 | M41: 9.74811146e-11 | AE41: 4.482828479e-07 | AF41: 3.076729821e-07 | AG41: 6.695956232e-07 | AH41: 4.482828479e-07 | AI41: 1.62166307e-07 | AJ41: 1.521076772e-06 | AK41: 8.088529846e-12 | AL41: 4.058364755e-12 | AM41: 1.687044948e-11 | AN41: 8.088529846e-12 | AO41: 1.254996107e-12 | AP41: 7.582806605e-11
A42: 0.1256637061 | B42: 2.899362376e-05 | C42: 4.742788841e-05 | D42: 1.829805711e-05 | E42: 2.899362376e-05 | F42: 0.0001303948928 | G42: 8.385141627e-06 | H42: 1.237120456e-09 | I42: 2.876129828e-09 | J42: 5.619925068e-10 | K42: 1.237120456e-09 | L42: 1.628428526e-08 | M42: 1.47491976e-10 | AE42: 6.092457412e-07 | AF42: 4.103293988e-07 | AG42: 9.297848215e-07 | AH42: 6.092457412e-07 | AI42: 2.09990028e-07 | AJ42: 2.2175151e-06 | AK42: 1.418992701e-11 | AL42: 6.878331238e-12 | AM42: 3.0781655e-11 | AN42: 1.418992701e-11 | AO42: 2.015443368e-12 | AP42: 1.512321379e-10
A43: 0.1319468915 | B43: =(1+(_xlfn.COT($A43)-_xlfn.COT(B$3))^2)^(-1-B$2/2)*_xlfn.CSC($A43)^2*_xlfn.GAMMA(1+B$2/2)/(SQRT(PI())*_xlfn.GAMMA((1+B$2)/2)) -> 3.695409309e-05 | C43: 6.197414193e-05 | D43: 2.281973473e-05 | E43: 3.695409309e-05 | F43: 0.0001803711326 | G43: 1.010977103e-05 | H43: 2.009703956e-09 | I43: 4.876087286e-09 | J43: 8.795145297e-10 | K43: 2.009703956e-09 | L43: 3.04386571e-08 | M43: 2.178332979e-10 | AE43: 8.156218743e-07 | AF43: 5.391091594e-07 | AG43: 1.27178693e-06 | AH43: 8.156218743e-07 | AI43: 2.679796522e-07 | AJ43: 3.186258252e-06 | AK43: 2.421440826e-11 | AL43: 1.134159433e-11 | AM43: 5.463307584e-11 | AN43: 2.421440826e-11 | AO43: 3.150923966e-12 | AP43: 2.93681135e-10
A44: 0.1382300768 | B44: 4.656550938e-05 | C44: 8.006196346e-05 | D44: 2.813948097e-05 | E44: 4.656550938e-05 | F44: 0.00024680658 | G44: 1.205775074e-05 | H44: 3.191065411e-09 | I44: 8.080034454e-09 | J44: 1.345670286e-09 | K44: 3.191065411e-09 | L44: 5.566468804e-08 | M44: 3.147720637e-10 | AE44: 1.077080851e-06 | AF44: 6.987618463e-07 | AG44: 1.715986417e-06 | AH44: 1.077080851e-06 | AI44: 3.375009955e-07 | AJ44: 4.518531231e-06 | AK44: 4.029726552e-11 | AL44: 1.824096429e-11 | AM44: 9.456424532e-11 | AN44: 4.029726552e-11 | AO44: 4.80837592e-12 | AP44: 5.567110106e-10
A45: 0.1445132621 | B45: 5.806926487e-05 | C45: 0.0001023568692 | D45: 3.434476985e-05 | E45: 5.806926487e-05 | F45: 0.0003343946735 | G45: 1.424037981e-05 | H45: 4.962490023e-09 | I45: 1.311313408e-08 | J45: 2.016951983e-09 | K45: 4.962490023e-09 | L45: 9.979146542e-08 | M45: 4.459202644e-10 | AE45: 1.404743121e-06 | AF45: 8.9457473e-07 | AG45: 2.286680052e-06 | AH45: 1.404743121e-06 | AI45: 4.19993322e-07 | AJ45: 6.331941713e-06 | AK45: 6.554579102e-11 | AL45: 2.868011384e-11 | AM45: 1.599814725e-10 | AN45: 6.554579102e-11 | AO45: 7.178091455e-12 | AP45: 1.032427255e-09
A46: 0.1507964474 | B46: 7.172835244e-05 | C46: 0.0001296172497 | D46: 4.152668914e-05 | E46: 7.172835244e-05 | F46: 0.0004490012723 | G46: 1.666814832e-05 | H46: 7.571618108e-09 | I46: 2.08791127e-08 | J46: 2.96674187e-09 | K46: 7.571618108e-09 | L46: 1.756768357e-07 | M46: 6.203951828e-10 | AE46: 1.811313312e-06 | AF46: 1.132396166e-06 | AG46: 3.012633323e-06 | AH46: 1.811313312e-06 | AI46: 5.169643629e-07 | AJ46: 8.777146502e-06 | AK46: 1.044062614e-10 | AL46: 4.416861321e-11 | AM46: 2.650459296e-10 | AN46: 1.044062614e-10 | AO46: 1.05026543e-11 | AP46: 1.876698519e-09
A47: 0.1570796327 | B47: 8.782809909e-05 | C47: 0.0001627034525 | D47: 4.977971751e-05 | E47: 8.782809909e-05 | F47: 0.0005979242754 | G47: 1.935071546e-05 | H47: 1.135204115e-08 | I47: 3.26660582e-08 | J47: 4.289074363e-09 | K47: 1.135204115e-08 | L47: 3.041555411e-07 | M47: 8.48979443e-10 | AE47: 2.311218277e-06 | AF47: 1.418657601e-06 | AG47: 3.927692238e-06 | AH47: 2.311218277e-06 | AI47: 6.29985159e-07 | AJ47: 1.204600905e-05 | AK47: 1.631391688e-10 | AL47: 6.673983588e-11 | AM47: 4.307413315e-10 | AN47: 1.631391688e-10 | AO47: 1.508737579e-11 | AP47: 3.349344635e-09
A48: 0.163362818 | B48: 0.0001066768678 | C48: 0.0002025874094 | D48: 5.920149965e-05 | E48: 0.0001066768678 | F48: 0.0007902042576 | G48: 2.229689905e-05 | H48: 1.674740418e-08 | I48: 5.028615246e-08 | J48: 6.10295654e-09 | K48: 1.674740418e-08 | L48: 5.185717241e-07 | M48: 1.144278835e-09 | AE48: 2.920749639e-06 | AF48: 1.760394172e-06 | AG48: 5.071453894e-06 | AH48: 2.920749639e-06 | AI48: 7.606848008e-07 | AJ48: 1.638154425e-05 | AK48: 2.504327856e-10 | AL48: 9.90941218e-11 | AM48: 6.877077241e-10 | AN48: 2.504327856e-10 | AO48: 2.131078647e-11 | AP48: 5.877490328e-09
A49: 0.1696460033 | B49: 0.0001286067264 | C49: 0.0002503628145 | D49: 6.989262126e-05 | E49: 0.0001286067264 | F49: 0.001036994729 | G49: 2.551467481e-05 | H49: 2.434077254e-08 | I49: 7.625840948e-08 | J49: 8.557285757e-09 | K49: 2.434077254e-08 | L49: 8.716786572e-07 | M49: 1.520876052e-09 | AE49: 3.658210654e-06 | AF49: 2.165263895e-06 | AG49: 6.489999272e-06 | AH49: 3.658210654e-06 | AI49: 9.107451356e-07 | AJ49: 2.208999758e-05 | AK49: 3.781845392e-10 | AL49: 1.447706954e-10 | AM49: 1.080083245e-09 | AN49: 3.781845392e-10 | AO49: 2.963695955e-11 | AP49: 1.015434276e-08
A50: 0.1759291886 | B50: 0.000153974083 | C50: 0.0003072558531 | D50: 8.195638547e-05 | E50: 0.000153974083 | F50: 0.001352001708 | G50: 2.901118401e-05 | H50: 3.489010231e-08 | I50: 1.140454658e-07 | J50: 1.18364012e-08 | K50: 3.489010231e-08 | L50: 1.446044245e-06 | M50: 1.99547867e-09 | AE50: 4.544067164e-06 | AF50: 2.641565436e-06 | AG50: 8.236691703e-06 | AH50: 4.544067164e-06 | AI50: 1.081895496e-06 | AJ50: 2.955546295e-05 | AK50: 5.624838928e-10 | AL50: 2.083526685e-10 | AM50: 1.670657668e-09 | AN50: 5.624838928e-10 | AO50: 4.062777892e-11 | AP50: 1.729162424e-08
A51: 0.1822123739 | B51: 0.0001831602858 | C51: 0.0003746364809 | D51: 9.54985922e-05 | E51: 0.0001831602858 | F51: 0.001752003396 | G51: 3.27927484e-05 | H51: 4.937073755e-08 | I51: 1.683577804e-07 | J51: 1.616630401e-08 | K51: 4.937073755e-08 | L51: 2.36960436e-06 | M51: 2.587059874e-09 | AE51: 5.601102437e-06 | AF51: 3.198254493e-06 | AG51: 1.037304449e-05 | AH51: 5.601102437e-06 | AI51: 1.2759075e-06 | AJ51: 3.925750831e-05 | AK51: 8.248416394e-10 | AL51: 2.957087353e-10 | AM51: 2.547717814e-09 | AN51: 8.248416394e-10 | AO51: 5.495764954e-11 | AP51: 2.905253377e-08
A52: 0.1884955592 | B52: 0.0002165721877 | C52: 0.0004540302456 | D52: 0.0001106273216 | E52: 0.0002165721877 | F52: 0.002257461824 | G52: 3.686489096e-05 | H52: 6.902594445e-08 | I52: 2.455412887e-07 | J52: 2.182157803e-08 | K52: 6.902594445e-08 | L52: 3.838712711e-06 | M52: 3.316990663e-09 | AE52: 6.854575663e-06 | AF52: 3.8449588e-06 | AG52: 1.29696611e-05 | AH52: 6.854575663e-06 | AI52: 1.494589965e-06 | AJ52: 5.179234881e-05 | AK52: 1.193709631e-09 | AL52: 4.142762799e-10 | AM52: 3.834057849e-09 | AN52: 1.193709631e-09 | AO52: 7.342726427e-11 | AP52: 4.820452937e-08
A53: 0.1947787445 | B53: =(1+(_xlfn.COT($A53)-_xlfn.COT(B$3))^2)^(-1-B$2/2)*_xlfn.CSC($A53)^2*_xlfn.GAMMA(1+B$2/2)/(SQRT(PI())*_xlfn.GAMMA((1+B$2)/2)) -> 0.0002546426743 | C53: 0.0005471306407 | D53: 0.0001274527228 | E53: 0.0002546426743 | F53: 0.002893239319 | G53: 4.12323617e-05 | H53: 9.542658093e-08 | I53: 3.540676512e-07 | J53: 2.91330408e-08 | K53: 9.542658093e-08 | L53: 6.152018862e-06 | M53: 4.209162485e-09 | AE53: 8.332383878e-06 | AF53: 4.591991787e-06 | AG53: 1.610725131e-05 | AH53: 8.332383878e-06 | AI53: 1.739783968e-06 | AJ53: 6.789818546e-05 | AK53: 1.706347175e-09 | AL53: 5.733910013e-10 | AM53: 5.698734984e-09 | AN53: 1.706347175e-09 | AO53: 9.697986858e-11 | AP53: 7.904889437e-08
A54: 0.2010619298 | B54: 0.0002978311531 | C54: 0.0006558119744 | D54: 0.0001460868086 | E54: 0.0002978311531 | F54: 0.00368943347 | G54: 4.589916733e-05 | H54: 1.305410904e-07 | I54: 5.051497977e-07 | J54: 3.849615143e-08 | K54: 1.305410904e-07 | L54: 9.75986084e-06 | M54: 5.29009946e-09 | AE54: 1.00652271e-05 | AF54: 5.450364934e-06 | AG54: 1.98777266e-05 | AH54: 1.00652271e-05 | AI54: 2.013358079e-06 | AJ54: 8.848541041e-05 | AK54: 2.411092326e-09 | AL54: 7.846647776e-10 | AM54: 8.372288418e-09 | AN54: 2.411092326e-09 | AO54: 1.267164151e-10 | AP54: 1.282090246e-07
A55: 0.2073451151 | B55: 0.0003466240055 | C55: 0.0007821427314 | D55: 0.0001666432573 | E55: 0.0003466240055 | F55: 0.00468234475 | G55: 5.086860407e-05 | H55: 1.768171e-07 | I55: 7.135095119e-07 | J55: 5.038019913e-08 | K55: 1.768171e-07 | L55: 1.533570815e-05 | M55: 6.589059586e-09 | AE55: 1.208677639e-05 | AF55: 6.431798851e-06 | AG55: 2.438537798e-05 | AH55: 1.208677639e-05 | AI55: 2.317203792e-06 | AJ55: 0.0001146724677 | AK55: 3.370111523e-09 | AL55: 1.062421873e-09 | AM55: 1.216628676e-08 | AN55: 3.370111523e-09 | AO55: 1.639136049e-10 | AP55: 2.057943239e-07
A56: 0.2136283004 | B56: 0.0004015349986 | C56: 0.0009283993988 | D56: 0.0001892372218 | E56: 0.0004015349986 | F56: 0.005915591081 | G56: 5.614329278e-05 | H56: 2.372759937e-07 | I56: 9.983283897e-07 | J56: 6.533829338e-08 | K56: 2.372759937e-07 | L56: 2.387869005e-05 | M56: 8.138124497e-09 | AE56: 1.443384468e-05 | AF56: 7.548733139e-06 | AG56: 2.974813925e-05 | AH56: 1.443384468e-05 | AI56: 2.653231173e-06 | AJ56: 0.000147828248 | AK56: 4.662698561e-09 | AL56: 1.424192764e-09 | AM56: 1.749825812e-08 | AN56: 4.662698561e-09 | AO56: 2.100405405e-10 | AP56: 3.271051352e-07
A57: 0.2199114858 | B57: 0.0004631056576 | C57: 0.001097080721 | D57: 0.0002139851469 | E57: 0.0004631056576 | F57: 0.007441383008 | G57: 6.172521579e-05 | H57: 3.156219245e-07 | I57: 1.384418657e-06 | J57: 8.401817359e-08 | K57: 3.156219245e-07 | L57: 3.685958398e-05 | M57: 9.972277573e-09 | AE57: 1.714656001e-05 | AF57: 8.81433508e-06 | AG57: 3.609893845e-05 | AH57: 1.714656001e-05 | AI57: 3.023364728e-06 | AJ57: 0.0001896219842 | AK57: 6.389215712e-09 | AL57: 1.891274526e-09 | AM57: 2.492326306e-08 | AN57: 6.389215712e-09 | AO57: 2.667771559e-10 | AP57: 5.151108876e-07
A58: 0.2261946711 | B58: 0.0005319055961 | C58: 0.001290922338 | D58: 0.0002410045947 | E58: 0.0005319055961 | F58: 0.00932197176 | G58: 6.761575482e-05 | H58: 4.163668159e-07 | I58: 1.903656086e-06 | J58: 1.071738534e-07 | K58: 4.163668159e-07 | L58: 5.642705046e-05 | M58: 1.212947034e-08 | AE58: 2.026854099e-05 | AF58: 1.02425072e-05 | AG58: 4.35871402e-05 | AH58: 2.026854099e-05 | AI58: 3.429539514e-06 | AJ58: 0.0002420816962 | AK58: 8.675766827e-09 | AL58: 2.48936205e-09 | AM58: 3.517362696e-08 | AN58: 8.675766827e-09 | AO58: 3.360322576e-10 | AP58: 8.040246359e-07
A59: 0.2324778564 | B59: 0.0006085328067 | C59: 0.001512911763 | D59: 0.0002704140796 | E59: 0.0006085328067 | F59: 0.01163127987 | G59: 7.381572952e-05 | H59: 5.449729963e-07 | I59: 2.596723639e-06 | J59: 1.356781114e-07 | K59: 5.449729963e-07 | L59: 8.569665218e-05 | M59: 1.465067731e-08 | AE59: 2.384707426e-05 | AF59: 1.184789376e-05 | AG59: 5.238008097e-05 | AH59: 2.384707426e-05 | AI59: 3.87369748e-06 | AJ59: 0.0003076623037 | AK59: 1.167971064e-08 | AL59: 3.249253644e-09 | AM59: 4.920862134e-08 | AN59: 1.167971064e-08 | AO59: 4.199627313e-10 | AP59: 1.244419921e-06
A60: 0.2387610417 | B60: 0.0006936139079 | C60: 0.00176630363 | D60: 0.0003023329113 | E60: 0.0006936139079 | F60: 0.01445671993 | G60: 8.032543614e-05 | H60: 7.080151908e-07 | I60: 3.515221482e-06 | J60: 1.705358387e-07 | K60: 7.080151908e-07 | L60: 0.0001291525853 | M60: 1.757993946e-08 | AE60: 2.793329354e-05 | AF60: 1.364588626e-05 | AG60: 6.266469951e-05 | AH60: 2.793329354e-05 | AI60: 4.357784063e-06 | AJ60: 0.0003893245736 | AK60: 1.559613172e-08 | AL60: 4.207639903e-09 | AM60: 6.827622345e-08 | AN60: 1.559613172e-08 | AO60: 5.209925824e-10 | AP60: 1.910499773e-06
A61: 0.245044227 | B61: 0.0007878043491 | C61: 0.002054635149 | D61: 0.0003368810473 | E61: 0.0007878043491 | F61: 0.01790120123 | G61: 8.714468608e-05 | H61: 9.133636812e-07 | I61: 4.724206705e-06 | J61: 2.128982488e-07 | K61: 9.133636812e-07 | L61: 0.000193201393 | M61: 2.09643968e-08 | AE61: 3.258236022e-05 | AF61: 1.565262794e-05 | AG61: 7.464926363e-05 | AH61: 3.258236022e-05 | AI61: 4.883745017e-06 | AJ61: 0.000490626088 | AK61: 2.06653934e-08 | AL61: 5.407976733e-09 | AM61: 9.398944573e-08 | AN61: 2.06653934e-08 | AO61: 6.418319765e-10 | AP61: 2.91034397e-06
A62: 0.2513274123 | B62: 0.0008917885723 | C62: 0.002381741694 | D62: 0.0003741789552 | E62: 0.0008917885723 | F62: 0.02208531559 | G62: 9.427284386e-05 | H62: 1.170390522e-06 | I62: 6.305234392e-06 | J62: 2.640779547e-07 | K62: 1.170390522e-06 | L62: 0.0002869285224 | M62: 2.485431051e-08 | AE62: 3.785364498e-05 | AF62: 1.788501744e-05 | AG62: 8.856519459e-05 | AH62: 3.785364498e-05 | AI62: 5.453523489e-06 | AJ62: 0.0006158253894 | AK62: 2.718191244e-08 | AL62: 6.901452798e-09 | AM62: 1.284201605e-07 | AN62: 2.718191244e-08 | AO62: 7.854972228e-10 | AP62: 4.400242558e-06
A63: 0.2576105976 | B63: =(1+(_xlfn.COT($A63)-_xlfn.COT(B$3))^2)^(-1-B$2/2)*_xlfn.CSC($A63)^2*_xlfn.GAMMA(1+B$2/2)/(SQRT(PI())*_xlfn.GAMMA((1+B$2)/2)) -> 0.001006280129 | C63: 0.002751772425 | D63: 0.0004143474831 | E63: 0.001006280129 | F63: 0.02714968308 | G63: 0.0001017088644 | H63: 1.490200773e-06 | I63: 8.359980632e-06 | J63: 3.255649165e-07 | K63: 1.490200773e-06 | L63: 0.0004231226473 | M63: 2.930307515e-08 | AE63: 4.38109104e-05 | AF63: 2.036071156e-05 | AG63: 0.0001046689897 | AH63: 4.38109104e-05 | AI63: 6.069057325e-06 | AJ63: 0.0007700003765 | AK63: 3.550430888e-08 | AL63: 8.748052116e-09 | AM63: 1.742138135e-07 | AN63: 3.550430888e-08 | AO63: 9.553307034e-10 | AP63: 6.604586071e-06
A64: 0.2638937829 | B64: 0.001132021757 | C64: 0.00316920586 | D64: 0.0004575077406 | E64: 0.001132021757 | F64: 0.03325742382 | G64: 0.0001094513295 | H64: 1.885890783e-06 | I64: 1.101453758e-05 | J64: 3.99043257e-07 | K64: 1.885890783e-06 | L64: 0.000619649299 | M64: 3.436722172e-08 | AE64: 5.052249408e-05 | AF64: 2.309812733e-05 | AG64: 0.0001232442427 | AH64: 5.052249408e-05 | AI64: 6.732276614e-06 | AJ64: 0.0009591818563 | AK64: 4.606709103e-08 | AL64: 1.101772201e-08 | AM64: 2.34728965e-07 | AN64: 4.606709103e-08 | AO64: 1.155019302e-09 | AP64: 9.843241693e-06
A65: 0.2701769682 | B65: 0.001269785403 | C65: 0.003638865274 | D65: 0.0005037809873 | E65: 0.001269785403 | F65: 0.04059670498 | G65: 0.0001174984825 | H65: 2.372835607e-06 | I65: 1.442448071e-05 | J65: 4.864089451e-07 | K65: 2.372835607e-06 | L65: 0.0009012743327 | M65: 4.010641212e-08 | AE65: 5.806149216e-05 | AF65: 2.611644322e-05 | AG65: 0.0001446037618 | AH65: 5.806149216e-05 | AI65: 7.445101453e-06 | AJ65: 0.001190502895 | AK65: 5.939405395e-08 | AL65: 1.379164705e-08 | AM65: 3.142061867e-07 | AN65: 5.939405395e-08 | AO65: 1.388615556e-09 | AP65: 1.456891545e-05
A66: 0.2764601535 | B66: 0.001420372214 | C66: 0.004165933821 | D66: 0.0005532885323 | E66: 0.001420372214 | F66: 0.04938329014 | G66: 0.000125848263 | H66: 2.969007713e-06 | I66: 1.878081885e-05 | J66: 5.897883435e-07 | K66: 2.969007713e-06 | L66: 0.001302058519 | M66: 4.658342591e-08 | AE66: 6.65059428e-05 | AF66: 2.943559982e-05 | AG66: 0.0001690917836 | AH66: 6.65059428e-05 | AI66: 8.209439932e-06 | AJ66: 0.001472364224 | AK66: 7.61135821e-08 | AL66: 1.716363868e-08 | AM66: 4.179715109e-07 | AN66: 7.61135821e-08 | AO66: 1.660556359e-09 | AP66: 2.141769668e-05
A67: 0.2827433388 | B67: 0.001584612471 | C67: 0.00475596923 | D67: 0.0006061516405 | E67: 0.001584612471 | F67: 0.05986299325 | G67: 0.0001344983387 | H67: 3.695329162e-06 | I67: 2.431694834e-05 | J67: 7.115576138e-07 | K67: 3.695329162e-06 | L67: 0.001868465887 | M67: 5.386414002e-08 | AE67: 7.593900949e-05 | AF67: 3.307629985e-05 | AG67: 0.0001970862805 | AH67: 7.593900949e-05 | AI67: 9.027186321e-06 | AJ67: 0.001814615422 | AK67: 9.697605674e-08 | AL67: 2.124164278e-08 | AM67: 5.526803527e-07 | AN67: 9.697605674e-08 | AO67: 1.975683117e-09 | AP67: 3.12768104e-05
A68: 0.2890265241 | B68: 0.001763365486 | C68: 0.005414917953 | D68: 0.0006624914495 | E68: 0.001763365486 | F68: 0.07231391037 | G68: 0.0001434461372 | H68: 4.576059499e-06 | I68: 3.131674356e-05 | J68: 8.543629745e-07 | K68: 4.576059499e-06 | L68: 0.002663348308 | M68: 6.201750227e-08 | AE68: 8.644916382e-05 | AF68: 3.706000759e-05 | AG68: 0.0002290013591 | AH68: 8.644916382e-05 | AI68: 9.900219467e-06 | AJ68: 0.002228750896 | AK68: 1.228735887e-07 | AL68: 2.614937289e-08 | AM68: 7.26608624e-07 | AN68: 1.228735887e-07 | AO68: 2.339260508e-09 | AP68: 4.537456298e-05
A69: 0.2953097094 | B69: 0.001957519447 | C69: 0.006149128601 | D69: 0.0007224288936 | E69: 0.001957519447 | F69: 0.08704827029 | G69: 0.0001526888751 | H69: 5.639221597e-06 | I69: 4.01239269e-05 | J69: 1.021141804e-06 | K69: 5.639221597e-06 | L69: 0.00377098403 | M69: 7.111549944e-08 | AE69: 9.813036737e-05 | AF69: 4.140894783e-05 | AG69: 0.0002652897456 | AH69: 9.813036737e-05 | AI69: 1.083040138e-05 | AJ69: 0.002728118773 | AK69: 1.548623056e-07 | AL69: 3.202807269e-08 | AM69: 9.499986244e-07 | AN69: 1.548623056e-07 | AO69: 2.756996242e-09 | AP69: 6.539853906e-05
A70: 0.3015928947 | B70: 0.002167991222 | C70: 0.006965364501 | D70: 0.0007860846365 | E70: 0.002167991222 | F70: 0.1044137108 | G70: 0.0001622235868 | H70: 6.917067745e-06 | I70: 5.115287188e-05 | J70: 1.215144577e-06 | K70: 6.917067745e-06 | L70: 0.005303354032 | M70: 8.123312072e-08 | AE70: 0.0001110822526 | AF70: 4.614610442e-05 | AG70: 0.0003064453516 | AH70: 0.0001110822526 | AI70: 1.181957598e-05 | AJ70: 0.00332813973 | AK70: 1.941874401e-07 | AL70: 3.903841356e-08 | AM70: 1.235468223e-06 | AN70: 1.941874401e-07 | AO70: 3.235059554e-09 | AP70: 9.364924948e-05
A71: 0.3078760801 | B71: 0.002395726113 | C71: 0.007870815213 | D71: 0.0008535790126 | E71: 0.002395726113 | F71: 0.1247937538 | G71: 0.0001720471505 | H71: 8.446588246e-06 | I71: 6.490100305e-05 | J71: 1.439957636e-06 | K71: 8.446588246e-06 | L71: 0.007407830967 | M71: 9.244831727e-08 | AE71: 0.0001254103024 | AF71: 5.129521834e-05 | AG71: 0.0003530059179 | AH71: 0.0001254103024 | AI71: 1.286956807e-05 | AJ71: 0.004046531454 | AK71: 2.42311479e-07 | AL71: 4.736253356e-08 | AM71: 1.59849285e-06 | AN71: 2.42311479e-07 | AO71: 3.780100288e-09 | AP71: 0.0001332375668
A72: 0.3141592654 | B72: 0.002641697571 | C72: 0.008873106819 | D72: 0.0009250319752 | E72: 0.002641697571 | F72: 0.1486072189 | G72: 0.0001821563141 | H72: 1.02700648e-05 | I72: 8.196296553e-05 | J72: 1.699526769e-06 | K72: 1.02700648e-05 | L72: 0.01027642367 | M72: 1.048419587e-07 | AE72: 0.0001412260275 | AF72: 5.688078551e-05 | AG72: 0.0004055557246 | AH72: 0.0001412260275 | AI72: 1.39821824e-05 | AJ72: 0.00490353289 | AK72: 3.009456476e-07 | AL72: 5.720622098e-08 | AM72: 2.057970858e-06 | AN72: 3.009456476e-07 | AO72: 4.399267339e-09 | AP72: 0.000188335297
A73: 0.3204424507 | B73: =(1+(_xlfn.COT($A73)-_xlfn.COT(B$3))^2)^(-1-B$2/2)*_xlfn.CSC($A73)^2*_xlfn.GAMMA(1+B$2/2)/(SQRT(PI())*_xlfn.GAMMA((1+B$2)/2)) -> 0.002906906853 | C73: 0.009980310778 | D73: 0.001000563053 | E73: 0.002906906853 | F73: 0.1763062906 | G73: 0.0001925477184 | H73: 1.243567095e-05 | I73: 0.0001030467449 | J73: 1.998181611e-06 | K73: 1.243567095e-05 | L73: 0.0141566565 | M73: 1.184977872e-07 | AE73: 0.0001586471428 | AF73: 6.292805419e-05 | AG73: 0.000464728363 | AH73: 0.0001586471428 | AI73: 1.515920295e-05 | AJ73: 0.005922120742 | AK73: 3.720850178e-07 | AL73: 6.88012492e-08 | AM73: 2.636883957e-06 | AN73: 3.720850178e-07 | AO73: 5.100226463e-09 | AP73: 0.0002644889539
A74: 0.326725636 | B74: 0.003192382648 | C74: 0.01120095117 | D74: 0.001080291311 | E74: 0.003192382648 | F74: 0.2083729358 | G74: 0.0002032179195 | H74: 1.49981217e-05 | I74: 0.0001289919248 | J74: 2.340660831e-06 | K74: 1.49981217e-05 | L74: 0.01936405748 | M74: 1.335023699e-07 | AE74: 0.0001777977406 | AF74: 6.946302224e-05 | AG74: 0.0005312095574 | AH74: 0.0001777977406 | AI74: 1.640239231e-05 | AJ74: 0.007128208792 | AK74: 4.580475418e-07 | AL74: 8.240786697e-08 | AM74: 3.363065535e-06 | AN74: 4.580475418e-07 | AO74: 5.891178989e-09 | AP74: 0.0003690069937
A75: 0.3330088213 | B75: 0.003499180644 | C75: 0.01254401009 | D75: 0.001164335327 | E75: 0.003499180644 | F75: 0.2453133667 | G75: 0.0002141634098 | H75: 1.801937474e-05 | I75: 0.0001607902723 | J75: 2.732138119e-06 | K75: 1.801937474e-05 | L75: 0.02629607244 | M75: 1.4994505e-07 | AE75: 0.0001988084615 | AF75: 7.651243412e-05 | AG75: 0.0006057400271 | AH75: 0.0001988084615 | AI75: 1.771349121e-05 | AJ75: 0.008550818741 | AK75: 5.615173291e-07 | AL75: 9.831744985e-08 | AM75: 4.27009092e-06 | AN75: 5.615173291e-07 | AO75: 6.780878636e-09 | AP75: 0.0005114301412
A76: 0.3392920066 | B76: 0.003828383061 | C76: 0.01401893101 | D76: 0.00125281316 | E76: 0.003828383061 | F76: 0.287650263 | G76: 0.0002253806371 | H76: 2.156938499e-05 | I76: 0.000199608846 | J76: 3.178248951e-06 | K76: 2.156938499e-05 | L76: 0.03544700714 | M76: 1.679178984e-07 | AE76: 0.0002218166633 | AF76: 8.410377769e-05 | AG76: 0.000689118376 | AH76: 0.0002218166633 | AI76: 1.909421821e-05 | AJ76: 0.01022220935 | AK76: 6.855924951e-07 | AL76: 1.168553173e-07 | AM76: 5.398304799e-06 | AN76: 6.855924951e-07 | AO76: 7.778648725e-09 | AP76: 0.0007040926455
A77: 0.3455751919 | B77: 0.004181098127 | C77: 0.01563561988 | D77: 0.00134584234 | E77: 0.004181098127 | F77: 0.3359125099 | G77: 0.0002368660227 | H77: 2.572691495e-05 | I77: 0.0002468158157 | J77: 3.68511813e-06 | K77: 2.572691495e-05 | L77: 0.04742332165 | M77: 1.875156641e-07 | AE77: 0.0002469665849 | AF77: 9.226528096e-05 | AG77: 0.0007822039957 | AH77: 0.0002469665849 | AI77: 2.054626946e-05 | AJ77: 0.01217794902 | AK77: 8.338379262e-07 | AL77: 1.383837198e-07 | AM77: 6.796002253e-06 | AN77: 8.338379262e-07 | AO77: 8.894400161e-09 | AP77: 0.0009627789635
A78: 0.3518583772 | B78: 0.004558459519 | C78: 0.01740444369 | D78: 0.001443539855 | E78: 0.004558459519 | F78: 0.3906222846 | G78: 0.0002486159786 | H78: 3.058040236e-05 | I78: 0.0003040091807 | J78: 4.25938809e-06 | K78: 3.058040236e-05 | L78: 0.0629582664 | M78: 2.088357268e-07 | AE78: 0.0002744095093 | AF78: 0.0001010259087 | AG78: 0.000885919969 | AH78: 0.0002744095093 | AI78: 2.207131856e-05 | AJ78: 0.01445691565 | AK78: 1.010343313e-06 | AL78: 1.633050031e-07 | AM78: 8.520781033e-06 | AN78: 1.010343313e-06 | AO78: 1.013864703e-08 | AP78: 0.001307475097
A79: 0.3581415625 | B79: 0.004961625756 | C79: 0.01933622638 | D79: 0.001546022146 | E79: 0.004961625756 | F79: 0.452279431 | G79: 0.0002606269226 | H79: 3.622888741e-05 | I79: 0.0003730485634 | J79: 4.908247966e-06 | K79: 3.622888741e-05 | L79: 0.08292447147 | M79: 2.319780499e-07 | AE79: 0.0003043039205 | AF79: 0.000110415359 | AG79: 0.001001255954 | AH79: 0.0003043039205 | AI79: 2.36710166e-05 | AJ79: 0.01710120678 | AK79: 1.219786826e-06 | AL79: 1.920649497e-07 | AM79: 1.064108385e-05 | AN79: 1.219786826e-06 | AO79: 1.152252366e-08 | AP79: 0.001763206291
A80: 0.3644247478 | B80: 0.005391779543 | C80: 0.02144224177 | D80: 0.001653405107 | E80: 0.005391779543 | F80: 0.5213432109 | G80: 0.000272895293 | H80: 4.278300088e-05 | I80: 0.0004560902395 | J80: 5.639463409e-06 | K80: 4.278300088e-05 | L80: 0.1083427097 | M80: 2.570451353e-07 | AE80: 0.0003368156584 | AF80: 0.0001204640599 | AG80: 0.001129271037 | AH80: 0.0003368156584 | AI80: 2.534699221e-05 | AJ80: 0.02015594328 | AK80: 1.467504801e-06 | AL80: 2.251563088e-07 | AM80: 1.323795051e-05 | AN80: 1.467504801e-06 | AO80: 1.305780017e-08 | AP80: 0.002360942843
A81: 0.3707079331 | B81: 0.005850127078 | C81: 0.02373420333 | D81: 0.001765804093 | E81: 0.005850127078 | F81: 0.5982116978 | G81: 0.0002854175614 | H81: 5.036601499e-05 | I81: 0.0005556255461 | J81: 6.461407165e-06 | K81: 5.036601499e-05 | L81: 0.1403846954 | M81: 2.841419809e-07 | AE81: 0.0003721180678 | AF81: 0.0001312031659 | AG81: 0.001271096526 | AH81: 0.0003721180678 | AI81: 2.710085175e-05 | AJ81: 0.02366895075 | AK81: 1.759567836e-06 | AL81: 2.631225133e-07 | AM81: 1.640700072e-05 | AN81: 1.759567836e-06 | AO81: 1.475689904e-08 | AP81: 0.003138543439
A82: 0.3769911184 | B82: 0.006337897313 | C82: 0.02622425063 | D82: 0.00188333393 | E82: 0.006337897313 | F82: 0.683199292 | G82: 0.0002981902455 | H82: 5.911495826e-05 | I82: 0.0006745227851 | J82: 7.38309039e-06 | K82: 5.911495826e-05 | L82: 0.1803675131 | M82: 3.133760402e-07 | AE82: 0.0004103921446 | AF82: 0.0001426645547 | AG82: 0.001427938674 | AH82: 0.0004103921446 | AI82: 2.893417953e-05 | AJ82: 0.02769030529 | AK82: 2.102863686e-06 | AL82: 3.065615929e-07 | AM82: 2.026066912e-05 | AN82: 2.102863686e-06 | AO82: 1.663290966e-08 | AP82: 0.004141691082
A83: 0.3832743037 | B83: =(1+(_xlfn.COT($A83)-_xlfn.COT(B$3))^2)^(-1-B$2/2)*_xlfn.CSC($A83)^2*_xlfn.GAMMA(1+B$2/2)/(SQRT(PI())*_xlfn.GAMMA((1+B$2)/2)) -> 0.006856341171 | C83: 0.02892493213 | D83: 0.00200610893 | E83: 0.006856341171 | F83: 0.7765130605 | G83: 0.0003112099199 | H83: 6.918179565e-05 | I83: 0.000816072702 | J83: 8.414194718e-06 | K83: 6.918179565e-05 | L83: 0.229737176 | M83: 3.448571852e-07 | AE83: 0.0004518266756 | AF83: 0.0001548808236 | AG83: 0.001601081303 | AH83: 0.0004518266756 | AI83: 3.084853817e-05 | AJ83: 0.03227173373 | AK83: 2.505187372e-06 | AL83: 3.561302854e-07 | AM83: 2.49307148e-05 | AN83: 2.505187372e-06 | AO83: 1.869960464e-08 | AP83: 0.005424761162
A84: 0.389557489 | B84: 0.007406730719 | C84: 0.03184918426 | D84: 0.002134242912 | E84: 0.007406730719 | F84: 0.8782288411 | G84: 0.0003244732262 | H84: 8.073467505e-05 | I84: 0.0009840375847 | J84: 9.565105074e-06 | K84: 8.073467505e-05 | L84: 0.2900389612 | M84: 3.78697672e-07 | AE84: 0.0004966183743 | AF84: 0.0001678852868 | AG84: 0.001791888311 | AH84: 0.0004966183743 | AI84: 3.284546898e-05 | AJ84: 0.03746586411 | AK84: 2.975338908e-06 | AL84: 4.125483519e-07 | AM84: 3.057102795e-05 | AN84: 2.975338908e-06 | AO84: 2.097145407e-08 | AP84: 0.007051545823
A85: 0.3958406744 | B85: 0.007990358308 | C85: 0.03501030652 | D85: 0.002267849224 | E85: 0.007990358308 | F85: 0.9882682619 | G85: 0.0003379768827 | H85: 9.395924093e-05 | I85: 0.001182703977 | J85: 1.084694324e-05 | K85: 9.395924093e-05 | L85: 0.3628726461 | M85: 4.150121108e-07 | AE85: 0.0005449720111 | AF85: 0.0001817119722 | AG85: 0.002001806032 | AH85: 0.0005449720111 | AI85: 3.492649237e-05 | AJ85: 0.04332532807 | AK85: 3.523229075e-06 | AL85: 4.766031015e-07 | AM85: 3.736075637e-05 | AN85: 3.523229075e-06 | AO85: 2.34636412e-08 | AP85: 0.009095745302
A86: 0.4021238597 | B86: 0.008608535658 | C86: 0.03842193249 | D86: 0.002407040777 | E86: 0.008608535658 | F86: 1.106378 | G86: 0.0003517176924 | H86: 0.0001090600157 | I86: 0.001416938942 | J86: 1.227160215e-05 | K86: 0.0001090600157 | L86: 0.4498316221 | M86: 4.539174394e-07 | AE86: 0.0005971005377 | AF86: 0.0001963956184 | AG86: 0.002232365431 | AH86: 0.0005971005377 | AI86: 3.709310843e-05 | AJ86: 0.04990172523 | AK86: 4.159993656e-06 | AL86: 5.491541275e-07 | AM86: 4.550777442e-05 | AN86: 4.159993656e-06 | AO86: 2.619207634e-08 | AP86: 0.01164112761
A87: 0.408407045 | B87: 0.009262592916 | C87: 0.04209799654 | D87: 0.002551930069 | E87: 0.009262592916 | F87: 1.232112711 | G87: 0.0003656925512 | H87: 0.0001262618492 | I87: 0.001692249758 | J87: 1.385178101e-05 | K87: 0.0001262618492 | L87: 0.5524261033 | M87: 4.955329001e-07 | AE87: =(0.5 - (_xlfn.GAMMA(B$2/2+1)/(SQRT(PI())*_xlfn.GAMMA(B$2/2+0.5))) * COS(ATAN(TAN($A87-PI()/2)+TAN(B$3-PI()/2))+PI()/2) * (_xlfn.BETA.DIST(COS(ATAN(TAN($A87-PI()/2)+TAN(B$3-PI()/2))+PI()/2)^2,0.5,(1+B$2)/2,TRUE)*EXP(GAMMALN(0.5)+GAMMALN((1+B$2)/2)-GAMMALN(0.5+(1+B$2)/2))*0.5/((COS(ATAN(TAN($A87-PI()/2)+TAN(B$3-PI()/2))+PI()/2)^2)^0.5)) ) -> 0.0006532252061 | AF87: =(0.5 - (_xlfn.GAMMA(C$2/2+1)/(SQRT(PI())*_xlfn.GAMMA(C$2/2+0.5))) * COS(ATAN(TAN($A87-PI()/2)+TAN(C$3-PI()/2))+PI()/2) * (_xlfn.BETA.DIST(COS(ATAN(TAN($A87-PI()/2)+TAN(C$3-PI()/2))+PI()/2)^2,0.5,(1+C$2)/2,TRUE)*EXP(GAMMALN(0.5)+GAMMALN((1+C$2)/2)-GAMMALN(0.5+(1+C$2)/2))*0.5/((COS(ATAN(TAN($A87-PI()/2)+TAN(C$3-PI()/2))+PI()/2)^2)^0.5)) ) -> 0.0002119716721 | AG87: =(0.5 - (_xlfn.GAMMA(D$2/2+1)/(SQRT(PI())*_xlfn.GAMMA(D$2/2+0.5))) * COS(ATAN(TAN($A87-PI()/2)+TAN(D$3-PI()/2))+PI()/2) * (_xlfn.BETA.DIST(COS(ATAN(TAN($A87-PI()/2)+TAN(D$3-PI()/2))+PI()/2)^2,0.5,(1+D$2)/2,TRUE)*EXP(GAMMALN(0.5)+GAMMALN((1+D$2)/2)-GAMMALN(0.5+(1+D$2)/2))*0.5/((COS(ATAN(TAN($A87-PI()/2)+TAN(D$3-PI()/2))+PI()/2)^2)^0.5)) ) -> 0.002485184095 | AH87: =(0.5 - (_xlfn.GAMMA(E$2/2+1)/(SQRT(PI())*_xlfn.GAMMA(E$2/2+0.5))) * COS(ATAN(TAN($A87-PI()/2)+TAN(E$3-PI()/2))+PI()/2) * (_xlfn.BETA.DIST(COS(ATAN(TAN($A87-PI()/2)+TAN(E$3-PI()/2))+PI()/2)^2,0.5,(1+E$2)/2,TRUE)*EXP(GAMMALN(0.5)+GAMMALN((1+E$2)/2)-GAMMALN(0.5+(1+E$2)/2))*0.5/((COS(ATAN(TAN($A87-PI()/2)+TAN(E$3-PI()/2))+PI()/2)^2)^0.5)) ) -> 0.0006532252061 | AI87: =(0.5 - (_xlfn.GAMMA(F$2/2+1)/(SQRT(PI())*_xlfn.GAMMA(F$2/2+0.5))) * COS(ATAN(TAN($A87-PI()/2)+TAN(F$3-PI()/2))+PI()/2) * (_xlfn.BETA.DIST(COS(ATAN(TAN($A87-PI()/2)+TAN(F$3-PI()/2))+PI()/2)^2,0.5,(1+F$2)/2,TRUE)*EXP(GAMMALN(0.5)+GAMMALN((1+F$2)/2)-GAMMALN(0.5+(1+F$2)/2))*0.5/((COS(ATAN(TAN($A87-PI()/2)+TAN(F$3-PI()/2))+PI()/2)^2)^0.5)) ) -> 3.934679743e-05 | AJ87: =(0.5 - (_xlfn.GAMMA(G$2/2+1)/(SQRT(PI())*_xlfn.GAMMA(G$2/2+0.5))) * COS(ATAN(TAN($A87-PI()/2)+TAN(G$3-PI()/2))+PI()/2) * (_xlfn.BETA.DIST(COS(ATAN(TAN($A87-PI()/2)+TAN(G$3-PI()/2))+PI()/2)^2,0.5,(1+G$2)/2,TRUE)*EXP(GAMMALN(0.5)+GAMMALN((1+G$2)/2)-GAMMALN(0.5+(1+G$2)/2))*0.5/((COS(ATAN(TAN($A87-PI()/2)+TAN(G$3-PI()/2))+PI()/2)^2)^0.5)) ) -> 0.05724446805 | AK87: =(0.5 - (_xlfn.GAMMA(H$2/2+1)/(SQRT(PI())*_xlfn.GAMMA(H$2/2+0.5))) * COS(ATAN(TAN($A87-PI()/2)+TAN(H$3-PI()/2))+PI()/2) * (_xlfn.BETA.DIST(COS(ATAN(TAN($A87-PI()/2)+TAN(H$3-PI()/2))+PI()/2)^2,0.5,(1+H$2)/2,TRUE)*EXP(GAMMALN(0.5)+GAMMALN((1+H$2)/2)-GAMMALN(0.5+(1+H$2)/2))*0.5/((COS(ATAN(TAN($A87-PI()/2)+TAN(H$3-PI()/2))+PI()/2)^2)^0.5)) ) -> 4.898116574e-06 | AL87: =(0.5 - (_xlfn.GAMMA(I$2/2+1)/(SQRT(PI())*_xlfn.GAMMA(I$2/2+0.5))) * COS(ATAN(TAN($A87-PI()/2)+TAN(I$3-PI()/2))+PI()/2) * (_xlfn.BETA.DIST(COS(ATAN(TAN($A87-PI()/2)+TAN(I$3-PI()/2))+PI()/2)^2,0.5,(1+I$2)/2,TRUE)*EXP(GAMMALN(0.5)+GAMMALN((1+I$2)/2)-GAMMALN(0.5+(1+I$2)/2))*0.5/((COS(ATAN(TAN($A87-PI()/2)+TAN(I$3-PI()/2))+PI()/2)^2)^0.5)) ) -> 6.311382635e-07 | AM87: =(0.5 - (_xlfn.GAMMA(J$2/2+1)/(SQRT(PI())*_xlfn.GAMMA(J$2/2+0.5))) * COS(ATAN(TAN($A87-PI()/2)+TAN(J$3-PI()/2))+PI()/2) * (_xlfn.BETA.DIST(COS(ATAN(TAN($A87-PI()/2)+TAN(J$3-PI()/2))+PI()/2)^2,0.5,(1+J$2)/2,TRUE)*EXP(GAMMALN(0.5)+GAMMALN((1+J$2)/2)-GAMMALN(0.5+(1+J$2)/2))*0.5/((COS(ATAN(TAN($A87-PI()/2)+TAN(J$3-PI()/2))+PI()/2)^2)^0.5)) ) -> 5.525251625e-05 | AN87: =(0.5 - (_xlfn.GAMMA(K$2/2+1)/(SQRT(PI())*_xlfn.GAMMA(K$2/2+0.5))) * COS(ATAN(TAN($A87-PI()/2)+TAN(K$3-PI()/2))+PI()/2) * (_xlfn.BETA.DIST(COS(ATAN(TAN($A87-PI()/2)+TAN(K$3-PI()/2))+PI()/2)^2,0.5,(1+K$2)/2,TRUE)*EXP(GAMMALN(0.5)+GAMMALN((1+K$2)/2)-GAMMALN(0.5+(1+K$2)/2))*0.5/((COS(ATAN(TAN($A87-PI()/2)+TAN(K$3-PI()/2))+PI()/2)^2)^0.5)) ) -> 4.898116574e-06 | AO87: =(0.5 - (_xlfn.GAMMA(L$2/2+1)/(SQRT(PI())*_xlfn.GAMMA(L$2/2+0.5))) * COS(ATAN(TAN($A87-PI()/2)+TAN(L$3-PI()/2))+PI()/2) * (_xlfn.BETA.DIST(COS(ATAN(TAN($A87-PI()/2)+TAN(L$3-PI()/2))+PI()/2)^2,0.5,(1+L$2)/2,TRUE)*EXP(GAMMALN(0.5)+GAMMALN((1+L$2)/2)-GAMMALN(0.5+(1+L$2)/2))*0.5/((COS(ATAN(TAN($A87-PI()/2)+TAN(L$3-PI()/2))+PI()/2)^2)^0.5)) ) -> 2.91734118e-08 | AP87: =(0.5 - (_xlfn.GAMMA(M$2/2+1)/(SQRT(PI())*_xlfn.GAMMA(M$2/2+0.5))) * COS(ATAN(TAN($A87-PI()/2)+TAN(M$3-PI()/2))+PI()/2) * (_xlfn.BETA.DIST(COS(ATAN(TAN($A87-PI()/2)+TAN(M$3-PI()/2))+PI()/2)^2,0.5,(1+M$2)/2,TRUE)*EXP(GAMMALN(0.5)+GAMMALN((1+M$2)/2)-GAMMALN(0.5+(1+M$2)/2))*0.5/((COS(ATAN(TAN($A87-PI()/2)+TAN(M$3-PI()/2))+PI()/2)^2)^0.5)) ) -> 0.01478125517
A88: =A87+$B$5 -> 0.4146902303 | B88: 0.009953877668 | C88: 0.04605269619 | D88: 0.002702629228 | E88: 0.009953877668 | F88: 1.364823075 | G88: 0.0003798984541 | H88: 0.0001458114365 | I88: 0.002014846839 | J88: 1.560102105e-05 | K88: 0.0001458114365 | L88: 0.6719922405 | M88: 5.399800222e-07 | AE88: 0.000713575681 | AF88: 0.0002284762856 | AG88: 0.002761968015 | AH88: 0.000713575681 | AI88: 4.168902045e-05 | AJ88: 0.06539953466 | AK88: 5.751562336e-06 | AL88: 7.235747609e-07 | AM88: 6.687219451e-05 | AN88: 5.751562336e-06 | AO88: 3.242505675e-08 | AP88: 0.0186186833
A89: 0.4209734156 | B89: 0.01068375391 | C89: 0.05030045006 | D89: 0.002859250045 | E89: 0.01068375391 | F89: 1.503650311 | G89: 0.0003943325024 | H89: 0.0001679789037 | I89: 0.002391709607 | J89: 1.753374224e-05 | K89: 0.0001679789037 | L89: 0.8095907779 | M89: 5.873826078e-07 | AE89: 0.0007783901467 | AF89: 0.0002459463149 | AG89: 0.003064513102 | AH89: 0.0007783901467 | AI89: 4.412122002e-05 | AJ89: 0.07440816633 | AK89: 6.735918248e-06 | AL89: 8.275706941e-07 | AM89: 8.06854237e-05 | AN89: 6.735918248e-06 | AO89: 3.596519077e-08 | AP89: 0.02326355235
A90: 0.4272566009 | B90: 0.011453601 | C90: 0.05485585119 | D90: 0.003021904021 | E90: 0.011453601 | F90: 1.647528293 | G90: 0.0004089919082 | H90: 0.0001930594612 | I90: 0.00283065495 | J90: 1.966528058e-05 | K90: 0.0001930594612 | L90: 0.965900777 | M90: 6.378667227e-07 | AE90: 0.000847915406 | AF90: 0.0002644193172 | AG90: 0.003394706439 | AH90: 0.000847915406 | AI90: 4.66448208e-05 | AJ90: 0.08430555381 | AK90: 7.868546786e-06 | AL90: 9.443265991e-07 | AM90: 9.705726589e-05 | AN90: 7.868546786e-06 | AO90: 3.981277807e-08 | AP90: 0.02883152425
A91: 0.4335397862 | B91: 0.01226481252 | C91: 0.05973361592 | D91: 0.003190702407 | E91: 0.01226481252 | F91: 1.795194055 | G91: 0.0004238740003 | H91: 0.0002213751243 | I91: 0.003340407798 | J91: 2.201192637e-05 | K91: 0.0002213751243 | L91: 1.14111563 | M91: 6.915606923e-07 | AE91: 0.0009224069742 | AF91: 0.0002839335496 | AG91: 0.003754527211 | AH91: 0.0009224069742 | AI91: 4.92612303e-05 | AJ91: 0.09511956303 | AK91: 9.168748582e-06 | AL91: 1.075142349e-06 | AM91: 0.0001164047134 | AN91: 9.168748582e-06 | AO91: 4.398758285e-08 | AP91: 0.0354410543
A92: 0.4398229715 | B92: 0.01311879518 | C92: 0.06494852819 | D92: 0.003365756256 | E92: 0.01311879518 | F92: 1.94520706 | G92: 0.0004389762282 | H92: 0.0002532764985 | I92: 0.00393067325 | J92: 2.459096318e-05 | K92: 0.0002532764985 | L92: 1.334849833 | M92: 7.485951017e-07 | AE92: 0.001002129164 | AF92: 0.0003045279676 | AG92: 0.004146047314 | AH92: 0.001002129164 | AI92: 5.197183962e-05 | AJ92: 0.1068695542 | AK92: 1.065793641e-05 | AL92: 1.22142327e-06 | AM92: 0.00013920262 | AN92: 1.065793641e-05 | AO92: 4.851018215e-08 | AP92: 0.04321003878
A93: 0.4461061568 | B93: =(1+(_xlfn.COT($A93)-_xlfn.COT(B$3))^2)^(-1-B$2/2)*_xlfn.CSC($A93)^2*_xlfn.GAMMA(1+B$2/2)/(SQRT(PI())*_xlfn.GAMMA((1+B$2)/2)) -> 0.01401696763 | C93: 0.07051537939 | D93: 0.003547176471 | E93: 0.01401696763 | F93: 2.095977021 | G93: 0.000454296166 | H93: 0.0002891446303 | I93: 0.004612209582 | J93: 2.742070769e-05 | K93: 0.0002891446303 | L93: 1.546065528 | M93: 8.091028012e-07 | AE93: 0.001087355167 | AF93: 0.0003262422238 | AG93: 0.00457143159 | AH93: 0.001087355167 | AI93: 5.477802424e-05 | AJ93: 0.1195653492 | AK93: 1.235982063e-05 | AL93: 1.384686512e-06 | AM93: 0.0001659900888 | AN93: 1.235982063e-05 | AO93: 5.340198067e-08 | AP93: 0.05225193415
A94: 0.4523893421 | B94: 0.01496075926 | C94: 0.0764489038 | D94: 0.003735073855 | E94: 0.01496075926 | F94: 2.24579958 | G94: 0.0004698315159 | H94: 0.0003293929197 | I94: 0.005396901339 | J94: 3.052055037e-05 | K94: 0.0003293929197 | L94: 1.773027416 | M94: 8.732189171e-07 | AE94: 0.001178367119 | AF94: 0.0003491166675 | AG94: 0.005032937673 | AH94: 0.001178367119 | AI94: 5.768114476e-05 | AJ94: 0.1332063991 | AK94: 1.430060638e-05 | AL94: 1.56656766e-06 | AM94: 0.0001973773194 | AN94: 1.430060638e-05 | AO94: 5.868522507e-08 | AP94: 0.06267149964
A95: 0.4586725274 | B95: 0.01595160895 | C95: 0.08276370989 | D95: 0.003929559171 | E95: 0.01595160895 | F95: 2.392898518 | G95: 0.0004855801114 | H95: 0.0003744690936 | I95: 0.006297831625 | J95: 3.391099706e-05 | K95: 0.0003744690936 | L95: 2.013293268 | M95: 9.410808667e-07 | AE95: 0.00127545617 | AF95: 0.0003731923439 | AG95: 0.005532915417 | AH95: 0.00127545617 | AI95: 6.06825478e-05 | AJ95: 0.1477811965 | AK95: 1.65092031e-05 | AL95: 1.768827618e-06 | AM95: 0.000234052912 | AN95: 1.65092031e-05 | AO95: 6.438301825e-08 | AP95: 0.07456036508
A96: 0.4649557127 | B96: 0.01699096381 | C96: 0.08947420744 | D96: 0.004130743195 | E96: 0.01699096381 | F96: 2.535472736 | G96: 0.0005015399195 | H96: 0.0004248572366 | I96: 0.007329352544 | J96: 3.761371139e-05 | K96: 0.0004248572366 | L96: 2.26374483 | M96: 1.01282838e-06 | AE96: 0.001378922537 | AF96: 0.0003985109941 | AG96: 0.006073805878 | AH96: 0.001378922537 | AI96: 6.378356676e-05 | AJ96: 0.1632669704 | AK96: 1.901744648e-05 | AL96: 1.993359745e-06 | AM96: 0.0002767916208 | AN96: 1.901744648e-05 | AO96: 7.051933382e-08 | AP96: 0.08799266434
A97: 0.471238898 | B97: 0.01808027787 | C97: 0.09659453103 | D97: 0.004338736775 | E97: 0.01808027787 | F97: 2.671745848 | G97: 0.0005177090432 | H97: 0.0004810798775 | I97: 0.008507152688 | J97: 4.165155815e-05 | K97: 0.0004810798775 | L97: 2.520660799 | M97: 1.088603523e-06 | AE97: 0.001489075552 | AF97: 0.0004251150557 | AG97: 0.00665813983 | AH97: 0.001489075552 | AI97: 6.698552269e-05 | AJ97: 0.1796296844 | AK97: 2.18603335e-05 | AL97: 2.242197268e-06 | AM97: 0.0003264625412 | AN97: 2.18603335e-05 | AO97: 7.711903033e-08 | AP97: 0.1030209951
A98: 0.4775220833 | B98: 0.01922101076 | C98: 0.1041384599 | D98: 0.004553650892 | E98: 0.01922101076 | F98: 2.800015987 | G98: 0.0005340857236 | H98: 0.0005437001266 | I98: 0.009848320403 | J98: 4.604864764e-05 | K98: 0.0005437001266 | L98: 2.779829859 | M98: 1.168550733e-06 | AE98: 0.001606233701 | AF98: 0.0004530476628 | AG98: 0.007288535782 | AH98: 0.001606233701 | AI98: 7.028972516e-05 | AJ98: 0.196824349 | AK98: 2.507627065e-05 | AL98: 2.517520968e-06 | AM98: 0.0003840377087 | AN98: 2.507627065e-05 | AO98: 8.420786685e-08 | AP98: 0.1196729651
A99: 0.4838052687 | B99: 0.02041462636 | C99: 0.1121193349 | D99: 0.004775596723 | E99: 0.02041462636 | F99: 2.918703394 | G99: 0.0005506683409 | H99: 0.000613323862 | I99: 0.0113714015 | J99: 5.083038092e-05 | K99: 0.000613323862 | L99: 3.036698137 | M99: 1.252816853e-06 | AE99: 0.001730724654 | AF99: 0.0004823526476 | AG99: 0.007967697487 | AH99: 0.001730724654 | AI99: 7.369747313e-05 | AJ99: 0.2147956414 | AK99: 2.870733572e-05 | AL99: 2.821667143e-06 | AM99: 0.0004506010784 | AN99: 2.870733572e-05 | AO99: 9.181251726e-08 | AP99: 0.1379485606
A100: 0.490088454 | B100: 0.0216625914 | C100: 0.1205499721 | D100: 0.005004685703 | E100: 0.0216625914 | F100: 3.026393481 | G100: 0.0005674554164 | H100: 0.0006906019598 | I100: 0.01309644998 | J100: 5.602349616e-05 | K100: 0.0006906019598 | L100: 3.286542167 | M100: 1.341551171e-06 | AE100: 0.00186288529 | AF100: 0.0005130745417 | AG100: 0.00869841092 | AH100: 0.00186288529 | AI100: 7.721005583e-05 | AJ100: 0.2334788107 | AK100: 3.279955356e-05 | AL100: 3.157135872e-06 | AM100: 0.0005273578456 | AN100: 3.279955356e-05 | AO100: 9.996058575e-08 | AP100: 0.1578185266
A101: 0.4963716393 | B101: 0.02296637403 | C101: 0.1294425751 | D101: 0.005241029589 | E101: 0.02296637403 | F101: 3.121873364 | G101: 0.0005844456131 | H101: 0.0007762325629 | I101: 0.01504507019 | J101: 6.165611595e-05 | K101: 0.0007762325629 | L101: 3.524656033 | M101: 1.43490547e-06 | AE101: 0.00200306171 | AF101: 0.0005452585776 | AG101: 0.009483540702 | AH101: 0.00200306171 | AI101: 8.082875361e-05 | AJ101: 0.2528008343 | AK101: 3.740318588e-05 | AL101: 3.526599555e-06 | AM101: 0.0006156440596 | AN101: 3.740318588e-05 | AO101: 1.086806224e-07 | AP101: 0.1792238854
A102: 0.5026548246 | B102: 0.02432744245 | C102: 0.1388086443 | D102: 0.005484740532 | E102: 0.02432744245 | F102: 3.204160301 | G102: 0.0006016377367 | H102: 0.0008709633856 | I102: 0.01724044891 | J102: 6.775779576e-05 | K102: 0.0008709633856 | L102: 3.746540058 | M102: 1.53303408e-06 | AE102: 0.002151609237 | AF102: 0.0005789506914 | AG102: 0.01032602597 | AH102: 0.002151609237 | AI102: 8.455483891e-05 | AJ102: 0.2726817796 | AK102: 4.257303546e-05 | AL102: 3.93291177e-06 | AM102: 0.0007169364714 | AN102: 4.257303546e-05 | AO102: 1.180021388e-07 | AP102: 0.2020766419
A103: 0.5089380099 | B103: =(1+(_xlfn.COT($A103)-_xlfn.COT(B$3))^2)^(-1-B$2/2)*_xlfn.CSC($A103)^2*_xlfn.GAMMA(1+B$2/2)/(SQRT(PI())*_xlfn.GAMMA((1+B$2)/2)) -> 0.02574726338 | C103: 0.148658886 | D103: 0.005735931137 | E103: 0.02574726338 | F103: 3.272520991 | G103: 0.0006190307362 | H103: 0.0009755940471 | I103: 0.01970737571 | J103: 7.435957345e-05 | K103: 0.0009755940471 | L103: 3.948078397 | M103: 1.636093935e-06 | AE103: 0.002308892419 | AF103: 0.0006141975252 | AG103: 0.01122887568 | AH103: 0.002308892419 | AI103: 8.838957709e-05 | AJ103: 0.293036315 | AK103: 4.836876496e-05 | AL103: 4.379116424e-06 | AM103: 0.0008328625467 | AN103: 4.836876496e-05 | AO103: 1.279556247e-07 | AP103: 0.2262616465
A104: 0.5152211952 | B104: 0.02722730063 | C104: 0.1590031205 | D104: 0.005994714537 | E104: 0.02722730063 | F104: 3.326481317 | G104: 0.0006366237045 | H104: 0.001090978429 | I104: 0.02247224981 | J104: 8.149402003e-05 | K104: 0.001090978429 | L104: 4.125694101 | M104: 1.744244635e-06 | AE104: 0.002475285008 | AF104: 0.0006510464301 | AG104: 0.01219516331 | AH104: 0.002475285008 | AI104: 9.233422737e-05 | AJ104: 0.313775313 | AK104: 5.485523041e-05 | AL104: 4.868457237e-06 | AM104: 0.0009652105658 | AN104: 5.485523041e-05 | AO104: 1.385725636e-07 | AP104: 0.2516395083
A105: 0.5215043805 | B105: 0.02876901357 | C105: 0.1698501897 | D105: 0.006261204459 | E105: 0.02876901357 | F105: 3.365826623 | G105: 0.0006544158786 | H105: 0.001218027048 | I105: 0.02556307205 | J105: 8.919529153e-05 | K105: 0.001218027048 | L105: 4.276472479 | M105: 1.857648517e-06 | AE105: 0.002651169943 | AF105: 0.0006895454702 | AG105: 0.01322802103 | AH105: 0.002651169943 | AI105: 9.639004371e-05 | AJ105: 0.3348074848 | AK105: 6.210282963e-05 | AL105: 5.404387524e-06 | AM105: 0.00111593972 | AN105: 6.210282963e-05 | AO105: 1.498854511e-07 | AP105: 0.2780503871
A106: 0.5277875658 | B106: 0.03037385563 | C106: 0.1812078657 | D106: 0.0065355153 | E106: 0.03037385563 | F106: 3.3905932 | G106: 0.0006724066396 | H106: 0.001357709445 | I106: 0.02900942004 | J106: 9.749918218e-05 | K106: 0.001357709445 | L106: 4.398246588 | M106: 1.976470723e-06 | AE106: 0.002836939313 | AF106: 0.0007297434259 | AG106: 0.01433063324 | AH106: 0.002836939313 | AI106: 0.0001005582757 | AJ106: 0.3560409877 | AK106: 7.018786555e-05 | AL106: 5.990580332e-06 | AM106: 0.001287190107 | AN106: 7.018786555e-05 | AO106: 1.619278112e-07 | AP106: 0.3053184443
A107: 0.5340707511 | B107: 0.03204327278 | C107: 0.1930827614 | D107: 0.006817762194 | E107: 0.03204327278 | F107: 3.40105203 | G107: 0.0006905955132 | H107: 0.001511056572 | I107: 0.03284240517 | J107: 0.0001064431789 | K107: 0.001511056572 | L107: 4.489641989 | M107: 2.100879287e-06 | AE107: 0.003032994316 | AF107: 0.0007716897988 | AG107: 0.01550622958 | AH107: 0.003032994316 | AI107: 0.0001048401697 | AJ107: 0.3773849547 | AK107: 7.919292459e-05 | AL107: 6.630938895e-06 | AM107: 0.001481292512 | AN107: 7.919292459e-05 | AO107: 1.747342147e-07 | AP107: 0.3332567028
A108: 0.5403539364 | B108: 0.03377870193 | C108: 0.2054802417 | D108: 0.007108061085 | E108: 0.03377870193 | F108: 3.3976862 | G108: 0.0007089821692 | H108: 0.001679163181 | I108: 0.03709460992 | J108: 0.0001160665169 | K108: 0.001679163181 | L108: 4.550081215 | M108: 2.231045212e-06 | AE108: 0.00323974521 | AF108: 0.0008154348164 | AG108: 0.01675807737 | AH108: 0.00323974521 | AI108: 0.0001092369691 | AJ108: 0.3987509008 | AK108: 8.920727002e-05 | AL108: 7.32960745e-06 | AM108: 0.001700777857 | AN108: 8.920727002e-05 | AO108: 1.883402969e-07 | AP108: 0.3616720614
A109: 0.5466371217 | B109: 0.03558156944 | C109: 0.218404339 | D109: 0.007406528804 | E109: 0.03558156944 | F109: 3.381163529 | G109: 0.0007275664216 | H109: 0.001863190197 | I109: 0.0418000042 | J109: 0.0001264102373 | K109: 0.001863190197 | L109: 4.57975127 | M109: 2.367142564e-06 | AE109: 0.003457611247 | AF109: 0.0008610294374 | AG109: 0.01808947349 | AH109: 0.003457611247 | AI109: 0.0001137499162 | AJ109: 0.4200539723 | AK109: 0.0001003272503 | AL109: 8.090982397e-06 | AM109: 0.001948386196 | AN109: 0.0001003272503 | AO109: 2.027827782e-07 | AP109: 0.3903702178
A110: 0.552920307 | B110: 0.03745328945 | C110: 0.2318576713 | D110: 0.007713283138 | E110: 0.03745328945 | F110: 3.352306073 | G110: 0.0007463482281 | H110: 0.002064367077 | I110: 0.04699383947 | J110: 0.0001375172454 | K110: 0.002064367077 | L110: 4.579539753 | M110: 2.509348562e-06 | AE110: 0.003687020604 | AF110: 0.0009085253577 | AG110: 0.01950373577 | AH110: 0.003687020604 | AI110: 0.0001183802522 | AJ110: 0.4412140124 | AK110: 0.0001126567222 | AL110: 8.919723833e-06 | AM110: 0.002227075109 | AN110: 0.0001126567222 | AO110: 2.180994815e-07 | AP110: 0.4191602864
A111: 0.5592034923 | B111: 0.03939526238 | C111: 0.2458413655 | D111: 0.008028442908 | E111: 0.03939526238 | F111: 3.31205807 | G111: 0.0007653276904 | H111: 0.002283994139 | I111: 0.05271251983 | J111: 0.0001494323708 | K111: 0.002283994139 | L111: 4.550946692 | M111: 2.657843687e-06 | AE111: 0.003928410302 | AF111: 0.0009579750162 | AG111: 0.02100419382 | AH111: 0.003928410302 | AI111: 0.0001231292186 | AJ111: 0.4621564302 | AK111: 0.0001263074889 | AL111: 9.820767447e-06 | AM111: 0.002540027363 | AN111: 0.0001263074889 | AO111: 2.343293539e-07 | AP111: 0.4478589339
A112: 0.5654866776 | B112: 0.0414088733 | C112: 0.2603549847 | D112: 0.008352128045 | E112: 0.0414088733 | F112: 3.261453786 | G112: 0.0007845050531 | H112: 0.002523444852 | I112: 0.05899344922 | J112: 0.0001622024296 | K112: 0.002523444852 | L112: 4.495979873 | M112: 2.812811778e-06 | AE112: 0.004182226111 | AF112: 0.001009431602 | AG112: 0.02259417947 | AH112: 0.004182226111 | AI112: 0.000127998058 | AJ112: 0.4828128673 | AK112: 0.0001413997523 | AL112: 1.079933681e-05 | AM112: 0.002890657683 | AN112: 0.0001413997523 | AO112: 2.515124869e-07 | AP112: 0.4762939046
A113: 0.571769863 | B113: =(1+(_xlfn.COT($A113)-_xlfn.COT(B$3))^2)^(-1-B$2/2)*_xlfn.CSC($A113)^2*_xlfn.GAMMA(1+B$2/2)/(SQRT(PI())*_xlfn.GAMMA((1+B$2)/2)) -> 0.04349549029 | C113: 0.2753964625 | D113: 0.008684459665 | E113: 0.04349549029 | F113: 3.201586508 | G113: 0.0008038807041 | H113: 0.002784168091 | I113: 0.06587485449 | J113: 0.0001758762872 | K113: 0.002784168091 | L113: 4.417041398 | M113: 2.974440152e-06 | AE113: 0.004448922455 | AF113: 0.001062949062 | AG113: 0.02427701671 | AH113: 0.004448922455 | AI113: 0.0001329880151 | AJ113: 0.5031216648 | AK113: 0.0001580625798 | AL113: 1.186095606e-05 | AM113: 0.003282618499 | AN113: 0.0001580625798 | AO113: 2.696901381e-07 | AP113: 0.5043068577
A114: 0.5780530483 | B114: 0.0456564629 | C114: 0.2909620433 | D114: 0.009025560145 | E114: 0.0456564629 | F114: 3.133579684 | G114: 0.0008234551736 | H114: 0.00306769032 | I114: 0.07339558399 | J114: 0.0001905049237 | K114: 0.00306769032 | L114: 4.316812604 | M114: 3.142919712e-06 | AE114: 0.004728962294 | AF114: 0.001118582106 | AG114: 0.02605601128 | AH114: 0.004728962294 | AI114: 0.0001381003373 | AJ114: 0.5230281422 | AK114: 0.0001764343849 | AL114: 1.301146295e-05 | AM114: 0.003719804489 | AN114: 0.0001764343849 | AO114: 2.889047531e-07 | AP114: 0.5317554818
A115: 0.5843362336 | B115: 0.04789312047 | C115: 0.30704623 | D115: 0.0093755532 | E115: 0.04789312047 | F115: 3.058560945 | G115: 0.000843229134 | H115: 0.003375617729 | I115: 0.08159488207 | J115: 0.0002061415005 | K115: 0.003375617729 | L115: 4.198143376 | M115: 3.318445078e-06 | AE115: 0.005022817005 | AF115: 0.00117638622 | AG115: 0.02793443987 | AH115: 0.005022817005 | AI115: 0.0001433362758 | AJ115: 0.542484704 | AK115: 0.0001966634217 | AL115: 1.42570224e-05 | AM115: 0.00420635579 | AN115: 0.0001966634217 | AO115: 3.091999884e-07 | AP115: 0.5585148986
A116: 0.5906194189 | B116: 0.05020677056 | C116: 0.3236417399 | D116: 0.009734563964 | E116: 0.05020677056 | F116: 2.977639522 | G116: 0.0008632033994 | H116: 0.003709638283 | I116: 0.09051214005 | J116: 0.0002228414291 | K116: 0.003709638283 | L116: 4.063950611 | M116: 3.50121471e-06 | AE116: 0.00533096625 | AF116: 0.001236417669 | AG116: 0.02991553904 | AH116: 0.00533096625 | AI116: 0.0001486970866 | AJ116: 0.5614507927 | AK116: 0.0002189082919 | AL116: 1.560414036e-05 | AM116: 0.004746659717 | AN116: 0.0002189082919 | AO116: 3.306207359e-07 | AP116: 0.5844783966
A117: 0.5969026042 | B117: 0.0525986973 | C117: 0.3407394687 | D117: 0.01010271907 | E117: 0.0525986973 | F117: 2.891887287 | G117: 0.0008833789255 | H117: 0.004071523696 | I117: 0.1001866245 | J117: 0.0002406624413 | K117: 0.004071523696 | L117: 3.917129175 | M117: 3.691431042e-06 | AE117: 0.005653897835 | AF117: 0.00129873351 | AG117: 0.03200249389 | AH117: 0.005653897835 | AI117: 0.0001541840312 | AJ117: 0.5798927119 | AK117: 0.0002433384652 | AL117: 1.705967821e-05 | AM117: 0.005345350847 | AN117: 0.0002433384652 | AO117: 3.532131462e-07 | AP117: 0.6095575656
A118: 0.6031857895 | B118: 0.05507015978 | C118: 0.3583284645 | D118: 0.01048014671 | E118: 0.05507015978 | F118: 2.8023235 | G118: 0.0009037568085 | H118: 0.0044631313 | I118: 0.1106571843 | J118: 0.0002596646621 | K118: 0.0044631313 | L118: 3.760477338 | M118: 3.889300621e-06 | AE118: 0.005992107555 | AF118: 0.001363391601 | AG118: 0.03419842653 | AH118: 0.005992107555 | AI118: 0.0001597983774 | AJ118: 0.5977833418 | AK118: 0.0002701348115 | AL118: 1.863086754e-05 | AM118: 0.006007309319 | AN118: 0.0002701348115 | AO118: 3.770246552e-07 | AP118: 0.6336819158
A119: 0.6094689748 | B119: 0.05762239046 | C119: 0.3763959104 | D119: 0.01086697675 | E119: 0.05762239046 | F119: 2.709903129 | G119: 0.0009243382856 | H119: 0.004886405816 | I119: 0.1219619384 | J119: 0.0002799106838 | K119: 0.004886405816 | L119: 3.596637493 | M119: 4.095034257e-06 | AE119: 0.006346099035 | AF119: 0.00143045061 | AG119: 0.03650638437 | AH119: 0.006346099035 | AI119: 0.0001655414006 | AJ119: 0.6151017699 | AK119: 0.0002994901441 | AL119: 2.032532542e-05 | AM119: 0.006737657243 | AN119: 0.0002994901441 | AO119: 4.021040094e-07 | AP119: 0.656798077
A120: 0.6157521601 | B120: 0.06025659351 | C120: 0.3949271181 | D120: 0.01126334077 | E120: 0.06025659351 | F120: 2.615508526 | G120: 0.0009451247339 | H120: 0.005343381006 | I120: 0.1341379458 | J120: 0.0003014656431 | K120: 0.005343381006 | L120: 3.428051953 | M120: 4.308847166e-06 | AE120: 0.006716383554 | AF120: 0.001499970026 | AG120: 0.03892932847 | AH120: 0.006716383554 | AI120: 0.0001714143841 | AJ120: 0.6318328594 | AK120: 0.0003316097742 | AL120: 2.215107018e-05 | AM120: 0.007541753084 | AN120: 0.0003316097742 | AO120: 4.285012941e-07 | AP120: 0.6788686723
A121: 0.6220353454 | B121: 0.06297394324 | C121: 0.4139055315 | D121: 0.01166937219 | E121: 0.06297394324 | F121: 2.519944127 | G121: 0.0009661176707 | H121: 0.005836181198 | I121: 0.147220861 | J121: 0.0003243972993 | K121: 0.005836181198 | L121: 3.256932868 | M121: 4.530959134e-06 | AE121: 0.007103479865 | AF121: 0.001572010172 | AG121: 0.04147012166 | AH121: 0.007103479865 | AI121: 0.0001774186207 | AJ121: 0.647966775 | AK121: 0.0003667120754 | AL121: 2.411653758e-05 | AM121: 0.008425183929 | AN121: 0.0003667120754 | AO121: 4.562679609e-07 | AP121: 0.6998709595
A122: 0.6283185307 | B122: 0.06577558251 | C122: 0.4333127408 | D122: 0.0120852063 | E122: 0.06577558251 | F122: 2.423933795 | G122: 0.0009873187526 | H122: 0.006367022669 | I122: 0.1612445782 | J122: 0.0003487761159 | K122: 0.006367022669 | L122: 3.08524478 | M122: 4.761594677e-06 | AE122: 0.007507914002 | AF122: 0.001646632213 | AG122: 0.04413151697 | AH122: 0.007507914002 | AI122: 0.0001835554128 | AJ122: 0.663498483 | AK122: 0.000405029057 | AL122: 2.62305976e-05 | AM122: 0.009393755546 | AN122: 0.000405029057 | AO122: 4.854568573e-07 | AP122: 0.7197953239
A123: 0.634601716 | B123: =(1+(_xlfn.COT($A123)-_xlfn.COT(B$3))^2)^(-1-B$2/2)*_xlfn.CSC($A123)^2*_xlfn.GAMMA(1+B$2/2)/(SQRT(PI())*_xlfn.GAMMA((1+B$2)/2)) -> 0.06866262109 | C123: 0.4531285082 | D123: 0.01251098038 | E123: 0.06866262109 | F123: 2.328120413 | G123: 0.001008729776 | H123: 0.006938214883 | I123: 0.1762408658 | J123: 0.000374675344 | K123: 0.006938214883 | L123: 2.914698012 | M123: 5.00098321e-06 | AE123: 0.007930219074 | AF123: 0.001723898171 | AG123: 0.04691614596 | AH123: 0.007930219074 | AI123: 0.0001898260738 | AJ123: 0.6784272434 | AK123: 0.0004468069458 | AL123: 2.850257166e-05 | AM123: 0.01045348018 | AN123: 0.0004468069458 | AO123: 5.161222563e-07 | AP123: 0.7386436968
A124: 0.6408849013 | B124: 0.07163613415 | C124: 0.4733308038 | D124: 0.01294683376 | E124: 0.07163613415 | F124: 2.233067323 | G124: 0.001030352676 | H124: 0.007552161567 | I124: 0.1922389968 | J124: 0.0004021711081 | K124: 0.007552161567 | L124: 2.746750977 | M124: 5.249359225e-06 | AE124: 0.00837093506 | AF124: 0.001803870939 | AG124: 0.0498265074 | AH124: 0.00837093506 | AI124: 0.0001962319287 | AJ124: 0.6927561046 | AK124: 0.0004923067748 | AL124: 3.09422504e-05 | AM124: 0.01161056204 | AN124: 0.0004923067748 | AO124: 5.483198886e-07 | AP124: 0.7564279612
A125: 0.6471680866 | B125: 0.07469716062 | C125: 0.4938958531 | D125: 0.01339290793 | E125: 0.07469716062 | F125: 2.13926122 | G125: 0.001052189527 | H125: 0.008211361611 | I125: 0.2092653781 | J125: 0.0004313424943 | K125: 0.008211361611 | L125: 2.582619466 | M125: 5.50696247e-06 | AE125: 0.008830608576 | AF125: 0.001886614289 | AG125: 0.05286495613 | AH125: 0.008830608576 | AI125: 0.0002027743154 | AJ125: 0.7064914118 | AK125: 0.0005418049787 | AL125: 3.355991205e-05 | AM125: 0.01287138045 | AN125: 0.0005418049787 | AO125: 5.821069748e-07 | AP125: 0.7731683948
A126: 0.6534512719 | B126: 0.07784670171 | C126: 0.5147981945 | D126: 0.01384934658 | E126: 0.07784670171 | F126: 2.047116145 | G126: 0.001074242543 | H126: 0.008918409788 | I126: 0.2273431825 | J126: 0.0004622716421 | K126: 0.008918409788 | L126: 2.423291145 | M126: 5.774038143e-06 | AE126: 0.009309792651 | AF126: 0.00197219289 | AG126: 0.05603369227 | AH126: 0.009309792651 | AI126: 0.000209454585 | AJ126: 0.7196423376 | AK126: 0.0005955939942 | AL126: 3.636634128e-05 | AM126: 0.01424247068 | AN126: 0.0005955939942 | AO126: 6.175422586e-07 | AP126: 0.788892189
A127: 0.6597344573 | B127: 0.08108571932 | C127: 0.5360107482 | D127: 0.01431629572 | E127: 0.08108571932 | F127: 1.956978276 | G127: 0.001096514077 | H127: 0.009675997285 | I127: 0.2464919886 | J127: 0.0004950438373 | K127: 0.009675997285 | L127: 2.269543618 | M127: 6.050837079e-06 | AE127: 0.009809046483 | AF127: 0.002060672323 | AG127: 0.05933475085 | AH127: 0.009809046483 | AI127: 0.000216274103 | AJ127: 0.7322204402 | AK127: 0.0006539828639 | AL127: 3.937284867e-05 | AM127: 0.01573050251 | AN127: 0.0006539828639 | AO127: 6.54686042e-07 | AP127: 0.8036320711
A128: 0.6660176426 | B128: 0.08441513454 | C128: 0.5575048954 | D128: 0.01479390377 | E128: 0.08441513454 | F128: 1.869131213 | G128: 0.001119006619 | H128: 0.01048691202 | I128: 0.2667274323 | J128: 0.0005297476094 | K128: 0.01048691202 | L128: 2.121964672 | M128: 6.337615963e-06 | AE128: 0.01032893518 | AF128: 0.002152119092 | AG128: 0.06276999186 | AH128: 0.01032893518 | AI128: 0.0002232342502 | AJ128: 0.7442392537 | AK128: 0.0007172978437 | AL128: 4.259129086e-05 | AM128: 0.01734225651 | AN128: 0.0007172978437 | AO128: 6.936002215e-07 | AP128: 0.8174250465
A129: 0.6723008279 | B129: 0.08783582617 | C129: 0.5792505667 | D129: 0.01528232159 | E129: 0.08783582617 | F129: 1.783801548 | G129: 0.001141722802 | H129: 0.01135403873 | I129: 0.2880608743 | J129: 0.0005664748305 | K129: 0.01135403873 | L129: 1.980973559 | M129: 6.634637532e-06 | AE129: 0.01087002952 | AF129: 0.002246600641 | AG129: 0.06634109087 | AH129: 0.01087002952 | AI129: 0.0002303364233 | AJ129: 0.7557139118 | AK129: 0.0007858830103 | AL129: 4.603409113e-05 | AM129: 0.01908459824 | AN129: 0.0007858830103 | AO129: 7.343483249e-07 | AP129: 0.8303112734
A130: 0.6785840132 | B130: 0.0913486292 | C130: 0.6012163406 | D130: 0.01578170264 | E130: 0.0913486292 | F130: 1.701164521 | G130: 0.001164665394 | H130: 0.0122803589 | I130: 0.310499089 | J130: 0.0006053208185 | K130: 0.0122803589 | L130: 1.846842367 | M130: 6.942170794e-06 | AE130: 0.01143290565 | AF130: 0.00234418537 | AG130: 0.07004953023 | AH130: 0.01143290565 | AI130: 0.0002375820362 | AJ130: 0.7666608077 | AK130: 0.0008601008701 | AL130: 4.971426081e-05 | AM130: 0.02096445039 | AN130: 0.0008601008701 | AO130: 7.769955507e-07 | AP130: 0.8423330706
A131: 0.6848671985 | B131: 0.09495433338 | C131: 0.6233695508 | D131: 0.016292203 | E131: 0.09495433338 | F131: 1.621349606 | G131: 0.001187837307 | H131: 0.01326895034 | I131: 0.3340439781 | J131: 0.0006463844422 | K131: 0.01326895034 | L131: 1.719716809 | M131: 7.260491252e-06 | AE131: 0.01201814483 | AF131: 0.002444942653 | AG131: 0.07389659087 | AH131: 0.01201814483 | AI131: 0.0002449725206 | AJ131: 0.777097289 | AK131: 0.0009403329655 | AL131: 5.364542122e-05 | AM131: 0.02298876304 | AN131: 0.0009403329655 | AO131: 8.21608808e-07 | AP131: 0.853534059
A132: 0.6911503838 | B132: 0.09865368181 | C132: 0.6456764009 | D132: 0.01681398151 | E132: 0.09865368181 | F132: 1.544445913 | G132: 0.00121124159 | H132: 0.01432298662 | I132: 0.3586923134 | J132: 0.0006897682306 | K132: 0.01432298662 | L132: 1.599635889 | M132: 7.589881141e-06 | AE132: 0.01262633312 | AF132: 0.002548942852 | AG132: 0.07788334488 | AH132: 0.01262633312 | AI132: 0.0002525093267 | AJ132: 0.7870413874 | AK132: 0.001026980479 | AL132: 5.784182635e-05 | AM132: 0.02516448225 | AN132: 0.001026980479 | AO132: 8.682567578e-07 | AP132: 0.8639584298
A133: 0.6974335691 | B133: =(1+(_xlfn.COT($A133)-_xlfn.COT(B$3))^2)^(-1-B$2/2)*_xlfn.CSC($A133)^2*_xlfn.GAMMA(1+B$2/2)/(SQRT(PI())*_xlfn.GAMMA((1+B$2)/2)) -> 0.1024473695 | C133: 0.6681020875 | D133: 0.01734719981 | E133: 0.1024473695 | F133: 1.470507331 | G133: 0.001234881434 | H133: 0.01544573621 | I133: 0.3844355133 | J133: 0.0007355784851 | K133: 0.01544573621 | L133: 1.486550114 | M133: 7.93062966e-06 | AE133: 0.01325806114 | AF133: 0.002656257336 | AG133: 0.08201064877 | AH133: 0.01325806114 | AI133: 0.0002601939246 | AJ133: 0.796511581 | AK133: 0.00112046483 | AL133: 6.231838615e-05 | AM133: 0.02749851705 | AN133: 0.00112046483 | AO133: 9.170098563e-07 | AP133: 0.873650332
A134: 0.7037167544 | B134: 0.1063360419 | C134: 0.6906109295 | D134: 0.01789202248 | E134: 0.1063360419 | F134: 1.399557329 | G134: 0.00125876017 | H134: 0.01664056132 | I134: 0.4112594564 | J134: 0.0007839253952 | K134: 0.01664056132 | L134: 1.380338054 | M134: 8.283033226e-06 | AE134: 0.01391392368 | AF134: 0.002766958498 | AG134: 0.08627913754 | AH134: 0.01391392368 | AI134: 0.0002680278048 | AJ134: 0.8055265886 | AK134: 0.001221228272 | AL134: 6.709069068e-05 | AM134: 0.02999770528 | AN134: 0.001221228272 | AO134: 9.679403992e-07 | AP134: 0.8826533697
A135: 0.7099999397 | B135: 0.1103202939 | C135: 0.7131665026 | D135: 0.01844861707 | E135: 0.1103202939 | F135: 1.331593403 | G135: 0.001282881273 | H135: 0.01791091655 | I135: 0.4391443341 | J135: 0.0008349231578 | K135: 0.01791091655 | L135: 1.280821125 | M135: 8.647395731e-06 | AE135: 0.01459451944 | AF135: 0.002881119776 | AG135: 0.09068921958 | AH135: 0.01459451944 | AI135: 0.000276012479 | AJ135: 0.8141051927 | AK135: 0.001329734474 | AL135: 7.217503485e-05 | AM135: 0.03266877822 | AN135: 0.001329734474 | AO135: 1.021122568e-06 | AP135: 0.8910101969
A136: 0.716283125 | B136: 0.1144006679 | C136: 0.7357317795 | D136: 0.01901715423 | E136: 0.1144006679 | F136: 1.266591138 | G136: 0.001307248357 | H136: 0.01926034714 | I136: 0.4680645483 | J136: 0.0008886901005 | K136: 0.01926034714 | L136: 1.187776615 | M136: 9.024028802e-06 | AE136: 0.0153004507 | AF136: 0.002998815669 | AG136: 0.09524107247 | AH136: 0.0153004507 | AI136: 0.0002841494815 | AJ136: 0.822266089 | AK136: 0.001446469097 | AL136: 7.758844398e-05 | AM136: 0.03551832455 | AN136: 0.001446469097 | AO136: 1.076632478e-06 | AP136: 0.8987622007
A137: 0.7225663103 | B137: 0.1185776532 | C137: 0.7582692734 | D137: 0.01959780781 | E137: 0.1185776532 | F137: 1.204507873 | G137: 0.001331865183 | H137: 0.02069248707 | I137: 0.4979886528 | J137: 0.0009453488081 | K137: 0.02069248707 | L137: 1.100948979 | M137: 9.413252085e-06 | AE137: 0.01603232298 | AF137: 0.00312012176 | AG137: 0.09993463963 | AH137: 0.01603232298 | AI137: 0.0002924403694 | AJ137: 0.8300277609 | AK137: 0.001571940355 | AL137: 8.33487002e-05 | AM137: 0.03855275376 | AN137: 0.001571940355 | AO137: 1.134548226e-06 | AP137: 0.9059492603
A138: 0.7288494956 | B138: 0.1228516844 | C138: 0.7807411841 | D138: 0.02019075491 | E138: 0.1228516844 | F138: 1.145285991 | G138: 0.001356735652 | H138: 0.02221105671 | I138: 0.5288793427 | J138: 0.001005026253 | K138: 0.02221105671 | L138: 1.020059503 | M138: 9.815393518e-06 | AE138: 0.01679074469 | AF138: 0.003245114733 | AG138: 0.1047696278 | AH138: 0.01679074469 | AI138: 0.0003008867242 | AJ138: 0.837408375 | AK138: 0.00170667957 | AL138: 8.947436958e-05 | AM138: 0.04177825934 | AN138: 0.00170667957 | AO138: 1.194949947e-06 | AP138: 0.9126095715
A139: 0.7351326809 | B139: 0.1272231399 | C139: 0.8031095464 | D139: 0.02079617599 | E139: 0.1272231399 | F139: 1.088855835 | G139: 0.001381863814 | H139: 0.0238198603 | I139: 0.560693493 | J139: 0.001067853933 | K139: 0.0238198603 | L139: 0.944814468 | M139: 1.023078963e-05 | AE139: 0.01757632682 | AF139: 0.003373872395 | AG139: 0.1097455058 | AH139: 0.01757632682 | AI139: 0.0003094901522 | AJ139: 0.8444256968 | AK139: 0.001851241705 | AL139: 9.598483009e-05 | AM139: 0.04520078208 | AN139: 0.001851241705 | AO139: 1.257919859e-06 | AP139: 0.9187795283
A140: 0.7414158662 | B140: 0.1316923414 | C140: 0.8253363793 | D140: 0.02141425498 | E140: 0.1316923414 | F140: 1.035138277 | G140: 0.001407253862 | H140: 0.02552278304 | I140: 0.5933822451 | J140: 0.001133968004 | K140: 0.02552278304 | L140: 0.8749119356 | M140: 1.065978586e-05 | AE140: 0.01838968254 | AF140: 0.003506473698 | AG140: 0.1148615036 | AH140: 0.01838968254 | AI140: 0.0003182522855 | AJ140: 0.8510970228 | AK140: 0.00200620588 | AL140: 0.0001029003005 | AM140: 0.04882597373 | AN140: 0.00200620588 | AO140: 1.323542325e-06 | AP140: 0.9244936498
A141: 0.7476990516 | B141: 0.1362595521 | C141: 0.8473838344 | D141: 0.02204517937 | E141: 0.1362595521 | F141: 0.9840469582 | G141: 0.00143291014 | H141: 0.02732378785 | I141: 0.6268911441 | J141: 0.001203509432 | K141: 0.02732378785 | L141: 0.8100473198 | M141: 1.110273683e-05 | AE141: 0.01923142686 | AF141: 0.003642998762 | AG141: 0.1201166129 | AH141: 0.01923142686 | AI141: 0.0003271747833 | AJ141: 0.8574391287 | AK141: 0.002172175873 | AL141: 0.0001102418702 | AM141: 0.05265916138 | AN141: 0.002172175873 | AO141: 1.391903905e-06 | AP141: 0.9297845472
A142: 0.7539822369 | B142: 0.1409249762 | C142: 0.8692143434 | D142: 0.02268914026 | E142: 0.1409249762 | F142: 0.9354902277 | G142: 0.001458837138 | H142: 0.0292269119 | I142: 0.6611603234 | J142: 0.001276624133 | K142: 0.0292269119 | L142: 0.7499178739 | M142: 1.156000671e-05 | AE142: 0.02010217627 | AF142: 0.003783528896 | AG142: 0.1255095885 | AH142: 0.02010217627 | AI142: 0.0003362593324 | AJ142: 0.8634682302 | AK142: 0.002349780598 | AL142: 0.0001180315296 | AM142: 0.05670531287 | AN142: 0.002349780598 | AO142: 1.463093419e-06 | AP142: 0.9346829215
A143: 0.7602654222 | B143: =(1+(_xlfn.COT($A143)-_xlfn.COT(B$3))^2)^(-1-B$2/2)*_xlfn.CSC($A143)^2*_xlfn.GAMMA(1+B$2/2)/(SQRT(PI())*_xlfn.GAMMA((1+B$2)/2)) -> 0.1456887571 | C143: 0.8907907637 | D143: 0.02334633253 | E143: 0.1456887571 | F143: 0.8893728098 | G143: 0.001485039498 | H143: 0.0312362627 | I143: 0.6961247381 | J143: 0.001353463133 | K143: 0.0312362627 | L143: 0.6942262422 | M143: 1.203196954e-05 | AE143: 0.02100254835 | AF143: 0.003928146619 | AG143: 0.1310389503 | AH143: 0.02100254835 | AI143: 0.0003455076482 | AJ143: 0.8691999547 | AK143: 0.002539674556 | AL143: 0.000126292202 | AM143: 0.06096900348 | AN143: 0.002539674556 | AO143: 1.537202006e-06 | AP143: 0.9392175871
A144: 0.7665486075 | B144: 0.150550977 | C144: 0.9120765197 | D144: 0.02401695487 | E144: 0.150550977 | F144: 0.8455972206 | G144: 0.001511522011 | H144: 0.03335601396 | I144: 0.7317144437 | J144: 0.001434182717 | K144: 0.03335601396 | L144: 0.642683204 | M144: 1.251900957e-05 | AE144: 0.02193316136 | AF144: 0.00407693569 | AG144: 0.1367029866 | AH144: 0.02193316136 | AI144: 0.0003549214758 | AJ144: 0.8746493233 | AK144: 0.002742538269 | AL144: 0.000135047776 | AM144: 0.06545438425 | AN144: 0.002742538269 | AO144: 1.614323185e-06 | AP144: 0.9434155139
A145: 0.7728317928 | B145: 0.1555116559 | C145: 0.9330357416 | D145: 0.02470120992 | E145: 0.1555116559 | F145: 0.8040649644 | G145: 0.001538289625 | H145: 0.03559040104 | I145: 0.7678549176 | J145: 0.001518944601 | K145: 0.03559040104 | L145: 0.5950097335 | M145: 1.302152162e-05 | AE145: 0.02289463394 | AF145: 0.004229981127 | AG145: 0.142499758 | AH145: 0.02289463394 | AI145: 0.0003645025911 | AJ145: 0.8798307412 | AK145: 0.002959078679 | AL145: 0.0001443231393 | AM145: 0.07016515218 | AN145: 0.002959078679 | AO145: 1.694552923e-06 | AP145: 0.947301886
A146: 0.7791149781 | B146: 0.1605707501 | C146: 0.9536333976 | D146: 0.02539930435 | E146: 0.1605707501 | F146: 0.7646775314 | G146: 0.001565347441 | H146: 0.03794371612 | I146: 0.8044674224 | J146: 0.001607916091 | K146: 0.03794371612 | L146: 0.5509384823 | M146: 1.353991148e-05 | AE146: 0.02388758459 | AF146: 0.004387369233 | AG146: 0.1484271022 | AH146: 0.02388758459 | AI146: 0.0003742528011 | AJ146: 0.8847579937 | AK146: 0.003190029518 | AL146: 0.000154144213 | AM146: 0.07510452261 | AN146: 0.003190029518 | AO146: 1.777989705e-06 | AP146: 0.9509001703
A147: 0.7853981634 | B147: 0.1657281518 | C147: 0.9738354213 | D147: 0.02611144897 | E147: 0.1657281518 | F147: 0.7273372231 | G147: 0.001592700717 | H147: 0.04042030301 | I147: 0.8414694054 | J147: 0.001701270261 | K147: 0.04042030301 | L147: 0.510214785 | M147: 1.407459624e-05 | AE147: 0.02491263139 | AF147: 0.004549187625 | AG147: 0.15448264 | AH147: 0.02491263139 | AI147: 0.0003841739459 | AJ147: 0.8894442498 | AK147: 0.003436151654 | AL147: 0.0001645379875 | AM147: 0.08027520392 | AN147: 0.003436151654 | AO147: 1.864734596e-06 | AP147: 0.9542321933
A148: 0.7916813487 | B148: 0.1709836884 | C148: 0.9936088323 | D148: 0.02683785881 | E148: 0.1709836884 | F148: 0.6919478236 | G148: 0.001620354872 | H148: 0.04302455162 | I148: 0.8787749313 | J148: 0.00179918613 | K148: 0.04302455162 | L148: 0.4725972711 | M148: 1.462600473e-05 | AE148: 0.02597039151 | AF148: 0.004715525255 | AG148: 0.1606637812 | AH148: 0.02597039151 | AI148: 0.0003942678988 | AJ148: 0.8939020687 | AK148: 0.003698233397 | AL148: 0.0001755325592 | AM148: 0.08567937496 | AN148: 0.003698233397 | AO148: 1.954891323e-06 | AP148: 0.957318223
A149: 0.797964534 | B149: 0.1763371211 | C149: 1.01292185 | D149: 0.02757875326 | E149: 0.1763371211 | F149: 0.6584151399 | G149: 0.001648315485 | H149: 0.04576089214 | I149: 0.9162951448 | J149: 0.001901848844 | K149: 0.04576089214 | L149: 0.4378581593 | M149: 1.519457794e-05 | AE149: 0.02706148083 | AF149: 0.004886472442 | AG149: 0.1669677325 | AH149: 0.02706148083 | AI149: 0.0004045365676 | AJ149: 0.8981434111 | AK149: 0.003977090766 | AL149: 0.0001871571685 | AM149: 0.0913186652 | AN149: 0.003977090766 | AO149: 2.048566341e-06 | AP149: 0.9601770533
A150: 0.8042477193 | B150: 0.1817881447 | C150: 1.031743997 | D150: 0.02833435615 | E150: 0.1817881447 | F150: 0.6266474262 | G150: 0.001676588297 | H150: 0.04863378884 | I150: 0.953938757 | J150: 0.002009449867 | K150: 0.04863378884 | L150: 0.4057832976 | M150: 1.578076938e-05 | AE150: 0.02818651352 | AF150: 0.005062120895 | AG150: 0.1733915044 | AH150: 0.02818651352 | AI150: 0.0004149818959 | AJ150: 0.9021796537 | AK150: 0.004273567728 | AL150: 0.0001994422389 | AM150: 0.09719413792 | AN150: 0.004273567728 | AO150: 2.145868919e-06 | AP150: 0.9628260899
A151: 0.8105309046 | B151: 0.1873363865 | C151: 1.050046201 | D151: 0.02910489583 | E151: 0.1873363865 | F151: 0.5965557106 | G151: 0.001705179218 | H151: 0.05164773356 | I151: 0.9916125517 | J151: 0.002122187176 | K151: 0.05164773356 | L151: 0.3761720045 | M151: 1.638504561e-05 | AE151: =(0.5 - (_xlfn.GAMMA(B$2/2+1)/(SQRT(PI())*_xlfn.GAMMA(B$2/2+0.5))) * COS(ATAN(TAN($A151-PI()/2)+TAN(B$3-PI()/2))+PI()/2) * (_xlfn.BETA.DIST(COS(ATAN(TAN($A151-PI()/2)+TAN(B$3-PI()/2))+PI()/2)^2,0.5,(1+B$2)/2,TRUE)*EXP(GAMMALN(0.5)+GAMMALN((1+B$2)/2)-GAMMALN(0.5+(1+B$2)/2))*0.5/((COS(ATAN(TAN($A151-PI()/2)+TAN(B$3-PI()/2))+PI()/2)^2)^0.5)) ) -> 0.02934610164 | AF151: =(0.5 - (_xlfn.GAMMA(C$2/2+1)/(SQRT(PI())*_xlfn.GAMMA(C$2/2+0.5))) * COS(ATAN(TAN($A151-PI()/2)+TAN(C$3-PI()/2))+PI()/2) * (_xlfn.BETA.DIST(COS(ATAN(TAN($A151-PI()/2)+TAN(C$3-PI()/2))+PI()/2)^2,0.5,(1+C$2)/2,TRUE)*EXP(GAMMALN(0.5)+GAMMALN((1+C$2)/2)-GAMMALN(0.5+(1+C$2)/2))*0.5/((COS(ATAN(TAN($A151-PI()/2)+TAN(C$3-PI()/2))+PI()/2)^2)^0.5)) ) -> 0.005242563745 | AG151: =(0.5 - (_xlfn.GAMMA(D$2/2+1)/(SQRT(PI())*_xlfn.GAMMA(D$2/2+0.5))) * COS(ATAN(TAN($A151-PI()/2)+TAN(D$3-PI()/2))+PI()/2) * (_xlfn.BETA.DIST(COS(ATAN(TAN($A151-PI()/2)+TAN(D$3-PI()/2))+PI()/2)^2,0.5,(1+D$2)/2,TRUE)*EXP(GAMMALN(0.5)+GAMMALN((1+D$2)/2)-GAMMALN(0.5+(1+D$2)/2))*0.5/((COS(ATAN(TAN($A151-PI()/2)+TAN(D$3-PI()/2))+PI()/2)^2)^0.5)) ) -> 0.1799319208 | AH151: =(0.5 - (_xlfn.GAMMA(E$2/2+1)/(SQRT(PI())*_xlfn.GAMMA(E$2/2+0.5))) * COS(ATAN(TAN($A151-PI()/2)+TAN(E$3-PI()/2))+PI()/2) * (_xlfn.BETA.DIST(COS(ATAN(TAN($A151-PI()/2)+TAN(E$3-PI()/2))+PI()/2)^2,0.5,(1+E$2)/2,TRUE)*EXP(GAMMALN(0.5)+GAMMALN((1+E$2)/2)-GAMMALN(0.5+(1+E$2)/2))*0.5/((COS(ATAN(TAN($A151-PI()/2)+TAN(E$3-PI()/2))+PI()/2)^2)^0.5)) ) -> 0.02934610164 | AI151: =(0.5 - (_xlfn.GAMMA(F$2/2+1)/(SQRT(PI())*_xlfn.GAMMA(F$2/2+0.5))) * COS(ATAN(TAN($A151-PI()/2)+TAN(F$3-PI()/2))+PI()/2) * (_xlfn.BETA.DIST(COS(ATAN(TAN($A151-PI()/2)+TAN(F$3-PI()/2))+PI()/2)^2,0.5,(1+F$2)/2,TRUE)*EXP(GAMMALN(0.5)+GAMMALN((1+F$2)/2)-GAMMALN(0.5+(1+F$2)/2))*0.5/((COS(ATAN(TAN($A151-PI()/2)+TAN(F$3-PI()/2))+PI()/2)^2)^0.5)) ) -> 0.0004256058638 | AJ151: =(0.5 - (_xlfn.GAMMA(G$2/2+1)/(SQRT(PI())*_xlfn.GAMMA(G$2/2+0.5))) * COS(ATAN(TAN($A151-PI()/2)+TAN(G$3-PI()/2))+PI()/2) * (_xlfn.BETA.DIST(COS(ATAN(TAN($A151-PI()/2)+TAN(G$3-PI()/2))+PI()/2)^2,0.5,(1+G$2)/2,TRUE)*EXP(GAMMALN(0.5)+GAMMALN((1+G$2)/2)-GAMMALN(0.5+(1+G$2)/2))*0.5/((COS(ATAN(TAN($A151-PI()/2)+TAN(G$3-PI()/2))+PI()/2)^2)^0.5)) ) -> 0.9060216049 | AK151: =(0.5 - (_xlfn.GAMMA(H$2/2+1)/(SQRT(PI())*_xlfn.GAMMA(H$2/2+0.5))) * COS(ATAN(TAN($A151-PI()/2)+TAN(H$3-PI()/2))+PI()/2) * (_xlfn.BETA.DIST(COS(ATAN(TAN($A151-PI()/2)+TAN(H$3-PI()/2))+PI()/2)^2,0.5,(1+H$2)/2,TRUE)*EXP(GAMMALN(0.5)+GAMMALN((1+H$2)/2)-GAMMALN(0.5+(1+H$2)/2))*0.5/((COS(ATAN(TAN($A151-PI()/2)+TAN(H$3-PI()/2))+PI()/2)^2)^0.5)) ) -> 0.00458853639 | AL151: =(0.5 - (_xlfn.GAMMA(I$2/2+1)/(SQRT(PI())*_xlfn.GAMMA(I$2/2+0.5))) * COS(ATAN(TAN($A151-PI()/2)+TAN(I$3-PI()/2))+PI()/2) * (_xlfn.BETA.DIST(COS(ATAN(TAN($A151-PI()/2)+TAN(I$3-PI()/2))+PI()/2)^2,0.5,(1+I$2)/2,TRUE)*EXP(GAMMALN(0.5)+GAMMALN((1+I$2)/2)-GAMMALN(0.5+(1+I$2)/2))*0.5/((COS(ATAN(TAN($A151-PI()/2)+TAN(I$3-PI()/2))+PI()/2)^2)^0.5)) ) -> 0.0002124194172 | AM151: =(0.5 - (_xlfn.GAMMA(J$2/2+1)/(SQRT(PI())*_xlfn.GAMMA(J$2/2+0.5))) * COS(ATAN(TAN($A151-PI()/2)+TAN(J$3-PI()/2))+PI()/2) * (_xlfn.BETA.DIST(COS(ATAN(TAN($A151-PI()/2)+TAN(J$3-PI()/2))+PI()/2)^2,0.5,(1+J$2)/2,TRUE)*EXP(GAMMALN(0.5)+GAMMALN((1+J$2)/2)-GAMMALN(0.5+(1+J$2)/2))*0.5/((COS(ATAN(TAN($A151-PI()/2)+TAN(J$3-PI()/2))+PI()/2)^2)^0.5)) ) -> 0.1033062765 | AN151: =(0.5 - (_xlfn.GAMMA(K$2/2+1)/(SQRT(PI())*_xlfn.GAMMA(K$2/2+0.5))) * COS(ATAN(TAN($A151-PI()/2)+TAN(K$3-PI()/2))+PI()/2) * (_xlfn.BETA.DIST(COS(ATAN(TAN($A151-PI()/2)+TAN(K$3-PI()/2))+PI()/2)^2,0.5,(1+K$2)/2,TRUE)*EXP(GAMMALN(0.5)+GAMMALN((1+K$2)/2)-GAMMALN(0.5+(1+K$2)/2))*0.5/((COS(ATAN(TAN($A151-PI()/2)+TAN(K$3-PI()/2))+PI()/2)^2)^0.5)) ) -> 0.00458853639 | AO151: =(0.5 - (_xlfn.GAMMA(L$2/2+1)/(SQRT(PI())*_xlfn.GAMMA(L$2/2+0.5))) * COS(ATAN(TAN($A151-PI()/2)+TAN(L$3-PI()/2))+PI()/2) * (_xlfn.BETA.DIST(COS(ATAN(TAN($A151-PI()/2)+TAN(L$3-PI()/2))+PI()/2)^2,0.5,(1+L$2)/2,TRUE)*EXP(GAMMALN(0.5)+GAMMALN((1+L$2)/2)-GAMMALN(0.5+(1+L$2)/2))*0.5/((COS(ATAN(TAN($A151-PI()/2)+TAN(L$3-PI()/2))+PI()/2)^2)^0.5)) ) -> 2.246911214e-06 | AP151: =(0.5 - (_xlfn.GAMMA(M$2/2+1)/(SQRT(PI())*_xlfn.GAMMA(M$2/2+0.5))) * COS(ATAN(TAN($A151-PI()/2)+TAN(M$3-PI()/2))+PI()/2) * (_xlfn.BETA.DIST(COS(ATAN(TAN($A151-PI()/2)+TAN(M$3-PI()/2))+PI()/2)^2,0.5,(1+M$2)/2,TRUE)*EXP(GAMMALN(0.5)+GAMMALN((1+M$2)/2)-GAMMALN(0.5+(1+M$2)/2))*0.5/((COS(ATAN(TAN($A151-PI()/2)+TAN(M$3-PI()/2))+PI()/2)^2)^0.5)) ) -> 0.9652814354
A152: =A151+$B$5 -> 0.8168140899 | B152: 0.1929814061 | C152: 1.067800878 | D152: 0.02989060534 | E152: 0.1929814061 | F152: 0.5680540376 | G152: 0.001734094324 | H152: 0.05480723887 | I152: 1.029221907 | J152: 0.002240265466 | K152: 0.05480723887 | L152: 0.3488367565 | M152: 1.700788664e-05 | AE152: 0.03054085468 | AF152: 0.005427895574 | AG152: 0.1865856273 | AH152: 0.03054085468 | AI152: 0.0004364104889 | AJ152: 0.9096795238 | AK152: 0.00492289715 | AL152: 0.0002261216151 | AM152: 0.1096549739 | AN152: 0.00492289715 | AO152: 2.351808356e-06 | AP152: 0.9675579728
A153: 0.8230972752 | B153: =(1+(_xlfn.COT($A153)-_xlfn.COT(B$3))^2)^(-1-B$2/2)*_xlfn.CSC($A153)^2*_xlfn.GAMMA(1+B$2/2)/(SQRT(PI())*_xlfn.GAMMA((1+B$2)/2)) -> 0.1987226945 | C153: 1.084982015 | D153: 0.03069172245 | E153: 0.1987226945 | F153: 0.5410596388 | G153: 0.001763339864 | H153: 0.05811683094 | I153: 1.066671324 | J153: 0.002363896351 | K153: 0.05811683094 | L153: 0.3236027607 | M153: 1.764978639e-05 | AE153: 0.03177137914 | AF153: 0.005618212439 | AG153: 0.1933491011 | AH153: 0.03177137914 | AI153: 0.0004473978278 | AJ153: 0.9131631391 | AK153: 0.005277578806 | AL153: 0.0002405830522 | AM153: 0.1162395255 | AN153: 0.005277578806 | AO153: 2.460678536e-06 | AP153: 0.9696694474
A154: 0.8293804605 | B154: 0.2045596734 | C154: 1.101565239 | D154: 0.03150848981 | E154: 0.2045596734 | F154: 0.5154930443 | G154: 0.001792922258 | H154: 0.06158104206 | I154: 1.103864966 | J154: 0.002493298585 | K154: 0.06158104206 | L154: 0.3003074448 | M154: 1.831125323e-05 | AE154: 0.03303827813 | AF154: 0.00581361191 | AG154: 0.200218661 | AH154: 0.03303827813 | AI154: 0.0004585699766 | AJ154: 0.9164816699 | AK154: 0.00565353862 | AL154: 0.0002558392997 | AM154: 0.1230586253 | AN154: 0.00565353862 | AO154: 2.573643093e-06 | AP154: 0.9716285446
A155: 0.8356636459 | B155: 0.2104916953 | C155: 1.117527877 | D155: 0.03234115507 | E155: 0.2104916953 | F155: 0.4912781439 | G155: 0.001822848106 | H155: 0.06520440289 | I155: 1.14070719 | J155: 0.002628698279 | K155: 0.06520440289 | L155: 0.2787998901 | M155: 1.899281046e-05 | AE155: 0.03434215087 | AF155: 0.006014193096 | AG155: 0.2071904783 | AH155: 0.03434215087 | AI155: 0.0004699290727 | AJ155: 0.9196438465 | AK155: 0.006051762327 | AL155: 0.0002719273267 | AM155: 0.1301103657 | AN155: 0.006051762327 | AO155: 2.690826607e-06 | AP155: 0.9734469655
A156: 0.8419468312 | B156: 0.2165180424 | C156: 1.132849009 | D156: 0.03318997094 | E156: 0.2165180424 | F156: 0.4683422069 | G156: 0.001853124185 | H156: 0.06899143435 | I156: 1.177103077 | J156: 0.002770329132 | K156: 0.06899143435 | L156: 0.2589402289 | M156: 1.969499682e-05 | AE156: 0.03568359234 | AF156: 0.006220056676 | AG156: 0.2142605868 | AH156: 0.03568359234 | AI156: 0.000481477295 | AJ156: 0.9226579315 | AK156: 0.006473264104 | AL156: 0.0002888855465 | AM156: 0.1373922397 | AN156: 0.006473264104 | AO156: 2.812356993e-06 | AP156: 0.9751354979
A157: 0.8482300165 | B157: 0.2226379267 | C157: 1.147509504 | D157: 0.03405519535 | E157: 0.2226379267 | F157: 0.4466158674 | G157: 0.001883757458 | H157: 0.07294663931 | I157: 1.212958951 | J157: 0.002918432664 | K157: 0.07294663931 | L157: 0.2405990229 | M157: 2.041836705e-05 | AE157: 0.03706319275 | AF157: 0.006431304937 | AG157: 0.221424895 | AH157: 0.03706319275 | AI157: 0.0004932168661 | AJ157: 0.9255317414 | AK157: 0.006919086483 | AL157: 0.0003067538651 | AM157: 0.1449011481 | AN157: 0.006919086483 | AO157: 2.938365602e-06 | AP157: 0.976704084
A158: 0.8545132018 | B158: 0.2288504895 | C158: 1.16149206 | D158: 0.03493709156 | E158: 0.2288504895 | F158: 0.4260330832 | G158: 0.001914755071 | H158: 0.07707449393 | I158: 1.248182886 | J158: 0.00307325846 | K158: 0.07707449393 | L158: 0.2236566365 | M158: 2.116349247e-05 | AE158: 0.03848153715 | AF158: 0.006648041799 | AG158: 0.2286791965 | AH158: 0.03848153715 | AI158: 0.0005051500524 | AJ158: 0.9282726669 | AK158: 0.007390300208 | AL158: 0.0003255737315 | AM158: 0.1526334078 | AN158: 0.007390300208 | AO158: 3.068987323e-06 | AP158: 0.9781618835
A159: 0.8607963871 | B159: 0.2351548011 | C159: 1.174781215 | D159: 0.03583592825 | E159: 0.2351548011 | F159: 0.4065310717 | G159: 0.001946124364 | H159: 0.08137943879 | I159: 1.282685186 | J159: 0.00323506442 | K159: 0.08137943879 | L159: 0.2080026155 | M159: 2.193096152e-05 | AE159: 0.03993920498 | AF159: 0.006870372857 | AG159: 0.2360191823 | AH159: 0.03993920498 | AI159: 0.0005172791663 | AJ159: 0.9308876943 | AK159: 0.007888004039 | AL159: 0.0003453881885 | AM159: 0.1605847652 | AN159: 0.007888004039 | AO159: 3.204360687e-06 | AP159: 0.9795173339
A160: 0.8670795724 | B160: 0.2415498607 | C160: 1.18736337 | D160: 0.03675197965 | E160: 0.2415498607 | F160: 0.3880502294 | G160: 0.001977872867 | H160: 0.08586586968 | I160: 1.316378852 | J160: 0.003404117016 | K160: 0.08586586968 | L160: 0.1935350784 | M160: 2.27213804e-05 | AE160: 0.0414367696 | AF160: 0.007098405409 | AG160: 0.2434404518 | AH160: 0.0414367696 | AI160: 0.0005296065667 | AJ160: 0.9333834255 | AK160: 0.008413324503 | AL160: 0.0003662419266 | AM160: 0.1687504114 | AN160: 0.008413324503 | AO160: 3.344627978e-06 | AP160: 0.9807782058
A161: 0.8733627577 | B161: 0.248034596 | C161: 1.199226785 | D161: 0.03768552568 | E161: 0.248034596 | F161: 0.3705340378 | G161: 0.00201000831 | H161: 0.09053812826 | I161: 1.349180014 | J161: 0.003580691557 | K161: 0.09053812826 | L161: 0.1801601274 | M161: 2.35353737e-05 | AE161: 0.04297479787 | AF161: 0.007332248495 | AG161: 0.250938525 | AH161: 0.04297479787 | AI161: 0.0005421346602 | AJ161: 0.9357660975 | AK161: 0.008967415582 | AL161: 0.0003881813379 | AM161: 0.1771250002 | AN161: 0.008967415582 | AO161: 3.489935347e-06 | AP161: 0.9819516552
A162: 0.879645943 | B162: 0.2546078637 | C162: 1.210361578 | D162: 0.03863685205 | E162: 0.2546078637 | F162: 0.3539289591 | G162: 0.002042538623 | H162: 0.09540049241 | I162: 1.381008338 | J162: 0.003765072467 | K162: 0.09540049241 | L162: 0.1677912819 | M162: 2.437358503e-05 | AE162: 0.04455384969 | AF162: 0.00757201293 | AG162: 0.2585088539 | AH162: 0.04455384969 | AI162: 0.000554865903 | AJ162: 0.9380416016 | AK162: 0.009551458339 | AL162: 0.0004112545728 | AM162: 0.1857026697 | AN162: 0.009551458339 | AO162: 3.640432927e-06 | AP162: 0.9830442715
A163: 0.8859291283 | B163: =(1+(_xlfn.COT($A163)-_xlfn.COT(B$3))^2)^(-1-B$2/2)*_xlfn.CSC($A163)^2*_xlfn.GAMMA(1+B$2/2)/(SQRT(PI())*_xlfn.GAMMA((1+B$2)/2)) -> 0.2612684488 | C163: 1.22075971 | D163: 0.03960625037 | E163: 0.2612684488 | F163: 0.338184326 | G163: 0.002075471942 | H163: 0.1004571664 | I163: 1.411787402 | J163: 0.003957553561 | K163: 0.1004571664 | L163: 0.156348939 | M163: 2.523667767e-05 | AE163: 0.04617447753 | AF163: 0.007817811346 | AG163: 0.2661468342 | AH163: 0.04617447753 | AI163: 0.0005678028016 | AJ163: 0.9402155019 | AK163: 0.01016666049 | AL163: 0.0004355115982 | AM163: 0.194477065 | AN163: 0.01016666049 | AO163: 3.796274959e-06 | AP163: 0.9840621227
A164: 0.8922123136 | B164: 0.2680150649 | C164: 1.230414964 | D164: 0.04059401833 | E164: 0.2680150649 | F164: 0.323252226 | G164: 0.002108816614 | H164: 0.1057122709 | I164: 1.441445029 | J164: 0.004158438344 | K164: 0.1057122709 | L164: 0.1457598618 | M164: 2.612533536e-05 | AE164: 0.04783722603 | AF164: 0.008069758224 | AG164: 0.2738478168 | AH164: 0.04783722603 | AI164: 0.0005809479142 | AJ164: 0.9422930527 | AK164: 0.01081425592 | AL164: 0.0004610042575 | AM164: 0.2034413644 | AN164: 0.01081425592 | AO164: 3.957619914e-06 | AP164: 0.9850107969
A165: 0.8984954989 | B165: 0.2748463544 | C165: 1.239322913 | D165: 0.04160045975 | E165: 0.2748463544 | F165: 0.3090873832 | G165: 0.002142581198 | H165: 0.1111698327 | I165: 1.469913593 | J165: 0.004368040303 | K165: 0.1111698327 | L165: 0.1359566966 | M165: 2.70402629e-05 | AE165: 0.04954263151 | AF165: 0.008327969934 | AG165: 0.2816071194 | AH165: 0.04954263151 | AI165: 0.0005943038522 | AJ165: 0.9442792159 | AK165: 0.0114955041 | AL165: 0.0004877863321 | AM165: 0.2125883067 | AN165: 0.0114955041 | AO165: 4.124630624e-06 | AP165: 0.9858954407
A166: 0.9047786842 | B166: 0.2817608886 | C166: 1.247480888 | D166: 0.04262588477 | E166: 0.2817608886 | F166: 0.2956470396 | G166: 0.002176774476 | H166: 0.1168337744 | I166: 1.49713028 | J166: 0.004586683223 | K166: 0.1168337744 | L166: 0.1268775199 | M166: 2.798218703e-05 | AE166: 0.05129122154 | AF166: 0.008592564778 | AG166: 0.289420037 | AH166: 0.05129122154 | AI166: 0.0006078732814 | AJ166: 0.9461786766 | AK166: 0.01221168949 | AL166: 0.0005159136054 | AM166: 0.2219102211 | AN166: 0.01221168949 | AO166: 4.297474419e-06 | AP166: 0.9867207951
A167: 0.9110618695 | B167: 0.2887571678 | C167: 1.254887935 | D167: 0.04367060993 | E167: 0.2887571678 | F167: 0.2828908361 | G167: 0.00221140545 | H167: 0.1227079038 | I167: 1.523037314 | J167: 0.004814701501 | K167: 0.1227079038 | L167: 0.1184654138 | M167: 2.895185711e-05 | AE167: 0.05308351447 | AF167: 0.008863663022 | AG167: 0.2972818537 | AH167: 0.05308351447 | AI167: 0.0006216589237 | AJ167: 0.9479958589 | AK167: 0.01296412084 | AL167: 0.0005454439283 | AM167: 0.2313990574 | AN167: 0.01296412084 | AO167: 4.476323266e-06 | AP167: 0.9874912275
A168: 0.9173450548 | B168: 0.2958336215 | C168: 1.261544762 | D168: 0.04473495836 | E168: 0.2958336215 | F168: 0.2707806954 | G168: 0.002246483355 | H168: 0.1287959037 | I168: 1.547582143 | J168: 0.005052440479 | K168: 0.1287959037 | L168: 0.1106680711 | M168: 2.995004597e-05 | AE168: 0.05492001905 | AF168: 0.009141386945 | AG168: 0.3051878525 | AH168: 0.05492001905 | AI168: 0.0006356635579 | AJ168: 0.9497349406 | AK168: 0.01375413042 | AL168: 0.000576437287 | AM168: 0.241046419 | AN168: 0.01375413042 | AO168: 4.661353913e-06 | AP168: 0.9882107626
A169: 0.9236282402 | B169: 0.3029886092 | C169: 1.26745369 | D169: 0.04581925986 | E169: 0.3029886092 | F169: 0.2592807063 | G169: 0.002282017657 | H169: 0.1351013204 | I169: 1.570717582 | J169: 0.005300256778 | K169: 0.1351013204 | L169: 0.1034374265 | M169: 3.097755077e-05 | AE169: 0.05680123389 | AF169: 0.009425860877 | AG169: 0.3131333262 | AH169: 0.05680123389 | AI169: 0.0006498900219 | AJ169: 0.9513998672 | AK169: 0.01458307326 | AL169: 0.0006089558729 | AM169: 0.250843596 | AN169: 0.01458307326 | AO169: 4.852748041e-06 | AP169: 0.9888831101
A170: 0.9299114255 | B170: 0.3102204202 | C170: 1.27261859 | D170: 0.04692385106 | E170: 0.3102204202 | F170: 0.2483570121 | G170: 0.002318018066 | H170: 0.1416275537 | I170: 1.592401922 | J170: 0.005558518646 | K170: 0.1416275537 | L170: 0.09672931581 | M170: 3.203519383e-05 | AE170: 0.0587276471 | AF170: 0.00971721124 | AG170: 0.3211135869 | AH170: 0.0587276471 | AI170: 0.0006643412137 | AJ170: 0.9529943649 | AK170: 0.01545232618 | AL170: 0.0006430641544 | AM170: 0.2607815988 | AN170: 0.01545232618 | AO170: 5.050692417e-06 | AP170: 0.9895116898
A171: 0.9361946108 | B171: 0.3175272743 | C171: 1.277044824 | D171: 0.04804907557 | E171: 0.3175272743 | F171: 0.2379777009 | G171: 0.002354494533 | H171: 0.1483778457 | I171: 1.612598996 | J171: 0.005827606325 | K171: 0.1483778457 | L171: 0.09050315926 | M171: 3.312382358e-05 | AE171: 0.06069973583 | AF171: 0.01001556659 | AG171: 0.3291239759 | AH171: 0.06069973583 | AI171: 0.0006790200931 | AJ171: 0.9545219535 | AK171: 0.01636328687 | AL171: 0.000678828951 | AM171: 0.2708511934 | AN171: 0.01636328687 | AO171: 5.255379056e-06 | AP171: 0.9900996557
A172: 0.9424777961 | B172: 0.3249073226 | C172: 1.280739172 | D172: 0.04919528406 | E172: 0.3249073226 | F172: 0.2281127011 | G172: 0.002391457265 | H172: 0.1553552696 | I172: 1.63127821 | J172: 0.006107912409 | K172: 0.1553552696 | L172: 0.08472166948 | M172: 3.424431547e-05 | AE172: 0.06271796582 | AF172: 0.01032105768 | AG172: 0.3371598725 | AH172: 0.06271796582 | AI172: 0.0006939296831 | AJ172: 0.955985958 | AK172: 0.01731737289 | AL172: 0.0007163195101 | AM172: 0.281042936 | AN172: 0.01731737289 | AO172: 5.46700539e-06 | AP172: 0.9906499171
A173: 0.9487609814 | B173: =(1+(_xlfn.COT($A173)-_xlfn.COT(B$3))^2)^(-1-B$2/2)*_xlfn.CSC($A173)^2*_xlfn.GAMMA(1+B$2/2)/(SQRT(PI())*_xlfn.GAMMA((1+B$2)/2)) -> 0.3323586475 | C173: 1.283709769 | D173: 0.0503628345 | E173: 0.3323586475 | F173: 0.2187336795 | G173: 0.002428916724 | H173: 0.1625627196 | I173: 1.648414539 | J173: 0.006399842235 | K173: 0.1625627196 | L173: 0.07935058163 | M173: 3.539757297e-05 | AE173: 0.06478279095 | AF173: 0.01063381746 | AG173: 0.3452167031 | AH173: 0.06478279095 | AI173: 0.0007090730717 | AJ173: 0.9573895199 | AK173: 0.01831602054 | AL173: 0.0007556075858 | AM173: 0.2913472081 | AN173: 0.01831602054 | AO173: 5.685774438e-06 | AP173: 0.9911651589
A174: 0.9550441667 | B174: 0.3398792637 | C174: 1.285966027 | D174: 0.0515520922 | E174: 0.3398792637 | F174: 0.2098139444 | G174: 0.002466883636 | H174: 0.1700028993 | I174: 1.663988485 | J174: 0.006703814271 | K174: 0.1700028993 | L174: 0.07435840479 | M174: 3.658452855e-05 | AE174: 0.06689465288 | AF174: 0.01095398119 | AG174: 0.353289949 | AH174: 0.06689465288 | AI174: 0.0007244534136 | AJ174: 0.9587356083 | AK174: 0.01936068372 | AL174: 0.0007967675197 | AM174: 0.3017542514 | AN174: 0.01936068372 | AO174: 5.911894986e-06 | AP174: 0.9916478594
A175: 0.961327352 | B175: 0.3474671192 | C175: 1.287518561 | D175: 0.05276343002 | E175: 0.3474671192 | F175: 0.201328353 | G175: 0.002505369 | H175: 0.1776783111 | I175: 1.677986005 | J175: 0.007020260519 | K175: 0.1776783111 | L175: 0.06971619308 | M175: 3.780614478e-05 | AE175: 0.06905398057 | AF175: 0.0112816864 | AG175: 0.3613751548 | AH175: 0.06905398057 | AI175: 0.0007400739316 | AJ175: 0.9600270289 | AK175: 0.02045283266 | AL175: 0.0008398763254 | AM175: 0.3122542021 | AN175: 0.02045283266 | AO175: 6.145581773e-06 | AP175: 0.992100307
A176: 0.9676105373 | B176: 0.3551200951 | C176: 1.288379112 | D176: 0.0539972285 | E176: 0.3551200951 | F176: 0.1932532225 | G176: 0.002544384089 | H176: 0.1855912458 | I176: 1.690398411 | J176: 0.007349626932 | K176: 0.1855912458 | L176: 0.06539733517 | M176: 3.90634154e-05 | AE176: 0.07126118987 | AF176: 0.01161707304 | AG176: 0.3694679351 | AH176: 0.07126118987 | AI176: 0.0007559379184 | AJ176: 0.9612664345 | AK176: 0.02159395271 | AL176: 0.0008850137742 | AM176: 0.3228371252 | AN176: 0.02159395271 | AO176: 6.387055684e-06 | AP176: 0.992524616
A177: 0.9738937226 | B177: 0.3628360075 | C177: 1.288560472 | D177: 0.05525387601 | E177: 0.3628360075 | F177: 0.185566246 | G177: 0.002583940465 | H177: 0.1937437714 | I177: 1.701222234 | J177: 0.007692373843 | K177: 0.1937437714 | L177: 0.06137736091 | M177: 4.035736647e-05 | AE177: 0.07351668312 | AF177: 0.01196028344 | AG177: 0.3775639817 | AH177: 0.07351668312 | AI177: 0.0007720487387 | AJ177: 0.9624563334 | AK177: 0.02278554286 | AL177: 0.0009322624843 | AM177: 0.3334930475 | AN177: 0.02278554286 | AO177: 6.636543949e-06 | AP177: 0.99292274
A178: 0.9801769079 | B178: 0.3706126077 | C178: 1.288076404 | D178: 0.05653376888 | E178: 0.3706126077 | F178: 0.1782464121 | G178: 0.002624049978 | H178: 0.2021377229 | I178: 1.710459071 | J178: 0.008048976405 | K178: 0.2021377229 | L178: 0.05763376375 | M178: 4.168905754e-05 | AE178: 0.07582084872 | AF178: 0.01231146241 | AG178: 0.3856590698 | AH178: 0.07582084872 | AI178: 0.0007884098304 | AJ178: 0.9635990976 | AK178: 0.0240291144 | AL178: 0.0009817080129 | AM178: 0.3442119902 | AN178: 0.0240291144 | AO178: 6.894280349e-06 | AP178: 0.9932964853
A179: 0.9864600932 | B179: 0.3784475834 | C179: 1.286941562 | D179: 0.05783731157 | E179: 0.3784475834 | F179: 0.1712739296 | G179: 0.00266472478 | H179: 0.2107746918 | I179: 1.718115406 | J179: 0.008419925042 | K179: 0.2107746918 | L179: 0.05414583789 | M179: 4.305958291e-05 | AE179: 0.07817406077 | AF179: 0.01267075727 | AG179: 0.3937490641 | AH179: 0.07817406077 | AI179: 0.0008050247071 | AJ179: 0.9646969713 | AK179: 0.02532618939 | AL179: 0.00103343895 | AM179: 0.3549839996 | AN179: 0.02532618939 | AO179: 7.160505429e-06 | AP179: 0.9936475226
A180: 0.9927432785 | B180: 0.3863385594 | C180: 1.285171414 | D180: 0.05916491685 | E180: 0.3863385594 | F180: 0.1646301549 | G180: 0.002705977328 | H180: 0.219656016 | I180: 1.724202407 | J180: 0.00880572592 | K180: 0.219656016 | L180: 0.05089452883 | M180: 4.447007287e-05 | AE180: 0.08057667861 | AF180: 0.0130383179 | AG180: 0.4018299238 | AH180: 0.08057667861 | AI180: 0.0008218969596 | AJ180: 0.9657520777 | AK180: 0.02667829909 | AL180: 0.001087547017 | AM180: 0.365799178 | AN180: 0.02667829909 | AO180: 7.435466725e-06 | AP180: 0.9939773975
A181: 0.9990264638 | B181: 0.3942830991 | C181: 1.282782166 | D181: 0.06051700591 | E181: 0.3942830991 | F181: 0.1582975243 | G181: 0.002747820398 | H181: 0.2287827697 | I181: 1.728735706 | J181: 0.009206901422 | K181: 0.2287827697 | L181: 0.04786229649 | M181: 4.592169507e-05 | AE181: 0.08302904648 | AF181: 0.01341429682 | AG181: 0.4098977077 | AH181: 0.08302904648 | AI181: 0.0008390302578 | AJ181: 0.9667664264 | AK181: 0.02808698234 | AL181: 0.001144127165 | AM181: 0.3766477117 | AN181: 0.02808698234 | AO181: 7.71941899e-06 | AP181: 0.9942875408
A182: 1.005309649 | B182: 0.4022787053 | C182: 1.279790682 | D182: 0.06189400853 | E182: 0.4022787053 | F182: 0.1522594899 | G182: 0.002790267088 | H182: 0.2381557535 | I182: 1.731735173 | J182: 0.009623990646 | K182: 0.2381557535 | L182: 0.04503298974 | M182: 4.74156559e-05 | AE182: 0.08553149311 | AF182: 0.0137988492 | AG182: 0.4179485786 | AH182: 0.08553149311 | AI182: 0.0008564283533 | AJ182: 0.9677419199 | AK182: 0.02955378389 | AL182: 0.001203277681 | AM182: 0.3875198989 | AN182: 0.02955378389 | AO182: 8.012624435e-06 | AP182: 0.9945792777
A183: 1.011592834 | B183: =(1+(_xlfn.COT($A183)-_xlfn.COT(B$3))^2)^(-1-B$2/2)*_xlfn.CSC($A183)^2*_xlfn.GAMMA(1+B$2/2)/(SQRT(PI())*_xlfn.GAMMA((1+B$2)/2)) -> 0.4103228215 | C183: 1.276214412 | D183: 0.06329636328 | E183: 0.4103228215 | F183: 0.1465004586 | G183: 0.002833330828 | H183: 0.2477754852 | I183: 1.733224659 | J183: 0.01005754991 | K183: 0.2477754852 | L183: 0.04239173147 | M183: 4.895320188e-05 | AE183: 0.08808433138 | AF183: 0.01419213297 | AG183: 0.4259788069 | AH183: 0.08808433138 | AI183: 0.0008740950805 | AJ183: 0.9686803598 | AK183: 0.03108025261 | AL183: 0.001265100292 | AM183: 0.398406175 | AN183: 0.03108025261 | AO183: 8.315352977e-06 | AP183: 0.9948538358
A184: 1.01787602 | B184: 0.418412833 | C184: 1.272071317 | D184: 0.06472451761 | E184: 0.418412833 | F184: 0.1410057354 | G184: 0.002877025392 | H184: 0.2576421903 | I184: 1.733231746 | J184: 0.01050815328 | K184: 0.2576421903 | L184: 0.03992481335 | M184: 5.053562125e-05 | AE184: 0.09068785789 | AF184: 0.0145943088 | AG184: 0.4339847747 | AH184: 0.09068785789 | AI184: 0.0008920343597 | AJ184: 0.9695834525 | AK184: 0.03266793974 | AL184: 0.001329700276 | AM184: 0.4092971373 | AN184: 0.03266793974 | AO184: 8.627882493e-06 | AP184: 0.995112353
A185: 1.024159205 | B185: 0.4265460681 | C185: 1.267379795 | D185: 0.06617892808 | E185: 0.4265460681 | F185: 0.1357614694 | G185: 0.002921364904 | H185: 0.2677557934 | I185: 1.731787479 | J185: 0.01097639308 | K185: 0.2677557934 | L185: 0.03761959953 | M185: 5.216424545e-05 | AE185: 0.09334235264 | AF185: 0.01500554023 | AG185: 0.4419629779 | AH185: 0.09334235264 | AI185: 0.0009102501986 | AJ185: 0.9704528147 | AK185: 0.03431839698 | AL185: 0.001397186577 | AM185: 0.4201835675 | AN185: 0.03431839698 | AO185: 8.950499091e-06 | AP185: 0.9953558844
A186: 1.03044239 | B186: 0.4347197999 | C186: 1.262158615 | D186: 0.06766006051 | E186: 0.4347197999 | F186: 0.1307546028 | G186: 0.002966363849 | H186: 0.2781159092 | I186: 1.728926096 | J186: 0.01146288051 | K186: 0.2781159092 | L186: 0.03546443833 | M186: 5.384045079e-05 | AE186: 0.09604807868 | AF186: 0.0154259937 | AG186: 0.4499100295 | AH186: 0.09604807868 | AI186: 0.0009287466949 | AJ186: 0.9712899786 | AK186: 0.03603317459 | AL186: 0.001467671916 | AM186: 0.4310564524 | AN186: 0.03603317459 | AO186: 9.283497384e-06 | AP186: 0.9955854091
A187: 1.036725576 | B187: 0.4429312471 | C187: 1.256426848 | D187: 0.06916839011 | E187: 0.4429312471 | F187: 0.1259728237 | G187: 0.003012037085 | H187: 0.2887218346 | I187: 1.724684752 | J187: 0.01196824612 | K187: 0.2887218346 | L187: 0.03344858158 | M187: 5.556566012e-05 | AE187: 0.09880528175 | AF187: 0.01585583859 | AG187: 0.4578226614 | AH187: 0.09880528175 | AI187: 0.0009475280383 | AJ187: 0.9720963969 | AK187: 0.03781381942 | AL187: 0.001541272918 | AM187: 0.4419070032 | AN187: 0.03781381942 | AO187: 9.62718078e-06 | AP187: 0.9958018354
A188: 1.043008761 | B188: 0.4511775757 | C188: 1.250203801 | D188: 0.07070440169 | E188: 0.4511775757 | F188: 0.121404521 | G188: 0.003058399848 | H188: 0.2995725409 | I188: 1.719103247 | J188: 0.01249314048 | K188: 0.2995725409 | L188: 0.03156211063 | M188: 5.734134459e-05 | AE188: 0.10161419 | AF188: 0.0162952473 | AG188: 0.465697726 | AH188: 0.10161419 | AI188: 0.0009665985133 | AJ188: 0.9728734469 | AK188: 0.03966187286 | AL188: 0.001618110232 | AM188: 0.4527266732 | AN188: 0.03966187286 | AO188: 9.981861774e-06 | AP188: 0.9960060073
A189: 1.049291946 | B189: 0.4594559007 | C189: 1.243508957 | D189: 0.07226858983 | E189: 0.4594559007 | F189: 0.1170387425 | G189: 0.003105467771 | H189: 0.3106666663 | I189: 1.712223749 | J189: 0.01303823471 | K189: 0.3106666663 | L189: 0.02979586872 | M189: 5.91690255e-05 | AE189: 0.1044750134 | AF189: 0.01674439532 | AG189: 0.4735321976 | AH189: 0.1044750134 | AI189: 0.0009859625011 | AJ189: 0.9736224352 | AK189: 0.04157886883 | AL189: 0.001698308657 | AM189: 0.4635071731 | AN189: 0.04157886883 | AO189: 1.034786226e-05 | AP189: 0.9961987084
A190: 1.055575132 | B190: 0.467763287 | C190: 1.236361915 | D190: 0.07386145901 | E190: 0.467763287 | F190: 0.112865155 | G190: 0.003153256886 | H190: 0.322002509 | I190: 1.704090519 | J190: 0.01360422116 | K190: 0.322002509 | L190: 0.02814139901 | M190: 6.10502762e-05 | AE190: 0.1073879439 | AF190: 0.01720346125 | AG190: 0.4813231733 | AH190: 0.1073879439 | AI190: 0.001005624483 | AJ190: 0.9743446016 | AK190: 0.04356633161 | AL190: 0.001781997277 | AM190: 0.4742404855 | AN190: 0.04356633161 | AO190: 1.072551387e-05 | AP190: 0.9963806672
A191: 1.061858317 | B191: 0.4760967519 | C191: 1.228782332 | D191: 0.07548352384 | E191: 0.4760967519 | F191: 0.1088740073 | G191: 0.003201783644 | H191: 0.3335780207 | I191: 1.694749649 | J191: 0.01419181396 | K191: 0.3335780207 | L191: 0.02659088785 | M191: 6.298672408e-05 | AE191: 0.1103531548 | AF191: 0.01767262693 | AG191: 0.4890678737 | AH191: 0.1103531548 | AI191: 0.001025589041 | AJ191: 0.9750411226 | AK191: 0.04562577369 | AL191: 0.001869309593 | AM191: 0.4849188767 | AN191: 0.04562577369 | AO191: 1.111515826e-05 | AP191: 0.9965525613
A192: 1.068141502 | B192: 0.4844532658 | C192: 1.22078987 | D192: 0.07713530921 | E192: 0.4844532658 | F192: 0.1050560953 | G192: 0.003251064919 | H192: 0.3453908008 | I192: 1.684248793 | J192: 0.01480174977 | K192: 0.3453908008 | L192: 0.02513711287 | M192: 6.498005262e-05 | AE192: 0.1133708005 | AF192: 0.01815207743 | AG192: 0.4967636428 | AH192: 0.1133708005 | AI192: 0.001045860863 | AJ192: 0.9757131155 | AK192: 0.0477586936 | AL192: 0.001960383664 | AM192: 0.4955349081 | AN192: 0.0477586936 | AO192: 1.151714752e-05 | AP192: 0.9967150208
A193: 1.074424688 | B193: =(1+(_xlfn.COT($A193)-_xlfn.COT(B$3))^2)^(-1-B$2/2)*_xlfn.CSC($A193)^2*_xlfn.GAMMA(1+B$2/2)/(SQRT(PI())*_xlfn.GAMMA((1+B$2)/2)) -> 0.4928297547 | C193: 1.212404149 | D193: 0.07881735044 | E193: 0.4928297547 | F193: 0.101402729 | G193: 0.00330111803 | H193: 0.3574380907 | I193: 1.672636915 | J193: 0.01543478835 | K193: 0.3574380907 | L193: 0.02377339539 | M193: 6.703200359e-05 | AE193: 0.116441016 | AF193: 0.01864200118 | AG193: 0.504407948 | AH193: 0.116441016 | AI193: 0.001066444744 | AJ193: 0.976361641 | AK193: 0.04996657368 | AL193: 0.002055362251 | AM193: 0.5060814443 | AN193: 0.04996657368 | AO193: 1.193184446e-05 | AP193: 0.9968686322
A194: 1.080707873 | B194: 0.5012231013 | C194: 1.203644694 | D194: 0.08053019352 | E194: 0.5012231013 | F194: 0.09790570239 | G194: 0.003351960743 | H194: 0.3697167691 | I194: 1.659964041 | J194: 0.0160917133 | K194: 0.3697167691 | L194: 0.02249355683 | M194: 6.914437928e-05 | AE194: 0.1195639171 | AF194: 0.01914258998 | AG194: 0.5119983799 | AH194: 0.1195639171 | AI194: 0.001087345589 | AJ194: 0.9769877071 | AK194: 0.05225087777 | AL194: 0.002154392961 | AM194: 0.5165516613 | AN194: 0.05225087777 | AO194: 1.235962306e-05 | AP194: 0.9970139417
A195: 1.086991058 | B195: 0.5096301471 | C195: 1.194530895 | D195: 0.08227439524 | E195: 0.5096301471 | F195: 0.09455726371 | G195: 0.003403611294 | H195: 0.3822233476 | I195: 1.646281018 | J195: 0.01677333275 | K195: 0.3822233476 | L195: 0.02129187887 | M195: 7.131904483e-05 | AE195: 0.1227395999 | AF195: 0.01965403911 | AG195: 0.5195326512 | AH195: 0.1227395999 | AI195: 0.001108568417 | AJ195: 0.9775922715 | AK195: 0.05461304896 | AL195: 0.002257628402 | AM195: 0.5269390519 | AN195: 0.05461304896 | AO195: 1.280086881e-05 | AP195: 0.9971514582
A196: 1.093274243 | B196: 0.5180476942 | C196: 1.185081963 | D196: 0.08405052336 | E196: 0.5180476942 | F196: 0.09135008901 | G196: 0.003456088395 | H196: 0.3949539671 | I196: 1.63163929 | J196: 0.01748048006 | K196: 0.3949539671 | L196: 0.02016306679 | M196: 7.35579307e-05 | AE196: 0.1259681404 | AF196: 0.02017654739 | AG196: 0.527008596 | AH196: 0.1259681404 | AI196: 0.001130118361 | AJ196: 0.9781762446 | AK196: 0.05705450726 | AL196: 0.00236522634 | AM196: 0.5372374307 | AN196: 0.05705450726 | AO196: 1.325597911e-05 | AP196: 0.9972816559
A197: 1.099557429 | B197: 0.526472507 | C197: 1.175316894 | D197: 0.08585915686 | E197: 0.526472507 | F197: 0.08827725653 | G197: 0.003509411255 | H197: 0.4079043942 | I197: 1.616090676 | J197: 0.01821401458 | K197: 0.4079043942 | L197: 0.01910221599 | M197: 7.586303521e-05 | AE197: 0.1292495945 | AF197: 0.02071031722 | AG197: 0.5344241683 | AH197: 0.1292495945 | AI197: 0.001152000676 | AJ197: 0.978740492 | AK197: 0.05957664727 | AL197: 0.002477349856 | AM197: 0.5474409366 | AN197: 0.05957664727 | AO197: 1.372536371e-05 | AP197: 0.9974049771
A198: 1.105840614 | B198: 0.5349013143 | C198: 1.165254431 | D198: 0.08770088605 | E198: 0.5349013143 | F198: 0.08533222288 | G198: 0.00356359959 | H198: 0.4210700194 | I198: 1.599687165 | J198: 0.01897482239 | K198: 0.4210700194 | L198: 0.01810478124 | M198: 7.823642721e-05 | AE198: 0.1325839974 | AF198: 0.02125555469 | AG198: 0.5417774408 | AH198: 0.1325839974 | AI198: 0.001174220736 | AJ198: 0.979285837 | AK198: 0.06218083579 | AL198: 0.002594167517 | AM198: 0.5575440346 | AN198: 0.06218083579 | AO198: 1.420944514e-05 | AP198: 0.9975218342
A199: 1.112123799 | B199: 0.5433308111 | C199: 1.154913035 | D199: 0.08957631279 | E199: 0.5433308111 | F199: 0.08250880067 | G199: 0.00361867364 | H199: 0.4344458546 | I199: 1.582480723 | J199: 0.01976381708 | K199: 0.4344458546 | L199: 0.01716654849 | M199: 8.068024881e-05 | AE199: 0.1359713641 | AF199: 0.02181246963 | AG199: 0.5490666032 | AH199: 0.1359713641 | AI199: 0.001196784044 | AJ199: 0.979813063 | AK199: 0.06486840948 | AL199: 0.002715853539 | AM199: 0.5675415167 | AN199: 0.06486840948 | AO199: 1.470865916e-05 | AP199: 0.9976326124
A200: 1.118406985 | B200: 0.5517576607 | C200: 1.144310853 | D200: 0.09148605067 | E200: 0.5517576607 | F200: 0.07980113757 | G200: 0.003674654185 | H200: 0.4480265322 | I200: 1.56452311 | J200: 0.02058194056 | K200: 0.4480265322 | L200: 0.01628360902 | M200: 8.319671835e-05 | AE200: 0.1394116882 | AF200: 0.0223812757 | AG200: 0.5562899599 | AH200: 0.1394116882 | AI200: 0.001219696229 | AJ200: 0.9803229155 | AK200: 0.06764067246 | AL200: 0.002842587972 | AM200: 0.5774285007 | AN200: 0.06764067246 | AO200: 1.52234552e-05 | AP200: 0.9977376712
A201: 1.12469017 | B201: 0.5601784965 | C201: 1.13346569 | D201: 0.09343072519 | E201: 0.5601784965 | F201: 0.07720369664 | G201: 0.003731562562 | H201: 0.4618063045 | I201: 1.545865709 | J201: 0.02143016382 | K201: 0.4618063045 | L201: 0.01545233572 | M201: 8.578813334e-05 | AE201: 0.1429049427 | AF201: 0.02296219042 | AG201: 0.5634459286 | AH201: 0.1429049427 | AI201: 0.001242963053 | AJ201: 0.9808161045 | AK201: 0.07049889394 | AL201: 0.002974556871 | AM201: 0.5872004283 | AN201: 0.07049889394 | AO201: 1.575429691e-05 | AP201: 0.9978373465
A202: 1.130973355 | B202: 0.5685899243 | C202: 1.122394992 | D202: 0.09541097394 | E202: 0.5685899243 | F202: 0.07471123781 | G202: 0.00378942068 | H202: 0.4757790441 | I202: 1.52655937 | J202: 0.02230948783 | K202: 0.4757790441 | L202: 0.01466936129 | M202: 8.845687367e-05 | AE202: 0.1464510791 | AF202: 0.02355543532 | AG202: 0.5705330375 | AH202: 0.1464510791 | AI202: 0.001266590416 | AJ202: 0.9812933057 | AK202: 0.07344430581 | AL202: 0.003111952488 | AM202: 0.596853063 | AN202: 0.07344430581 | AO202: 1.630166262e-05 | AP202: 0.9979319522
A203: 1.137256541 | B203: =(1+(_xlfn.COT($A203)-_xlfn.COT(B$3))^2)^(-1-B$2/2)*_xlfn.CSC($A203)^2*_xlfn.GAMMA(1+B$2/2)/(SQRT(PI())*_xlfn.GAMMA((1+B$2)/2)) -> 0.5769885243 | C203: 1.111115815 | D203: 0.0974274468 | E203: 0.5769885243 | F203: 0.07231880065 | G203: 0.00384825104 | H203: 0.4899382442 | I203: 1.506654263 | J203: 0.02322094434 | K203: 0.4899382442 | L203: 0.01393155824 | M203: 9.120540487e-05 | AE203: 0.1500500276 | AF203: 0.02416123595 | AG203: 0.5775499234 | AH203: 0.1500500276 | AI203: 0.001290584354 | AJ203: 0.981755163 | AK203: 0.07647810029 | AL203: 0.003254973459 | AM203: 0.6063824852 | AN203: 0.07647810029 | AO203: 1.686604588e-05 | AP203: 0.9980217817
A204: 1.143539726 | B204: 0.585370853 | C204: 1.099644814 | D204: 0.0994808061 | E204: 0.585370853 | F204: 0.07002168803 | G204: 0.003908076752 | H204: 0.5042770209 | I204: 1.486199748 | J204: 0.02416559675 | K204: 0.5042770209 | L204: 0.01323602058 | M204: 9.403628155e-05 | AE204: 0.1537016967 | AF204: 0.02477982198 | AG204: 0.5844953289 | AH204: 0.1537016967 | AI204: 0.001314951049 | AJ204: 0.9822022901 | AK204: 0.0796014275 | AL204: 0.003403825003 | AM204: 0.6157850882 | AN204: 0.0796014275 | AO204: 1.7447956e-05 | AP204: 0.9981071098
A205: 1.149822911 | B205: 0.5937334457 | C205: 1.087998222 | D205: 0.1015717268 | E205: 0.5937334457 | F205: 0.06781545094 | G205: 0.003968921554 | H205: 0.518788115 | I205: 1.465244254 | J205: 0.02514454106 | K205: 0.518788115 | L205: 0.01258004684 | M205: 9.695215098e-05 | AE205: 0.1574059733 | AF205: 0.02541142729 | AG205: 0.5913681 | AH205: 0.1574059733 | AI205: 0.00133969683 | AJ205: 0.9826352718 | AK205: 0.08281539315 | AL205: 0.003558719123 | AM205: 0.6250575728 | AN205: 0.08281539315 | AO205: 1.804791864e-05 | AP205: 0.9981881933
A206: 1.156106097 | B206: 0.6020728184 | C206: 1.07619184 | D206: 0.1037008968 | E206: 0.6020728184 | F206: 0.06569587414 | G206: 0.004030809831 | H206: 0.5334638953 | I206: 1.443835167 | J206: 0.0261589067 | K206: 0.5334638953 | L206: 0.01196112468 | M206: 9.995575686e-05 | AE206: 0.1611627226 | AF206: 0.02605629005 | AG206: 0.5981671832 | AH206: 0.1611627226 | AI206: 0.001364828174 | AJ206: 0.9830546657 | AK206: 0.08612105617 | AL206: 0.003719874809 | AM206: 0.6341969406 | AN206: 0.08612105617 | AO206: 1.866647641e-05 | AP206: 0.9982652729
A207: 1.162389282 | B207: 0.6103854702 | C207: 1.06424102 | D207: 0.1058690169 | E207: 0.6103854702 | F207: 0.06365896272 | G207: 0.004093766639 | H207: 0.5482963621 | I207: 1.422018739 | J207: 0.02720985749 | K207: 0.5482963621 | L207: 0.01137691652 | M207: 0.0001030499432 | AE207: 0.1649717875 | AF207: 0.02671465277 | AG207: 0.604891623 | AH207: 0.1649717875 | AI207: 0.001390351718 | AJ207: 0.9834610037 | AK207: 0.08951942636 | AL207: 0.00388751826 | AM207: 0.6432004876 | AN207: 0.08951942636 | AO207: 1.930418943e-05 | AP207: 0.9983385739
A208: 1.168672467 | B208: 0.6186678853 | C208: 1.05216066 | D208: 0.1080768011 | E208: 0.6186678853 | F208: 0.06170092952 | G208: 0.004157817719 | H208: 0.5632771522 | I208: 1.399839999 | J208: 0.02829859263 | K208: 0.5632771522 | L208: 0.01082524649 | M208: 0.0001062376583 | AE208: 0.1688329893 | AF208: 0.02738676243 | AG208: 0.611540559 | AH208: 0.1688329893 | AI208: 0.001416274255 | AJ208: 0.983854793 | AK208: 0.09301146213 | AL208: 0.004061883096 | AM208: 0.6520657964 | AN208: 0.09301146213 | AO208: 1.996163606e-05 | AP208: 0.9984083076
A209: 1.174955652 | B209: 0.6269165354 | C209: 1.039965195 | D209: 0.1103249769 | E209: 0.6269165354 | F209: 0.05981818329 | G209: 0.004222989528 | H209: 0.5783975437 | I209: 1.37734268 | J209: 0.02942634759 | K209: 0.5783975437 | L209: 0.01030408833 | M209: 0.0001095219594 | AE209: 0.1727461267 | AF209: 0.02807287051 | AG209: 0.6181132227 | AH209: 0.1727461267 | AI209: 0.001442602743 | AJ209: 0.9842365181 | AK209: 0.09659806821 | AL209: 0.004243210583 | AM209: 0.6607907287 | AN209: 0.09659806821 | AO209: 2.06394135e-05 | AP209: 0.9984746719
A210: 1.181238838 | B210: 0.6351278818 | C210: 1.027668588 | D210: 0.1126142852 | E210: 0.6351278818 | F210: 0.05800731751 | G210: 0.004289309252 | H210: 0.5936484625 | I210: 1.354569154 | J210: 0.03059439517 | K210: 0.5936484625 | L210: 0.009811554288 | M210: 0.0001129060167 | AE210: 0.1767109767 | AF210: 0.02877323312 | AG210: 0.6246089352 | AH210: 0.1767109767 | AI210: 0.00146934431 | AJ210: 0.984606641 | AK210: 0.1002800934 | AL210: 0.004431749871 | AM210: 0.6693734166 | AN210: 0.1002800934 | AO210: 2.133813852e-05 | AP210: 0.9985378525
A211: 1.187522023 | B211: 0.6432983781 | C211: 1.015284331 | D211: 0.1149454807 | E211: 0.6432983781 | F211: 0.05626510002 | G211: 0.004356804838 | H211: 0.6090204885 | I211: 1.33156038 | J211: 0.03180404647 | K211: 0.6090204885 | L211: 0.009345884873 | M211: 0.0001163931181 | AE211: 0.1807272935 | AF211: 0.02948811108 | AG211: 0.6310271035 | AH211: 0.1807272935 | AI211: 0.001496506256 | AJ211: 0.9849656033 | AK211: 0.1040583285 | AL211: 0.004627758224 | AM211: 0.6778122541 | AN211: 0.1040583285 | AO211: 2.205844816e-05 | AP211: 0.9985980238
A212: 1.193805208 | B212: 0.651424472 | C212: 1.002825439 | D212: 0.117319332 | E212: 0.651424472 | F212: 0.05458846317 | G212: 0.004425505012 | H212: 0.6245038637 | I212: 1.308355857 | J212: 0.0330566519 | K212: 0.6245038637 | L212: 0.008905439449 | M212: 0.0001199866744 | AE212: 0.1847948095 | AF212: 0.03021776997 | AG212: 0.6373672181 | AH212: 0.1847948095 | AI212: 0.001524096057 | AJ212: 0.9853138265 | AK212: 0.1079335038 | AL212: 0.004831501266 | AM212: 0.686105888 | AN212: 0.1079335038 | AO212: 2.280100053e-05 | AP212: 0.9986553492
A213: 1.200088394 | B213: =(1+(_xlfn.COT($A213)-_xlfn.COT(B$3))^2)^(-1-B$2/2)*_xlfn.CSC($A213)^2*_xlfn.GAMMA(1+B$2/2)/(SQRT(PI())*_xlfn.GAMMA((1+B$2)/2)) -> 0.6595026078 | C213: 0.9903044496 | D213: 0.1197366219 | E213: 0.6595026078 | F213: 0.05297449462 | G213: 0.004495439309 | H213: 0.6400885002 | I213: 1.284993591 | J213: 0.03435360229 | K213: 0.6400885002 | L213: 0.008488687535 | M213: 0.000123690224 | AE213: 0.1889132344 | AF213: 0.03096248026 | AG213: 0.6436288496 | AH213: 0.1889132344 | AI213: 0.001552121376 | AJ213: 0.9856517134 | AK213: 0.1119062876 | AL213: 0.005043253236 | AM213: 0.6942532084 | AN213: 0.1119062876 | AO213: 2.356647554e-05 | AP213: 0.9987099824
A214: 1.206371579 | B214: 0.6675292289 | C214: 0.977733424 | D214: 0.1221981473 | E214: 0.6675292289 | F214: 0.05142042865 | G214: 0.004566638096 | H214: 0.6557639891 | I214: 1.261510069 | J214: 0.03569632987 | K214: 0.6557639891 | L214: 0.0080942008 | M214: 0.0001275074385 | AE214: 0.1930822558 | AF214: 0.03172251738 | AG214: 0.6498116461 | AH214: 0.1930822558 | AI214: 0.001580590062 | AJ214: 0.985979649 | AK214: 0.1159772835 | AL214: 0.005263297237 | AM214: 0.7022533398 | AN214: 0.1159772835 | AO214: 2.435557577e-05 | AP214: 0.9987620678
... 308 more rows
